{"text_format":"1","workbook":"xlsx","n_sheets":11,"sheets":["Product registration form","Prices and logistic data","Shelflabel and till text","Bottle deposit","Tax - Import only","Unpacking data","Display","Set of goods","Additional GTINS","Lists","Measurements"],"not_rendered":{"charts":0,"images":4,"macros":1,"external_links":1,"defined_names":33,"comments":9,"pivot_tables":0},"unopened":[],"bounds":{"document_bytes":16777216,"sheet_cells":100000,"rows_first":2000,"rows_last":500,"rows_between":2000,"halvings":0,"cell_chars":16384,"cell_head_chars":4096},"cells_cut":0,"cells_raw":0,"read":"whole","date_system":"1900"}

{"sheet":"Product registration form","index":0,"n_rows":200,"n_cols":88,"rows_kept":200,"cut":false,"hidden":false,"merged":[[1,84,1,87],[1,0,1,83],[2,0,2,9],[2,59,2,69],[2,10,2,12],[2,15,2,27],[2,28,2,42],[2,43,2,45],[2,46,2,58],[2,76,2,82]]}
[null,null,null,null,null,"To be filled by vendor",null,null,null,"To be filled by buying dep.",null,null,null,null,null,"To be filled by Master Data."]
[]
["General                                   General                                   General",null,null,null,null,null,null,null,null,null,"ISFP Relevant",null,null,null,null,"Description, GTIN & PLU                                        Description, GTIN & PLU                                        Description, GTIN & PLU",null,null,null,null,null,null,null,null,null,null,null,null,"Unit of Measure                                    Unit of Measure                                    Unit of Measure                                     Unit of Measure                                    Unit of Measure                                    Unit of Measure",null,null,null,null,null,null,null,null,null,null,null,null,null,null,"Unit of Measure                                   ",null,null,"Basic data                                                            Basic data                                                            Basic data",null,null,null,null,null,null,null,null,null,null,null,null,"Attributes                                                  Attributes                                                  Attributes",null,null,null,null,null,null,null,null,null,null,null," Attributes",null,null,null,null,"POS DATA                                        POS DATA                                         POS DATA",null,null,null,null,null,null,null,"Step"]
["Article Type","Merch. Cat.","Artl. Category","Purch. Org.","Copy\nArticle number","Vendor\nnumber","Sales Org","Base unit of measure","Additional vendor no","Alternative unit of measure","Catch Weight","Traceability Class","Weight band","Product Cost Group","Sales unit per BA","Vendor's\nname","English Description\n(MAX 40 characters)","Characters","Danish Description\n(MAX 40 characters)","Characters","GTIN\nEA (Max 13 digits)","GTIN CARTON\n(CA)","Order unit/GTIN","Internal\nOrder unit/GTIN","Trade Exact","Fake Mix","Internal GTIN","PLU","Gross weight/EA KG","Net weight/EA KG","Depth/EA MM","Width/EA MM","Height/EA MM","Gross weight/CA KG","Depth/CA MM","Width/CA MM","Height/CA MM","Gross weight/HY1 KG","Net weight/HY1 KG","Depth/HY1 MM","Width/HY1 MM","Height/HY1 MM","Sales Unit Per Carton","Cartons per layer","Cartons per pallet","Order unit","Hierarchy node","Country of origin","Temperature","Tax\n(VAT)","Net content\n(Drained weight)","Content unit","Unpacking","Stacking Factor","Durability","Supplier\nDurability","Whse.\nDurability","Store\nDurability","Customer\nDurability","Brand\n(Single value)","Private label","SubBrand\n(Single value)","Style\n(Multiple value)","Variant\n(Single value)","Good Better Best\n(Single value)","CSR Brand\n(Multiple value)","Envir. Label\n(Multiple value)","Organic\n(Single value)","Health Claim\n(Multiple value)","ISFP Type\n(Single value)","Seasons/themes","Size/measurement","Colour","Generic_trading","Materials_Fabrics_Fibres","_TOBACCO_TRACEABLE","Customer Pick up center","Release date - not to be sold before","Sales rule","OTC Sales Rule","Voucher","Source List","Reverse VAT","Article Number","Manufacturer name","Part no.","E-com Ready date","Ecommerce variant"]
[null,null,null,null,null,null,null,null,null,null,null,null,null,null,null,null,null,{"$f":"IF(Q5<>\"\",LEN(Q5),\"\")","v":""},null,{"$f":"IF(S5<>\"\",LEN(S5),\"\")","v":""}]
[null,null,null,null,null,null,null,null,null,null,null,null,null,null,null,null,null,"",null,""]
[null,null,null,null,null,null,null,null,null,null,null,null,null,null,null,null,null,"",null,""]
[null,null,null,null,null,null,null,null,null,null,null,null,null,null,null,null,null,"",null,""]
[null,null,null,null,null,null,null,null,null,null,null,null,null,null,null,null,null,"",null,""]
[null,null,null,null,null,null,null,null,null,null,null,null,null,null,null,null,null,"",null,""]
[null,null,null,null,null,null,null,null,null,null,null,null,null,null,null,null,null,"",null,""]
[null,null,null,null,null,null,null,null,null,null,null,null,null,null,null,null,null,"",null,""]
[null,null,null,null,null,null,null,null,null,null,null,null,null,null,null,null,null,"",null,""]
[null,null,null,null,null,null,null,null,null,null,null,null,null,null,null,null,null,"",null,""]
[null,null,null,null,null,null,null,null,null,null,null,null,null,null,null,null,null,"",null,""]
[null,null,null,null,null,null,null,null,null,null,null,null,null,null,null,null,null,"",null,""]
[null,null,null,null,null,null,null,null,null,null,null,null,null,null,null,null,null,"",null,""]
[null,null,null,null,null,null,null,null,null,null,null,null,null,null,null,null,null,"",null,""]
[null,null,null,null,null,null,null,null,null,null,null,null,null,null,null,null,null,"",null,""]
[null,null,null,null,null,null,null,null,null,null,null,null,null,null,null,null,null,"",null,""]
[null,null,null,null,null,null,null,null,null,null,null,null,null,null,null,null,null,"",null,""]
[null,null,null,null,null,null,null,null,null,null,null,null,null,null,null,null,null,"",null,""]
[null,null,null,null,null,null,null,null,null,null,null,null,null,null,null,null,null,"",null,""]
[null,null,null,null,null,null,null,null,null,null,null,null,null,null,null,null,null,"",null,""]
[null,null,null,null,null,null,null,null,null,null,null,null,null,null,null,null,null,"",null,""]
[null,null,null,null,null,null,null,null,null,null,null,null,null,null,null,null,null,"",null,""]
[null,null,null,null,null,null,null,null,null,null,null,null,null,null,null,null,null,"",null,""]
[null,null,null,null,null,null,null,null,null,null,null,null,null,null,null,null,null,"",null,""]
[null,null,null,null,null,null,null,null,null,null,null,null,null,null,null,null,null,"",null,""]
[null,null,null,null,null,null,null,null,null,null,null,null,null,null,null,null,null,"",null,""]
[null,null,null,null,null,null,null,null,null,null,null,null,null,null,null,null,null,"",null,""]
[null,null,null,null,null,null,null,null,null,null,null,null,null,null,null,null,null,"",null,""]
[null,null,null,null,null,null,null,null,null,null,null,null,null,null,null,null,null,"",null,""]
[null,null,null,null,null,null,null,null,null,null,null,null,null,null,null,null,null,"",null,""]
[null,null,null,null,null,null,null,null,null,null,null,null,null,null,null,null,null,"",null,""]
[null,null,null,null,null,null,null,null,null,null,null,null,null,null,null,null,null,"",null,""]
[null,null,null,null,null,null,null,null,null,null,null,null,null,null,null,null,null,"",null,""]
[null,null,null,null,null,null,null,null,null,null,null,null,null,null,null,null,null,"",null,""]
[null,null,null,null,null,null,null,null,null,null,null,null,null,null,null,null,null,"",null,""]
[null,null,null,null,null,null,null,null,null,null,null,null,null,null,null,null,null,"",null,""]
[null,null,null,null,null,null,null,null,null,null,null,null,null,null,null,null,null,"",null,""]
[null,null,null,null,null,null,null,null,null,null,null,null,null,null,null,null,null,"",null,""]
[null,null,null,null,null,null,null,null,null,null,null,null,null,null,null,null,null,"",null,""]
[null,null,null,null,null,null,null,null,null,null,null,null,null,null,null,null,null,"",null,""]
[null,null,null,null,null,null,null,null,null,null,null,null,null,null,null,null,null,"",null,""]
[null,null,null,null,null,null,null,null,null,null,null,null,null,null,null,null,null,"",null,""]
[null,null,null,null,null,null,null,null,null,null,null,null,null,null,null,null,null,"",null,""]
[null,null,null,null,null,null,null,null,null,null,null,null,null,null,null,null,null,"",null,""]
[null,null,null,null,null,null,null,null,null,null,null,null,null,null,null,null,null,"",null,""]
[null,null,null,null,null,null,null,null,null,null,null,null,null,null,null,null,null,"",null,""]
[null,null,null,null,null,null,null,null,null,null,null,null,null,null,null,null,null,"",null,""]
[null,null,null,null,null,null,null,null,null,null,null,null,null,null,null,null,null,"",null,""]
[null,null,null,null,null,null,null,null,null,null,null,null,null,null,null,null,null,"",null,""]
[null,null,null,null,null,null,null,null,null,null,null,null,null,null,null,null,null,"",null,""]
[null,null,null,null,null,null,null,null,null,null,null,null,null,null,null,null,null,"",null,""]
[null,null,null,null,null,null,null,null,null,null,null,null,null,null,null,null,null,"",null,""]
[null,null,null,null,null,null,null,null,null,null,null,null,null,null,null,null,null,"",null,""]
[null,null,null,null,null,null,null,null,null,null,null,null,null,null,null,null,null,{"$f":"IF(Q58<>\"\",LEN(Q58),\"\")","v":""},null,{"$f":"IF(S58<>\"\",LEN(S58),\"\")","v":""}]
[null,null,null,null,null,null,null,null,null,null,null,null,null,null,null,null,null,"",null,""]
[null,null,null,null,null,null,null,null,null,null,null,null,null,null,null,null,null,"",null,""]
[null,null,null,null,null,null,null,null,null,null,null,null,null,null,null,null,null,"",null,""]
[null,null,null,null,null,null,null,null,null,null,null,null,null,null,null,null,null,"",null,""]
[null,null,null,null,null,null,null,null,null,null,null,null,null,null,null,null,null,"",null,""]
[null,null,null,null,null,null,null,null,null,null,null,null,null,null,null,null,null,"",null,""]
[null,null,null,null,null,null,null,null,null,null,null,null,null,null,null,null,null,"",null,""]
[null,null,null,null,null,null,null,null,null,null,null,null,null,null,null,null,null,"",null,""]
[null,null,null,null,null,null,null,null,null,null,null,null,null,null,null,null,null,"",null,""]
[null,null,null,null,null,null,null,null,null,null,null,null,null,null,null,null,null,"",null,""]
[null,null,null,null,null,null,null,null,null,null,null,null,null,null,null,null,null,"",null,""]
[null,null,null,null,null,null,null,null,null,null,null,null,null,null,null,null,null,"",null,""]
[null,null,null,null,null,null,null,null,null,null,null,null,null,null,null,null,null,"",null,""]
[null,null,null,null,null,null,null,null,null,null,null,null,null,null,null,null,null,"",null,""]
[null,null,null,null,null,null,null,null,null,null,null,null,null,null,null,null,null,"",null,""]
[null,null,null,null,null,null,null,null,null,null,null,null,null,null,null,null,null,"",null,""]
[null,null,null,null,null,null,null,null,null,null,null,null,null,null,null,null,null,"",null,""]
[null,null,null,null,null,null,null,null,null,null,null,null,null,null,null,null,null,"",null,""]
[null,null,null,null,null,null,null,null,null,null,null,null,null,null,null,null,null,"",null,""]
[null,null,null,null,null,null,null,null,null,null,null,null,null,null,null,null,null,"",null,""]
[null,null,null,null,null,null,null,null,null,null,null,null,null,null,null,null,null,"",null,""]
[null,null,null,null,null,null,null,null,null,null,null,null,null,null,null,null,null,"",null,""]
[null,null,null,null,null,null,null,null,null,null,null,null,null,null,null,null,null,"",null,""]
[null,null,null,null,null,null,null,null,null,null,null,null,null,null,null,null,null,"",null,""]
[null,null,null,null,null,null,null,null,null,null,null,null,null,null,null,null,null,"",null,""]
[null,null,null,null,null,null,null,null,null,null,null,null,null,null,null,null,null,"",null,""]
[null,null,null,null,null,null,null,null,null,null,null,null,null,null,null,null,null,"",null,""]
[null,null,null,null,null,null,null,null,null,null,null,null,null,null,null,null,null,"",null,""]
[null,null,null,null,null,null,null,null,null,null,null,null,null,null,null,null,null,"",null,""]
[null,null,null,null,null,null,null,null,null,null,null,null,null,null,null,null,null,"",null,""]
[null,null,null,null,null,null,null,null,null,null,null,null,null,null,null,null,null,"",null,""]
[null,null,null,null,null,null,null,null,null,null,null,null,null,null,null,null,null,"",null,""]
[null,null,null,null,null,null,null,null,null,null,null,null,null,null,null,null,null,"",null,""]
[null,null,null,null,null,null,null,null,null,null,null,null,null,null,null,null,null,"",null,""]
[null,null,null,null,null,null,null,null,null,null,null,null,null,null,null,null,null,"",null,""]
[null,null,null,null,null,null,null,null,null,null,null,null,null,null,null,null,null,"",null,""]
[null,null,null,null,null,null,null,null,null,null,null,null,null,null,null,null,null,"",null,""]
[null,null,null,null,null,null,null,null,null,null,null,null,null,null,null,null,null,"",null,""]
[null,null,null,null,null,null,null,null,null,null,null,null,null,null,null,null,null,"",null,""]
[null,null,null,null,null,null,null,null,null,null,null,null,null,null,null,null,null,"",null,""]
[null,null,null,null,null,null,null,null,null,null,null,null,null,null,null,null,null,"",null,""]
[null,null,null,null,null,null,null,null,null,null,null,null,null,null,null,null,null,"",null,""]
[null,null,null,null,null,null,null,null,null,null,null,null,null,null,null,null,null,"",null,""]
[null,null,null,null,null,null,null,null,null,null,null,null,null,null,null,null,null,"",null,""]
[null,null,null,null,null,null,null,null,null,null,null,null,null,null,null,null,null,"",null,""]
[null,null,null,null,null,null,null,null,null,null,null,null,null,null,null,null,null,"",null,""]
[null,null,null,null,null,null,null,null,null,null,null,null,null,null,null,null,null,"",null,""]
[null,null,null,null,null,null,null,null,null,null,null,null,null,null,null,null,null,"",null,""]
[null,null,null,null,null,null,null,null,null,null,null,null,null,null,null,null,null,"",null,""]
[null,null,null,null,null,null,null,null,null,null,null,null,null,null,null,null,null,"",null,""]
[null,null,null,null,null,null,null,null,null,null,null,null,null,null,null,null,null,"",null,""]
[null,null,null,null,null,null,null,null,null,null,null,null,null,null,null,null,null,"",null,""]
[null,null,null,null,null,null,null,null,null,null,null,null,null,null,null,null,null,"",null,""]
[null,null,null,null,null,null,null,null,null,null,null,null,null,null,null,null,null,"",null,""]
[null,null,null,null,null,null,null,null,null,null,null,null,null,null,null,null,null,"",null,""]
[null,null,null,null,null,null,null,null,null,null,null,null,null,null,null,null,null,"",null,""]
[null,null,null,null,null,null,null,null,null,null,null,null,null,null,null,null,null,"",null,""]
[null,null,null,null,null,null,null,null,null,null,null,null,null,null,null,null,null,"",null,""]
[null,null,null,null,null,null,null,null,null,null,null,null,null,null,null,null,null,"",null,""]
[null,null,null,null,null,null,null,null,null,null,null,null,null,null,null,null,null,"",null,""]
[null,null,null,null,null,null,null,null,null,null,null,null,null,null,null,null,null,"",null,""]
[null,null,null,null,null,null,null,null,null,null,null,null,null,null,null,null,null,"",null,""]
[null,null,null,null,null,null,null,null,null,null,null,null,null,null,null,null,null,"",null,""]
[null,null,null,null,null,null,null,null,null,null,null,null,null,null,null,null,null,{"$f":"IF(Q122<>\"\",LEN(Q122),\"\")","v":""},null,{"$f":"IF(S122<>\"\",LEN(S122),\"\")","v":""}]
[null,null,null,null,null,null,null,null,null,null,null,null,null,null,null,null,null,"",null,""]
[null,null,null,null,null,null,null,null,null,null,null,null,null,null,null,null,null,"",null,""]
[null,null,null,null,null,null,null,null,null,null,null,null,null,null,null,null,null,"",null,""]
[null,null,null,null,null,null,null,null,null,null,null,null,null,null,null,null,null,"",null,""]
[null,null,null,null,null,null,null,null,null,null,null,null,null,null,null,null,null,"",null,""]
[null,null,null,null,null,null,null,null,null,null,null,null,null,null,null,null,null,"",null,""]
[null,null,null,null,null,null,null,null,null,null,null,null,null,null,null,null,null,"",null,""]
[null,null,null,null,null,null,null,null,null,null,null,null,null,null,null,null,null,"",null,""]
[null,null,null,null,null,null,null,null,null,null,null,null,null,null,null,null,null,"",null,""]
[null,null,null,null,null,null,null,null,null,null,null,null,null,null,null,null,null,"",null,""]
[null,null,null,null,null,null,null,null,null,null,null,null,null,null,null,null,null,"",null,""]
[null,null,null,null,null,null,null,null,null,null,null,null,null,null,null,null,null,"",null,""]
[null,null,null,null,null,null,null,null,null,null,null,null,null,null,null,null,null,"",null,""]
[null,null,null,null,null,null,null,null,null,null,null,null,null,null,null,null,null,"",null,""]
[null,null,null,null,null,null,null,null,null,null,null,null,null,null,null,null,null,"",null,""]
[null,null,null,null,null,null,null,null,null,null,null,null,null,null,null,null,null,"",null,""]
[null,null,null,null,null,null,null,null,null,null,null,null,null,null,null,null,null,"",null,""]
[null,null,null,null,null,null,null,null,null,null,null,null,null,null,null,null,null,"",null,""]
[null,null,null,null,null,null,null,null,null,null,null,null,null,null,null,null,null,"",null,""]
[null,null,null,null,null,null,null,null,null,null,null,null,null,null,null,null,null,"",null,""]
[null,null,null,null,null,null,null,null,null,null,null,null,null,null,null,null,null,"",null,""]
[null,null,null,null,null,null,null,null,null,null,null,null,null,null,null,null,null,"",null,""]
[null,null,null,null,null,null,null,null,null,null,null,null,null,null,null,null,null,"",null,""]
[null,null,null,null,null,null,null,null,null,null,null,null,null,null,null,null,null,"",null,""]
[null,null,null,null,null,null,null,null,null,null,null,null,null,null,null,null,null,"",null,""]
[null,null,null,null,null,null,null,null,null,null,null,null,null,null,null,null,null,"",null,""]
[null,null,null,null,null,null,null,null,null,null,null,null,null,null,null,null,null,"",null,""]
[null,null,null,null,null,null,null,null,null,null,null,null,null,null,null,null,null,"",null,""]
[null,null,null,null,null,null,null,null,null,null,null,null,null,null,null,null,null,"",null,""]
[null,null,null,null,null,null,null,null,null,null,null,null,null,null,null,null,null,"",null,""]
[null,null,null,null,null,null,null,null,null,null,null,null,null,null,null,null,null,"",null,""]
[null,null,null,null,null,null,null,null,null,null,null,null,null,null,null,null,null,"",null,""]
[null,null,null,null,null,null,null,null,null,null,null,null,null,null,null,null,null,"",null,""]
[null,null,null,null,null,null,null,null,null,null,null,null,null,null,null,null,null,"",null,""]
[null,null,null,null,null,null,null,null,null,null,null,null,null,null,null,null,null,"",null,""]
[null,null,null,null,null,null,null,null,null,null,null,null,null,null,null,null,null,"",null,""]
[null,null,null,null,null,null,null,null,null,null,null,null,null,null,null,null,null,"",null,""]
[null,null,null,null,null,null,null,null,null,null,null,null,null,null,null,null,null,"",null,""]
[null,null,null,null,null,null,null,null,null,null,null,null,null,null,null,null,null,"",null,""]
[null,null,null,null,null,null,null,null,null,null,null,null,null,null,null,null,null,"",null,""]
[null,null,null,null,null,null,null,null,null,null,null,null,null,null,null,null,null,"",null,""]
[null,null,null,null,null,null,null,null,null,null,null,null,null,null,null,null,null,"",null,""]
[null,null,null,null,null,null,null,null,null,null,null,null,null,null,null,null,null,"",null,""]
[null,null,null,null,null,null,null,null,null,null,null,null,null,null,null,null,null,"",null,""]
[null,null,null,null,null,null,null,null,null,null,null,null,null,null,null,null,null,"",null,""]
[null,null,null,null,null,null,null,null,null,null,null,null,null,null,null,null,null,"",null,""]
[null,null,null,null,null,null,null,null,null,null,null,null,null,null,null,null,null,"",null,""]
[null,null,null,null,null,null,null,null,null,null,null,null,null,null,null,null,null,"",null,""]
[null,null,null,null,null,null,null,null,null,null,null,null,null,null,null,null,null,"",null,""]
[null,null,null,null,null,null,null,null,null,null,null,null,null,null,null,null,null,"",null,""]
[null,null,null,null,null,null,null,null,null,null,null,null,null,null,null,null,null,"",null,""]
[null,null,null,null,null,null,null,null,null,null,null,null,null,null,null,null,null,"",null,""]
[null,null,null,null,null,null,null,null,null,null,null,null,null,null,null,null,null,"",null,""]
[null,null,null,null,null,null,null,null,null,null,null,null,null,null,null,null,null,"",null,""]
[null,null,null,null,null,null,null,null,null,null,null,null,null,null,null,null,null,"",null,""]
[null,null,null,null,null,null,null,null,null,null,null,null,null,null,null,null,null,"",null,""]
[null,null,null,null,null,null,null,null,null,null,null,null,null,null,null,null,null,"",null,""]
[null,null,null,null,null,null,null,null,null,null,null,null,null,null,null,null,null,"",null,""]
[null,null,null,null,null,null,null,null,null,null,null,null,null,null,null,null,null,"",null,""]
[null,null,null,null,null,null,null,null,null,null,null,null,null,null,null,null,null,"",null,""]
[null,null,null,null,null,null,null,null,null,null,null,null,null,null,null,null,null,"",null,""]
[null,null,null,null,null,null,null,null,null,null,null,null,null,null,null,null,null,"",null,""]
[null,null,null,null,null,null,null,null,null,null,null,null,null,null,null,null,null,"",null,""]
[null,null,null,null,null,null,null,null,null,null,null,null,null,null,null,null,null,{"$f":"IF(Q186<>\"\",LEN(Q186),\"\")","v":""},null,{"$f":"IF(S186<>\"\",LEN(S186),\"\")","v":""}]
[null,null,null,null,null,null,null,null,null,null,null,null,null,null,null,null,null,"",null,""]
[null,null,null,null,null,null,null,null,null,null,null,null,null,null,null,null,null,"",null,""]
[null,null,null,null,null,null,null,null,null,null,null,null,null,null,null,null,null,{"$f":"IF(Q189<>\"\",LEN(Q189),\"\")","v":""},null,{"$f":"IF(S189<>\"\",LEN(S189),\"\")","v":""}]
[null,null,null,null,null,null,null,null,null,null,null,null,null,null,null,null,null,"",null,""]
[null,null,null,null,null,null,null,null,null,null,null,null,null,null,null,null,null,"",null,""]
[null,null,null,null,null,null,null,null,null,null,null,null,null,null,null,null,null,"",null,""]
[null,null,null,null,null,null,null,null,null,null,null,null,null,null,null,null,null,"",null,""]
[null,null,null,null,null,null,null,null,null,null,null,null,null,null,null,null,null,"",null,""]
[null,null,null,null,null,null,null,null,null,null,null,null,null,null,null,null,null,"",null,""]
[null,null,null,null,null,null,null,null,null,null,null,null,null,null,null,null,null,"",null,""]
[null,null,null,null,null,null,null,null,null,null,null,null,null,null,null,null,null,"",null,""]
[null,null,null,null,null,null,null,null,null,null,null,null,null,null,null,null,null,"",null,""]
[null,null,null,null,null,null,null,null,null,null,null,null,null,null,null,null,null,"",null,""]
[null,null,null,null,null,null,null,null,null,null,null,null,null,null,null,null,null,"",null,""]

{"sheet":"Prices and logistic data","index":1,"n_rows":200,"n_cols":118,"rows_kept":200,"cut":false,"hidden":false,"merged":[[2,105,2,117],[2,94,2,104],[2,0,3,0],[2,1,3,1],[2,35,2,46],[2,75,2,92],[2,47,2,59],[2,20,2,34],[2,2,2,19],[2,60,2,74]]}
[]
[null,null,null,"To be filled by vendor",null,null,null,null,"To be filled by buying dep.",null,null,null,null,"To be filled by Master Data."]
["GTIN","Article description","Purchase data and price (per unit)                         Purchase data and price (per unit)                         Purchase data and price (per unit)",null,null,null,null,null,null,null,null,null,null,null,null,null,null,null,null,null,"Sales price                                        Sales price                                        Sales price      ",null,null,null,null,null,null,null,null,null,null,null,null,null,null,"Flow type                                                                                       Flow type                                                                                        Flow type                                                                                        Flow type                                                           ",null,null,null,null,null,null,null,null,null,null,null,"Bonus buy                                   Bonus buy                                   Bonus buy    ",null,null,null,null,null,null,null,null,null,null,null,null,"Supply source                                                            Supply source                                                           Supply source ",null,null,null,null,null,null,null,null,null,null,null,null,null,null,"Rule based/Layout module                                             Rule based/Layout module                                             Rule based/Layout module",null,null,null,null,null,null,null,null,null,null,null,null,null,null,null,null,null,null,"Consignment control (LEL)                        Consignment control (LEL)           ",null,null,null,null,null,null,null,null,null,null,"Order cut off                                        Order cut off                                        Order cut off                                         "]
[null,null,"Purchase group","Incoterm + place","Vendor\nArticle number","Delivery \ndays","Shipping  Instruction","Same\nfor all","Salling","føtex","føtex food","Bilka","føtex.dk/Bilka.dk","Netto DK","Netto SE","Starbucks","Carls Jr","BR","Netto Fillop","Currency","Rec. sales \nprice","Same\nfor all","Salling","føtex","føtex.dk","føtex food","føtex \nconvenience","Bilka","Bilka.dk","Netto DK","Netto SE","Starbucks","Carls Jr","BR","Netto Fillop","Same\nfor all","Salling","føtex","føtex food","Bilka","føtex.dk/Bilka.dk","Netto DK","Netto SE","Starbucks","Carls Jr","BR","Netto Fillop","Salling","føtex","føtex.dk","føtex food","føtex convenience","Bilka","Bilka.dk","Netto DK","Netto SE","Starbucks","Carls Jr","BR","Netto Fillop","Same\nfor all","Salling","føtex","føtex food","føtex convenience","føtex.dk/Bilka.dk","Bilka","Netto DK","Netto SE","Starbucks","Carls Jr","BR","Netto Fillop","Flow Through","Cross docking","Same\nfor all","Salling","LM number Salling","føtex","LM number føtex","føtex food","LM number føtex food","føtex convenience","LM number føtex convenience","Bilka","LM number Bilka","Netto DK","LM number Netto DK","Starbucks","Carls Jr","BR","LM number BR","Netto Fillop","LM number Netto Fillop","Same\nfor all","Salling","føtex","føtex food","Bilka","Netto DK","Starbucks","Carls Jr","BR","Netto Fillop","DC","Same\nfor all","Salling","føtex","føtex food","føtex convenience","føtex.dk/Bilka.dk","Bilka","Netto DK","Netto SE","Starbucks","Carls Jr","BR","Netto Fillop"]
[{"$f":"IF('Product registration form'!U5<>\"\",'Product registration form'!U5,\"\")","v":""},{"$f":"IF('Product registration form'!Q5<>\"\",'Product registration form'!Q5,\"\")","v":""}]
[{"$f":"IF('Product registration form'!U6<>\"\",'Product registration form'!U6,\"\")","v":""},{"$f":"IF('Product registration form'!Q6<>\"\",'Product registration form'!Q6,\"\")","v":""}]
[{"$f":"IF('Product registration form'!U7<>\"\",'Product registration form'!U7,\"\")","v":""},{"$f":"IF('Product registration form'!Q7<>\"\",'Product registration form'!Q7,\"\")","v":""}]
[{"$f":"IF('Product registration form'!U8<>\"\",'Product registration form'!U8,\"\")","v":""},{"$f":"IF('Product registration form'!Q8<>\"\",'Product registration form'!Q8,\"\")","v":""}]
[{"$f":"IF('Product registration form'!U9<>\"\",'Product registration form'!U9,\"\")","v":""},{"$f":"IF('Product registration form'!Q9<>\"\",'Product registration form'!Q9,\"\")","v":""}]
[{"$f":"IF('Product registration form'!U10<>\"\",'Product registration form'!U10,\"\")","v":""},{"$f":"IF('Product registration form'!Q10<>\"\",'Product registration form'!Q10,\"\")","v":""}]
[{"$f":"IF('Product registration form'!U11<>\"\",'Product registration form'!U11,\"\")","v":""},{"$f":"IF('Product registration form'!Q11<>\"\",'Product registration form'!Q11,\"\")","v":""}]
[{"$f":"IF('Product registration form'!U12<>\"\",'Product registration form'!U12,\"\")","v":""},{"$f":"IF('Product registration form'!Q12<>\"\",'Product registration form'!Q12,\"\")","v":""}]
[{"$f":"IF('Product registration form'!U13<>\"\",'Product registration form'!U13,\"\")","v":""},{"$f":"IF('Product registration form'!Q13<>\"\",'Product registration form'!Q13,\"\")","v":""}]
[{"$f":"IF('Product registration form'!U14<>\"\",'Product registration form'!U14,\"\")","v":""},{"$f":"IF('Product registration form'!Q14<>\"\",'Product registration form'!Q14,\"\")","v":""}]
[{"$f":"IF('Product registration form'!U15<>\"\",'Product registration form'!U15,\"\")","v":""},{"$f":"IF('Product registration form'!Q15<>\"\",'Product registration form'!Q15,\"\")","v":""}]
[{"$f":"IF('Product registration form'!U16<>\"\",'Product registration form'!U16,\"\")","v":""},{"$f":"IF('Product registration form'!Q16<>\"\",'Product registration form'!Q16,\"\")","v":""}]
[{"$f":"IF('Product registration form'!U17<>\"\",'Product registration form'!U17,\"\")","v":""},{"$f":"IF('Product registration form'!Q17<>\"\",'Product registration form'!Q17,\"\")","v":""}]
[{"$f":"IF('Product registration form'!U18<>\"\",'Product registration form'!U18,\"\")","v":""},{"$f":"IF('Product registration form'!Q18<>\"\",'Product registration form'!Q18,\"\")","v":""}]
[{"$f":"IF('Product registration form'!U19<>\"\",'Product registration form'!U19,\"\")","v":""},{"$f":"IF('Product registration form'!Q19<>\"\",'Product registration form'!Q19,\"\")","v":""}]
[{"$f":"IF('Product registration form'!U20<>\"\",'Product registration form'!U20,\"\")","v":""},{"$f":"IF('Product registration form'!Q20<>\"\",'Product registration form'!Q20,\"\")","v":""}]
[{"$f":"IF('Product registration form'!U21<>\"\",'Product registration form'!U21,\"\")","v":""},{"$f":"IF('Product registration form'!Q21<>\"\",'Product registration form'!Q21,\"\")","v":""}]
[{"$f":"IF('Product registration form'!U22<>\"\",'Product registration form'!U22,\"\")","v":""},{"$f":"IF('Product registration form'!Q22<>\"\",'Product registration form'!Q22,\"\")","v":""}]
[{"$f":"IF('Product registration form'!U23<>\"\",'Product registration form'!U23,\"\")","v":""},{"$f":"IF('Product registration form'!Q23<>\"\",'Product registration form'!Q23,\"\")","v":""}]
[{"$f":"IF('Product registration form'!U24<>\"\",'Product registration form'!U24,\"\")","v":""},{"$f":"IF('Product registration form'!Q24<>\"\",'Product registration form'!Q24,\"\")","v":""}]
[{"$f":"IF('Product registration form'!U25<>\"\",'Product registration form'!U25,\"\")","v":""},{"$f":"IF('Product registration form'!Q25<>\"\",'Product registration form'!Q25,\"\")","v":""}]
[{"$f":"IF('Product registration form'!U26<>\"\",'Product registration form'!U26,\"\")","v":""},{"$f":"IF('Product registration form'!Q26<>\"\",'Product registration form'!Q26,\"\")","v":""}]
[{"$f":"IF('Product registration form'!U27<>\"\",'Product registration form'!U27,\"\")","v":""},{"$f":"IF('Product registration form'!Q27<>\"\",'Product registration form'!Q27,\"\")","v":""}]
[{"$f":"IF('Product registration form'!U28<>\"\",'Product registration form'!U28,\"\")","v":""},{"$f":"IF('Product registration form'!Q28<>\"\",'Product registration form'!Q28,\"\")","v":""}]
[{"$f":"IF('Product registration form'!U29<>\"\",'Product registration form'!U29,\"\")","v":""},{"$f":"IF('Product registration form'!Q29<>\"\",'Product registration form'!Q29,\"\")","v":""}]
[{"$f":"IF('Product registration form'!U30<>\"\",'Product registration form'!U30,\"\")","v":""},{"$f":"IF('Product registration form'!Q30<>\"\",'Product registration form'!Q30,\"\")","v":""}]
[{"$f":"IF('Product registration form'!U31<>\"\",'Product registration form'!U31,\"\")","v":""},{"$f":"IF('Product registration form'!Q31<>\"\",'Product registration form'!Q31,\"\")","v":""}]
[{"$f":"IF('Product registration form'!U32<>\"\",'Product registration form'!U32,\"\")","v":""},{"$f":"IF('Product registration form'!Q32<>\"\",'Product registration form'!Q32,\"\")","v":""}]
[{"$f":"IF('Product registration form'!U33<>\"\",'Product registration form'!U33,\"\")","v":""},{"$f":"IF('Product registration form'!Q33<>\"\",'Product registration form'!Q33,\"\")","v":""}]
[{"$f":"IF('Product registration form'!U34<>\"\",'Product registration form'!U34,\"\")","v":""},{"$f":"IF('Product registration form'!Q34<>\"\",'Product registration form'!Q34,\"\")","v":""}]
[{"$f":"IF('Product registration form'!U35<>\"\",'Product registration form'!U35,\"\")","v":""},{"$f":"IF('Product registration form'!Q35<>\"\",'Product registration form'!Q35,\"\")","v":""}]
[{"$f":"IF('Product registration form'!U36<>\"\",'Product registration form'!U36,\"\")","v":""},{"$f":"IF('Product registration form'!Q36<>\"\",'Product registration form'!Q36,\"\")","v":""}]
[{"$f":"IF('Product registration form'!U37<>\"\",'Product registration form'!U37,\"\")","v":""},{"$f":"IF('Product registration form'!Q37<>\"\",'Product registration form'!Q37,\"\")","v":""}]
[{"$f":"IF('Product registration form'!U38<>\"\",'Product registration form'!U38,\"\")","v":""},{"$f":"IF('Product registration form'!Q38<>\"\",'Product registration form'!Q38,\"\")","v":""}]
[{"$f":"IF('Product registration form'!U39<>\"\",'Product registration form'!U39,\"\")","v":""},{"$f":"IF('Product registration form'!Q39<>\"\",'Product registration form'!Q39,\"\")","v":""}]
[{"$f":"IF('Product registration form'!U40<>\"\",'Product registration form'!U40,\"\")","v":""},{"$f":"IF('Product registration form'!Q40<>\"\",'Product registration form'!Q40,\"\")","v":""}]
[{"$f":"IF('Product registration form'!U41<>\"\",'Product registration form'!U41,\"\")","v":""},{"$f":"IF('Product registration form'!Q41<>\"\",'Product registration form'!Q41,\"\")","v":""}]
[{"$f":"IF('Product registration form'!U42<>\"\",'Product registration form'!U42,\"\")","v":""},{"$f":"IF('Product registration form'!Q42<>\"\",'Product registration form'!Q42,\"\")","v":""}]
[{"$f":"IF('Product registration form'!U43<>\"\",'Product registration form'!U43,\"\")","v":""},{"$f":"IF('Product registration form'!Q43<>\"\",'Product registration form'!Q43,\"\")","v":""}]
[{"$f":"IF('Product registration form'!U44<>\"\",'Product registration form'!U44,\"\")","v":""},{"$f":"IF('Product registration form'!Q44<>\"\",'Product registration form'!Q44,\"\")","v":""}]
[{"$f":"IF('Product registration form'!U45<>\"\",'Product registration form'!U45,\"\")","v":""},{"$f":"IF('Product registration form'!Q45<>\"\",'Product registration form'!Q45,\"\")","v":""}]
[{"$f":"IF('Product registration form'!U46<>\"\",'Product registration form'!U46,\"\")","v":""},{"$f":"IF('Product registration form'!Q46<>\"\",'Product registration form'!Q46,\"\")","v":""}]
[{"$f":"IF('Product registration form'!U47<>\"\",'Product registration form'!U47,\"\")","v":""},{"$f":"IF('Product registration form'!Q47<>\"\",'Product registration form'!Q47,\"\")","v":""}]
[{"$f":"IF('Product registration form'!U48<>\"\",'Product registration form'!U48,\"\")","v":""},{"$f":"IF('Product registration form'!Q48<>\"\",'Product registration form'!Q48,\"\")","v":""}]
[{"$f":"IF('Product registration form'!U49<>\"\",'Product registration form'!U49,\"\")","v":""},{"$f":"IF('Product registration form'!Q49<>\"\",'Product registration form'!Q49,\"\")","v":""}]
[{"$f":"IF('Product registration form'!U50<>\"\",'Product registration form'!U50,\"\")","v":""},{"$f":"IF('Product registration form'!Q50<>\"\",'Product registration form'!Q50,\"\")","v":""}]
[{"$f":"IF('Product registration form'!U51<>\"\",'Product registration form'!U51,\"\")","v":""},{"$f":"IF('Product registration form'!Q51<>\"\",'Product registration form'!Q51,\"\")","v":""}]
[{"$f":"IF('Product registration form'!U52<>\"\",'Product registration form'!U52,\"\")","v":""},{"$f":"IF('Product registration form'!Q52<>\"\",'Product registration form'!Q52,\"\")","v":""}]
[{"$f":"IF('Product registration form'!U53<>\"\",'Product registration form'!U53,\"\")","v":""},{"$f":"IF('Product registration form'!Q53<>\"\",'Product registration form'!Q53,\"\")","v":""}]
[{"$f":"IF('Product registration form'!U54<>\"\",'Product registration form'!U54,\"\")","v":""},{"$f":"IF('Product registration form'!Q54<>\"\",'Product registration form'!Q54,\"\")","v":""}]
[{"$f":"IF('Product registration form'!U55<>\"\",'Product registration form'!U55,\"\")","v":""},{"$f":"IF('Product registration form'!Q55<>\"\",'Product registration form'!Q55,\"\")","v":""}]
[{"$f":"IF('Product registration form'!U56<>\"\",'Product registration form'!U56,\"\")","v":""},{"$f":"IF('Product registration form'!Q56<>\"\",'Product registration form'!Q56,\"\")","v":""}]
[{"$f":"IF('Product registration form'!U57<>\"\",'Product registration form'!U57,\"\")","v":""},{"$f":"IF('Product registration form'!Q57<>\"\",'Product registration form'!Q57,\"\")","v":""}]
[{"$f":"IF('Product registration form'!U58<>\"\",'Product registration form'!U58,\"\")","v":""},{"$f":"IF('Product registration form'!Q58<>\"\",'Product registration form'!Q58,\"\")","v":""}]
[{"$f":"IF('Product registration form'!U59<>\"\",'Product registration form'!U59,\"\")","v":""},{"$f":"IF('Product registration form'!Q59<>\"\",'Product registration form'!Q59,\"\")","v":""}]
[{"$f":"IF('Product registration form'!U60<>\"\",'Product registration form'!U60,\"\")","v":""},{"$f":"IF('Product registration form'!Q60<>\"\",'Product registration form'!Q60,\"\")","v":""}]
[{"$f":"IF('Product registration form'!U61<>\"\",'Product registration form'!U61,\"\")","v":""},{"$f":"IF('Product registration form'!Q61<>\"\",'Product registration form'!Q61,\"\")","v":""}]
[{"$f":"IF('Product registration form'!U62<>\"\",'Product registration form'!U62,\"\")","v":""},{"$f":"IF('Product registration form'!Q62<>\"\",'Product registration form'!Q62,\"\")","v":""}]
[{"$f":"IF('Product registration form'!U63<>\"\",'Product registration form'!U63,\"\")","v":""},{"$f":"IF('Product registration form'!Q63<>\"\",'Product registration form'!Q63,\"\")","v":""}]
[{"$f":"IF('Product registration form'!U64<>\"\",'Product registration form'!U64,\"\")","v":""},{"$f":"IF('Product registration form'!Q64<>\"\",'Product registration form'!Q64,\"\")","v":""}]
[{"$f":"IF('Product registration form'!U65<>\"\",'Product registration form'!U65,\"\")","v":""},{"$f":"IF('Product registration form'!Q65<>\"\",'Product registration form'!Q65,\"\")","v":""}]
[{"$f":"IF('Product registration form'!U66<>\"\",'Product registration form'!U66,\"\")","v":""},{"$f":"IF('Product registration form'!Q66<>\"\",'Product registration form'!Q66,\"\")","v":""}]
[{"$f":"IF('Product registration form'!U67<>\"\",'Product registration form'!U67,\"\")","v":""},{"$f":"IF('Product registration form'!Q67<>\"\",'Product registration form'!Q67,\"\")","v":""}]
[{"$f":"IF('Product registration form'!U68<>\"\",'Product registration form'!U68,\"\")","v":""},{"$f":"IF('Product registration form'!Q68<>\"\",'Product registration form'!Q68,\"\")","v":""}]
[{"$f":"IF('Product registration form'!U69<>\"\",'Product registration form'!U69,\"\")","v":""},{"$f":"IF('Product registration form'!Q69<>\"\",'Product registration form'!Q69,\"\")","v":""}]
[{"$f":"IF('Product registration form'!U70<>\"\",'Product registration form'!U70,\"\")","v":""},{"$f":"IF('Product registration form'!Q70<>\"\",'Product registration form'!Q70,\"\")","v":""}]
[{"$f":"IF('Product registration form'!U71<>\"\",'Product registration form'!U71,\"\")","v":""},{"$f":"IF('Product registration form'!Q71<>\"\",'Product registration form'!Q71,\"\")","v":""}]
[{"$f":"IF('Product registration form'!U72<>\"\",'Product registration form'!U72,\"\")","v":""},{"$f":"IF('Product registration form'!Q72<>\"\",'Product registration form'!Q72,\"\")","v":""}]
[{"$f":"IF('Product registration form'!U73<>\"\",'Product registration form'!U73,\"\")","v":""},{"$f":"IF('Product registration form'!Q73<>\"\",'Product registration form'!Q73,\"\")","v":""}]
[{"$f":"IF('Product registration form'!U74<>\"\",'Product registration form'!U74,\"\")","v":""},{"$f":"IF('Product registration form'!Q74<>\"\",'Product registration form'!Q74,\"\")","v":""}]
[{"$f":"IF('Product registration form'!U75<>\"\",'Product registration form'!U75,\"\")","v":""},{"$f":"IF('Product registration form'!Q75<>\"\",'Product registration form'!Q75,\"\")","v":""}]
[{"$f":"IF('Product registration form'!U76<>\"\",'Product registration form'!U76,\"\")","v":""},{"$f":"IF('Product registration form'!Q76<>\"\",'Product registration form'!Q76,\"\")","v":""}]
[{"$f":"IF('Product registration form'!U77<>\"\",'Product registration form'!U77,\"\")","v":""},{"$f":"IF('Product registration form'!Q77<>\"\",'Product registration form'!Q77,\"\")","v":""}]
[{"$f":"IF('Product registration form'!U78<>\"\",'Product registration form'!U78,\"\")","v":""},{"$f":"IF('Product registration form'!Q78<>\"\",'Product registration form'!Q78,\"\")","v":""}]
[{"$f":"IF('Product registration form'!U79<>\"\",'Product registration form'!U79,\"\")","v":""},{"$f":"IF('Product registration form'!Q79<>\"\",'Product registration form'!Q79,\"\")","v":""}]
[{"$f":"IF('Product registration form'!U80<>\"\",'Product registration form'!U80,\"\")","v":""},{"$f":"IF('Product registration form'!Q80<>\"\",'Product registration form'!Q80,\"\")","v":""}]
[{"$f":"IF('Product registration form'!U81<>\"\",'Product registration form'!U81,\"\")","v":""},{"$f":"IF('Product registration form'!Q81<>\"\",'Product registration form'!Q81,\"\")","v":""}]
[{"$f":"IF('Product registration form'!U82<>\"\",'Product registration form'!U82,\"\")","v":""},{"$f":"IF('Product registration form'!Q82<>\"\",'Product registration form'!Q82,\"\")","v":""}]
[{"$f":"IF('Product registration form'!U83<>\"\",'Product registration form'!U83,\"\")","v":""},{"$f":"IF('Product registration form'!Q83<>\"\",'Product registration form'!Q83,\"\")","v":""}]
[{"$f":"IF('Product registration form'!U84<>\"\",'Product registration form'!U84,\"\")","v":""},{"$f":"IF('Product registration form'!Q84<>\"\",'Product registration form'!Q84,\"\")","v":""}]
[{"$f":"IF('Product registration form'!U85<>\"\",'Product registration form'!U85,\"\")","v":""},{"$f":"IF('Product registration form'!Q85<>\"\",'Product registration form'!Q85,\"\")","v":""}]
[{"$f":"IF('Product registration form'!U86<>\"\",'Product registration form'!U86,\"\")","v":""},{"$f":"IF('Product registration form'!Q86<>\"\",'Product registration form'!Q86,\"\")","v":""}]
[{"$f":"IF('Product registration form'!U87<>\"\",'Product registration form'!U87,\"\")","v":""},{"$f":"IF('Product registration form'!Q87<>\"\",'Product registration form'!Q87,\"\")","v":""}]
[{"$f":"IF('Product registration form'!U88<>\"\",'Product registration form'!U88,\"\")","v":""},{"$f":"IF('Product registration form'!Q88<>\"\",'Product registration form'!Q88,\"\")","v":""}]
[{"$f":"IF('Product registration form'!U89<>\"\",'Product registration form'!U89,\"\")","v":""},{"$f":"IF('Product registration form'!Q89<>\"\",'Product registration form'!Q89,\"\")","v":""}]
[{"$f":"IF('Product registration form'!U90<>\"\",'Product registration form'!U90,\"\")","v":""},{"$f":"IF('Product registration form'!Q90<>\"\",'Product registration form'!Q90,\"\")","v":""}]
[{"$f":"IF('Product registration form'!U91<>\"\",'Product registration form'!U91,\"\")","v":""},{"$f":"IF('Product registration form'!Q91<>\"\",'Product registration form'!Q91,\"\")","v":""}]
[{"$f":"IF('Product registration form'!U92<>\"\",'Product registration form'!U92,\"\")","v":""},{"$f":"IF('Product registration form'!Q92<>\"\",'Product registration form'!Q92,\"\")","v":""}]
[{"$f":"IF('Product registration form'!U93<>\"\",'Product registration form'!U93,\"\")","v":""},{"$f":"IF('Product registration form'!Q93<>\"\",'Product registration form'!Q93,\"\")","v":""}]
[{"$f":"IF('Product registration form'!U94<>\"\",'Product registration form'!U94,\"\")","v":""},{"$f":"IF('Product registration form'!Q94<>\"\",'Product registration form'!Q94,\"\")","v":""}]
[{"$f":"IF('Product registration form'!U95<>\"\",'Product registration form'!U95,\"\")","v":""},{"$f":"IF('Product registration form'!Q95<>\"\",'Product registration form'!Q95,\"\")","v":""}]
[{"$f":"IF('Product registration form'!U96<>\"\",'Product registration form'!U96,\"\")","v":""},{"$f":"IF('Product registration form'!Q96<>\"\",'Product registration form'!Q96,\"\")","v":""}]
[{"$f":"IF('Product registration form'!U97<>\"\",'Product registration form'!U97,\"\")","v":""},{"$f":"IF('Product registration form'!Q97<>\"\",'Product registration form'!Q97,\"\")","v":""}]
[{"$f":"IF('Product registration form'!U98<>\"\",'Product registration form'!U98,\"\")","v":""},{"$f":"IF('Product registration form'!Q98<>\"\",'Product registration form'!Q98,\"\")","v":""}]
[{"$f":"IF('Product registration form'!U99<>\"\",'Product registration form'!U99,\"\")","v":""},{"$f":"IF('Product registration form'!Q99<>\"\",'Product registration form'!Q99,\"\")","v":""}]
[{"$f":"IF('Product registration form'!U100<>\"\",'Product registration form'!U100,\"\")","v":""},{"$f":"IF('Product registration form'!Q100<>\"\",'Product registration form'!Q100,\"\")","v":""}]
[{"$f":"IF('Product registration form'!U101<>\"\",'Product registration form'!U101,\"\")","v":""},{"$f":"IF('Product registration form'!Q101<>\"\",'Product registration form'!Q101,\"\")","v":""}]
[{"$f":"IF('Product registration form'!U102<>\"\",'Product registration form'!U102,\"\")","v":""},{"$f":"IF('Product registration form'!Q102<>\"\",'Product registration form'!Q102,\"\")","v":""}]
[{"$f":"IF('Product registration form'!U103<>\"\",'Product registration form'!U103,\"\")","v":""},{"$f":"IF('Product registration form'!Q103<>\"\",'Product registration form'!Q103,\"\")","v":""}]
[{"$f":"IF('Product registration form'!U104<>\"\",'Product registration form'!U104,\"\")","v":""},{"$f":"IF('Product registration form'!Q104<>\"\",'Product registration form'!Q104,\"\")","v":""}]
[{"$f":"IF('Product registration form'!U105<>\"\",'Product registration form'!U105,\"\")","v":""},{"$f":"IF('Product registration form'!Q105<>\"\",'Product registration form'!Q105,\"\")","v":""}]
[{"$f":"IF('Product registration form'!U106<>\"\",'Product registration form'!U106,\"\")","v":""},{"$f":"IF('Product registration form'!Q106<>\"\",'Product registration form'!Q106,\"\")","v":""}]
[{"$f":"IF('Product registration form'!U107<>\"\",'Product registration form'!U107,\"\")","v":""},{"$f":"IF('Product registration form'!Q107<>\"\",'Product registration form'!Q107,\"\")","v":""}]
[{"$f":"IF('Product registration form'!U108<>\"\",'Product registration form'!U108,\"\")","v":""},{"$f":"IF('Product registration form'!Q108<>\"\",'Product registration form'!Q108,\"\")","v":""}]
[{"$f":"IF('Product registration form'!U109<>\"\",'Product registration form'!U109,\"\")","v":""},{"$f":"IF('Product registration form'!Q109<>\"\",'Product registration form'!Q109,\"\")","v":""}]
[{"$f":"IF('Product registration form'!U110<>\"\",'Product registration form'!U110,\"\")","v":""},{"$f":"IF('Product registration form'!Q110<>\"\",'Product registration form'!Q110,\"\")","v":""}]
[{"$f":"IF('Product registration form'!U111<>\"\",'Product registration form'!U111,\"\")","v":""},{"$f":"IF('Product registration form'!Q111<>\"\",'Product registration form'!Q111,\"\")","v":""}]
[{"$f":"IF('Product registration form'!U112<>\"\",'Product registration form'!U112,\"\")","v":""},{"$f":"IF('Product registration form'!Q112<>\"\",'Product registration form'!Q112,\"\")","v":""}]
[{"$f":"IF('Product registration form'!U113<>\"\",'Product registration form'!U113,\"\")","v":""},{"$f":"IF('Product registration form'!Q113<>\"\",'Product registration form'!Q113,\"\")","v":""}]
[{"$f":"IF('Product registration form'!U114<>\"\",'Product registration form'!U114,\"\")","v":""},{"$f":"IF('Product registration form'!Q114<>\"\",'Product registration form'!Q114,\"\")","v":""}]
[{"$f":"IF('Product registration form'!U115<>\"\",'Product registration form'!U115,\"\")","v":""},{"$f":"IF('Product registration form'!Q115<>\"\",'Product registration form'!Q115,\"\")","v":""}]
[{"$f":"IF('Product registration form'!U116<>\"\",'Product registration form'!U116,\"\")","v":""},{"$f":"IF('Product registration form'!Q116<>\"\",'Product registration form'!Q116,\"\")","v":""}]
[{"$f":"IF('Product registration form'!U117<>\"\",'Product registration form'!U117,\"\")","v":""},{"$f":"IF('Product registration form'!Q117<>\"\",'Product registration form'!Q117,\"\")","v":""}]
[{"$f":"IF('Product registration form'!U118<>\"\",'Product registration form'!U118,\"\")","v":""},{"$f":"IF('Product registration form'!Q118<>\"\",'Product registration form'!Q118,\"\")","v":""}]
[{"$f":"IF('Product registration form'!U119<>\"\",'Product registration form'!U119,\"\")","v":""},{"$f":"IF('Product registration form'!Q119<>\"\",'Product registration form'!Q119,\"\")","v":""}]
[{"$f":"IF('Product registration form'!U120<>\"\",'Product registration form'!U120,\"\")","v":""},{"$f":"IF('Product registration form'!Q120<>\"\",'Product registration form'!Q120,\"\")","v":""}]
[{"$f":"IF('Product registration form'!U121<>\"\",'Product registration form'!U121,\"\")","v":""},{"$f":"IF('Product registration form'!Q121<>\"\",'Product registration form'!Q121,\"\")","v":""}]
[{"$f":"IF('Product registration form'!U122<>\"\",'Product registration form'!U122,\"\")","v":""},{"$f":"IF('Product registration form'!Q122<>\"\",'Product registration form'!Q122,\"\")","v":""}]
[{"$f":"IF('Product registration form'!U123<>\"\",'Product registration form'!U123,\"\")","v":""},{"$f":"IF('Product registration form'!Q123<>\"\",'Product registration form'!Q123,\"\")","v":""}]
[{"$f":"IF('Product registration form'!U124<>\"\",'Product registration form'!U124,\"\")","v":""},{"$f":"IF('Product registration form'!Q124<>\"\",'Product registration form'!Q124,\"\")","v":""}]
[{"$f":"IF('Product registration form'!U125<>\"\",'Product registration form'!U125,\"\")","v":""},{"$f":"IF('Product registration form'!Q125<>\"\",'Product registration form'!Q125,\"\")","v":""}]
[{"$f":"IF('Product registration form'!U126<>\"\",'Product registration form'!U126,\"\")","v":""},{"$f":"IF('Product registration form'!Q126<>\"\",'Product registration form'!Q126,\"\")","v":""}]
[{"$f":"IF('Product registration form'!U127<>\"\",'Product registration form'!U127,\"\")","v":""},{"$f":"IF('Product registration form'!Q127<>\"\",'Product registration form'!Q127,\"\")","v":""}]
[{"$f":"IF('Product registration form'!U128<>\"\",'Product registration form'!U128,\"\")","v":""},{"$f":"IF('Product registration form'!Q128<>\"\",'Product registration form'!Q128,\"\")","v":""}]
[{"$f":"IF('Product registration form'!U129<>\"\",'Product registration form'!U129,\"\")","v":""},{"$f":"IF('Product registration form'!Q129<>\"\",'Product registration form'!Q129,\"\")","v":""}]
[{"$f":"IF('Product registration form'!U130<>\"\",'Product registration form'!U130,\"\")","v":""},{"$f":"IF('Product registration form'!Q130<>\"\",'Product registration form'!Q130,\"\")","v":""}]
[{"$f":"IF('Product registration form'!U131<>\"\",'Product registration form'!U131,\"\")","v":""},{"$f":"IF('Product registration form'!Q131<>\"\",'Product registration form'!Q131,\"\")","v":""}]
[{"$f":"IF('Product registration form'!U132<>\"\",'Product registration form'!U132,\"\")","v":""},{"$f":"IF('Product registration form'!Q132<>\"\",'Product registration form'!Q132,\"\")","v":""}]
[{"$f":"IF('Product registration form'!U133<>\"\",'Product registration form'!U133,\"\")","v":""},{"$f":"IF('Product registration form'!Q133<>\"\",'Product registration form'!Q133,\"\")","v":""}]
[{"$f":"IF('Product registration form'!U134<>\"\",'Product registration form'!U134,\"\")","v":""},{"$f":"IF('Product registration form'!Q134<>\"\",'Product registration form'!Q134,\"\")","v":""}]
[{"$f":"IF('Product registration form'!U135<>\"\",'Product registration form'!U135,\"\")","v":""},{"$f":"IF('Product registration form'!Q135<>\"\",'Product registration form'!Q135,\"\")","v":""}]
[{"$f":"IF('Product registration form'!U136<>\"\",'Product registration form'!U136,\"\")","v":""},{"$f":"IF('Product registration form'!Q136<>\"\",'Product registration form'!Q136,\"\")","v":""}]
[{"$f":"IF('Product registration form'!U137<>\"\",'Product registration form'!U137,\"\")","v":""},{"$f":"IF('Product registration form'!Q137<>\"\",'Product registration form'!Q137,\"\")","v":""}]
[{"$f":"IF('Product registration form'!U138<>\"\",'Product registration form'!U138,\"\")","v":""},{"$f":"IF('Product registration form'!Q138<>\"\",'Product registration form'!Q138,\"\")","v":""}]
[{"$f":"IF('Product registration form'!U139<>\"\",'Product registration form'!U139,\"\")","v":""},{"$f":"IF('Product registration form'!Q139<>\"\",'Product registration form'!Q139,\"\")","v":""}]
[{"$f":"IF('Product registration form'!U140<>\"\",'Product registration form'!U140,\"\")","v":""},{"$f":"IF('Product registration form'!Q140<>\"\",'Product registration form'!Q140,\"\")","v":""}]
[{"$f":"IF('Product registration form'!U141<>\"\",'Product registration form'!U141,\"\")","v":""},{"$f":"IF('Product registration form'!Q141<>\"\",'Product registration form'!Q141,\"\")","v":""}]
[{"$f":"IF('Product registration form'!U142<>\"\",'Product registration form'!U142,\"\")","v":""},{"$f":"IF('Product registration form'!Q142<>\"\",'Product registration form'!Q142,\"\")","v":""}]
[{"$f":"IF('Product registration form'!U143<>\"\",'Product registration form'!U143,\"\")","v":""},{"$f":"IF('Product registration form'!Q143<>\"\",'Product registration form'!Q143,\"\")","v":""}]
[{"$f":"IF('Product registration form'!U144<>\"\",'Product registration form'!U144,\"\")","v":""},{"$f":"IF('Product registration form'!Q144<>\"\",'Product registration form'!Q144,\"\")","v":""}]
[{"$f":"IF('Product registration form'!U145<>\"\",'Product registration form'!U145,\"\")","v":""},{"$f":"IF('Product registration form'!Q145<>\"\",'Product registration form'!Q145,\"\")","v":""}]
[{"$f":"IF('Product registration form'!U146<>\"\",'Product registration form'!U146,\"\")","v":""},{"$f":"IF('Product registration form'!Q146<>\"\",'Product registration form'!Q146,\"\")","v":""}]
[{"$f":"IF('Product registration form'!U147<>\"\",'Product registration form'!U147,\"\")","v":""},{"$f":"IF('Product registration form'!Q147<>\"\",'Product registration form'!Q147,\"\")","v":""}]
[{"$f":"IF('Product registration form'!U148<>\"\",'Product registration form'!U148,\"\")","v":""},{"$f":"IF('Product registration form'!Q148<>\"\",'Product registration form'!Q148,\"\")","v":""}]
[{"$f":"IF('Product registration form'!U149<>\"\",'Product registration form'!U149,\"\")","v":""},{"$f":"IF('Product registration form'!Q149<>\"\",'Product registration form'!Q149,\"\")","v":""}]
[{"$f":"IF('Product registration form'!U150<>\"\",'Product registration form'!U150,\"\")","v":""},{"$f":"IF('Product registration form'!Q150<>\"\",'Product registration form'!Q150,\"\")","v":""}]
[{"$f":"IF('Product registration form'!U151<>\"\",'Product registration form'!U151,\"\")","v":""},{"$f":"IF('Product registration form'!Q151<>\"\",'Product registration form'!Q151,\"\")","v":""}]
[{"$f":"IF('Product registration form'!U152<>\"\",'Product registration form'!U152,\"\")","v":""},{"$f":"IF('Product registration form'!Q152<>\"\",'Product registration form'!Q152,\"\")","v":""}]
[{"$f":"IF('Product registration form'!U153<>\"\",'Product registration form'!U153,\"\")","v":""},{"$f":"IF('Product registration form'!Q153<>\"\",'Product registration form'!Q153,\"\")","v":""}]
[{"$f":"IF('Product registration form'!U154<>\"\",'Product registration form'!U154,\"\")","v":""},{"$f":"IF('Product registration form'!Q154<>\"\",'Product registration form'!Q154,\"\")","v":""}]
[{"$f":"IF('Product registration form'!U155<>\"\",'Product registration form'!U155,\"\")","v":""},{"$f":"IF('Product registration form'!Q155<>\"\",'Product registration form'!Q155,\"\")","v":""}]
[{"$f":"IF('Product registration form'!U156<>\"\",'Product registration form'!U156,\"\")","v":""},{"$f":"IF('Product registration form'!Q156<>\"\",'Product registration form'!Q156,\"\")","v":""}]
[{"$f":"IF('Product registration form'!U157<>\"\",'Product registration form'!U157,\"\")","v":""},{"$f":"IF('Product registration form'!Q157<>\"\",'Product registration form'!Q157,\"\")","v":""}]
[{"$f":"IF('Product registration form'!U158<>\"\",'Product registration form'!U158,\"\")","v":""},{"$f":"IF('Product registration form'!Q158<>\"\",'Product registration form'!Q158,\"\")","v":""}]
[{"$f":"IF('Product registration form'!U159<>\"\",'Product registration form'!U159,\"\")","v":""},{"$f":"IF('Product registration form'!Q159<>\"\",'Product registration form'!Q159,\"\")","v":""}]
[{"$f":"IF('Product registration form'!U160<>\"\",'Product registration form'!U160,\"\")","v":""},{"$f":"IF('Product registration form'!Q160<>\"\",'Product registration form'!Q160,\"\")","v":""}]
[{"$f":"IF('Product registration form'!U161<>\"\",'Product registration form'!U161,\"\")","v":""},{"$f":"IF('Product registration form'!Q161<>\"\",'Product registration form'!Q161,\"\")","v":""}]
[{"$f":"IF('Product registration form'!U162<>\"\",'Product registration form'!U162,\"\")","v":""},{"$f":"IF('Product registration form'!Q162<>\"\",'Product registration form'!Q162,\"\")","v":""}]
[{"$f":"IF('Product registration form'!U163<>\"\",'Product registration form'!U163,\"\")","v":""},{"$f":"IF('Product registration form'!Q163<>\"\",'Product registration form'!Q163,\"\")","v":""}]
[{"$f":"IF('Product registration form'!U164<>\"\",'Product registration form'!U164,\"\")","v":""},{"$f":"IF('Product registration form'!Q164<>\"\",'Product registration form'!Q164,\"\")","v":""}]
[{"$f":"IF('Product registration form'!U165<>\"\",'Product registration form'!U165,\"\")","v":""},{"$f":"IF('Product registration form'!Q165<>\"\",'Product registration form'!Q165,\"\")","v":""}]
[{"$f":"IF('Product registration form'!U166<>\"\",'Product registration form'!U166,\"\")","v":""},{"$f":"IF('Product registration form'!Q166<>\"\",'Product registration form'!Q166,\"\")","v":""}]
[{"$f":"IF('Product registration form'!U167<>\"\",'Product registration form'!U167,\"\")","v":""},{"$f":"IF('Product registration form'!Q167<>\"\",'Product registration form'!Q167,\"\")","v":""}]
[{"$f":"IF('Product registration form'!U168<>\"\",'Product registration form'!U168,\"\")","v":""},{"$f":"IF('Product registration form'!Q168<>\"\",'Product registration form'!Q168,\"\")","v":""}]
[{"$f":"IF('Product registration form'!U169<>\"\",'Product registration form'!U169,\"\")","v":""},{"$f":"IF('Product registration form'!Q169<>\"\",'Product registration form'!Q169,\"\")","v":""}]
[{"$f":"IF('Product registration form'!U170<>\"\",'Product registration form'!U170,\"\")","v":""},{"$f":"IF('Product registration form'!Q170<>\"\",'Product registration form'!Q170,\"\")","v":""}]
[{"$f":"IF('Product registration form'!U171<>\"\",'Product registration form'!U171,\"\")","v":""},{"$f":"IF('Product registration form'!Q171<>\"\",'Product registration form'!Q171,\"\")","v":""}]
[{"$f":"IF('Product registration form'!U172<>\"\",'Product registration form'!U172,\"\")","v":""},{"$f":"IF('Product registration form'!Q172<>\"\",'Product registration form'!Q172,\"\")","v":""}]
[{"$f":"IF('Product registration form'!U173<>\"\",'Product registration form'!U173,\"\")","v":""},{"$f":"IF('Product registration form'!Q173<>\"\",'Product registration form'!Q173,\"\")","v":""}]
[{"$f":"IF('Product registration form'!U174<>\"\",'Product registration form'!U174,\"\")","v":""},{"$f":"IF('Product registration form'!Q174<>\"\",'Product registration form'!Q174,\"\")","v":""}]
[{"$f":"IF('Product registration form'!U175<>\"\",'Product registration form'!U175,\"\")","v":""},{"$f":"IF('Product registration form'!Q175<>\"\",'Product registration form'!Q175,\"\")","v":""}]
[{"$f":"IF('Product registration form'!U176<>\"\",'Product registration form'!U176,\"\")","v":""},{"$f":"IF('Product registration form'!Q176<>\"\",'Product registration form'!Q176,\"\")","v":""}]
[{"$f":"IF('Product registration form'!U177<>\"\",'Product registration form'!U177,\"\")","v":""},{"$f":"IF('Product registration form'!Q177<>\"\",'Product registration form'!Q177,\"\")","v":""}]
[{"$f":"IF('Product registration form'!U178<>\"\",'Product registration form'!U178,\"\")","v":""},{"$f":"IF('Product registration form'!Q178<>\"\",'Product registration form'!Q178,\"\")","v":""}]
[{"$f":"IF('Product registration form'!U179<>\"\",'Product registration form'!U179,\"\")","v":""},{"$f":"IF('Product registration form'!Q179<>\"\",'Product registration form'!Q179,\"\")","v":""}]
[{"$f":"IF('Product registration form'!U180<>\"\",'Product registration form'!U180,\"\")","v":""},{"$f":"IF('Product registration form'!Q180<>\"\",'Product registration form'!Q180,\"\")","v":""}]
[{"$f":"IF('Product registration form'!U181<>\"\",'Product registration form'!U181,\"\")","v":""},{"$f":"IF('Product registration form'!Q181<>\"\",'Product registration form'!Q181,\"\")","v":""}]
[{"$f":"IF('Product registration form'!U182<>\"\",'Product registration form'!U182,\"\")","v":""},{"$f":"IF('Product registration form'!Q182<>\"\",'Product registration form'!Q182,\"\")","v":""}]
[{"$f":"IF('Product registration form'!U183<>\"\",'Product registration form'!U183,\"\")","v":""},{"$f":"IF('Product registration form'!Q183<>\"\",'Product registration form'!Q183,\"\")","v":""}]
[{"$f":"IF('Product registration form'!U184<>\"\",'Product registration form'!U184,\"\")","v":""},{"$f":"IF('Product registration form'!Q184<>\"\",'Product registration form'!Q184,\"\")","v":""}]
[{"$f":"IF('Product registration form'!U185<>\"\",'Product registration form'!U185,\"\")","v":""},{"$f":"IF('Product registration form'!Q185<>\"\",'Product registration form'!Q185,\"\")","v":""}]
[{"$f":"IF('Product registration form'!U186<>\"\",'Product registration form'!U186,\"\")","v":""},{"$f":"IF('Product registration form'!Q186<>\"\",'Product registration form'!Q186,\"\")","v":""}]
[{"$f":"IF('Product registration form'!U187<>\"\",'Product registration form'!U187,\"\")","v":""},{"$f":"IF('Product registration form'!Q187<>\"\",'Product registration form'!Q187,\"\")","v":""}]
[{"$f":"IF('Product registration form'!U188<>\"\",'Product registration form'!U188,\"\")","v":""},{"$f":"IF('Product registration form'!Q188<>\"\",'Product registration form'!Q188,\"\")","v":""}]
[{"$f":"IF('Product registration form'!U189<>\"\",'Product registration form'!U189,\"\")","v":""},{"$f":"IF('Product registration form'!Q189<>\"\",'Product registration form'!Q189,\"\")","v":""}]
[{"$f":"IF('Product registration form'!U190<>\"\",'Product registration form'!U190,\"\")","v":""},{"$f":"IF('Product registration form'!Q190<>\"\",'Product registration form'!Q190,\"\")","v":""}]
[{"$f":"IF('Product registration form'!U191<>\"\",'Product registration form'!U191,\"\")","v":""},{"$f":"IF('Product registration form'!Q191<>\"\",'Product registration form'!Q191,\"\")","v":""}]
[{"$f":"IF('Product registration form'!U192<>\"\",'Product registration form'!U192,\"\")","v":""},{"$f":"IF('Product registration form'!Q192<>\"\",'Product registration form'!Q192,\"\")","v":""}]
[{"$f":"IF('Product registration form'!U193<>\"\",'Product registration form'!U193,\"\")","v":""},{"$f":"IF('Product registration form'!Q193<>\"\",'Product registration form'!Q193,\"\")","v":""}]
[{"$f":"IF('Product registration form'!U194<>\"\",'Product registration form'!U194,\"\")","v":""},{"$f":"IF('Product registration form'!Q194<>\"\",'Product registration form'!Q194,\"\")","v":""}]
[{"$f":"IF('Product registration form'!U195<>\"\",'Product registration form'!U195,\"\")","v":""},{"$f":"IF('Product registration form'!Q195<>\"\",'Product registration form'!Q195,\"\")","v":""}]
[{"$f":"IF('Product registration form'!U196<>\"\",'Product registration form'!U196,\"\")","v":""},{"$f":"IF('Product registration form'!Q196<>\"\",'Product registration form'!Q196,\"\")","v":""}]
[{"$f":"IF('Product registration form'!U197<>\"\",'Product registration form'!U197,\"\")","v":""},{"$f":"IF('Product registration form'!Q197<>\"\",'Product registration form'!Q197,\"\")","v":""}]
[{"$f":"IF('Product registration form'!U198<>\"\",'Product registration form'!U198,\"\")","v":""},{"$f":"IF('Product registration form'!Q198<>\"\",'Product registration form'!Q198,\"\")","v":""}]
[{"$f":"IF('Product registration form'!U199<>\"\",'Product registration form'!U199,\"\")","v":""},{"$f":"IF('Product registration form'!Q199<>\"\",'Product registration form'!Q199,\"\")","v":""}]
[{"$f":"IF('Product registration form'!U200<>\"\",'Product registration form'!U200,\"\")","v":""},{"$f":"IF('Product registration form'!Q200<>\"\",'Product registration form'!Q200,\"\")","v":""}]

{"sheet":"Shelflabel and till text","index":2,"n_rows":200,"n_cols":21,"rows_kept":200,"cut":false,"hidden":false,"merged":[[2,1,3,1],[2,2,2,5],[2,0,3,0],[2,6,2,12],[2,13,2,18]]}
[]
[null,null,null,"To be filled by vendor",null,"To be filled by buying dep.",null,"To be filled by Master Data."]
["GTIN","Article description","Bilka/føtex/Salling        ",null,null,null,"Netto",null,null,null,null,null,null,"BR",null,null,null,null,null,"Till text"]
[null,null,"Article name (MAX 15 characters)","#","Additional text (MAX 12 characters)","#","Article name (MAX 24 characters)","#","Additional text (MAX 20 characters)","#","Price per 0,5 kg (meat only)","Highlight (MAX 24 characters)","#","Article name (MAX 24 characters)","#","Additional text (MAX 20 characters)","#","Highlight (MAX 24 characters)","#","Till text (MAX 20 characters)","#"]
[{"$f":"IF('Product registration form'!U5<>\"\",'Product registration form'!U5,\"\")","v":""},{"$f":"IF('Product registration form'!Q5<>\"\",'Product registration form'!Q5,\"\")","v":""},null,{"$f":"IF(C5<>\"\",LEN(C5),\"\")","v":""},null,{"$f":"IF(E5<>\"\",LEN(E5),\"\")","v":""},null,{"$f":"IF(G5<>\"\",LEN(G5),\"\")","v":""},null,{"$f":"IF(I5<>\"\",LEN(I5),\"\")","v":""},null,null,{"$f":"IF(L5<>\"\",LEN(L5),\"\")","v":""},null,{"$f":"IF(N5<>\"\",LEN(N5),\"\")","v":""},null,{"$f":"IF(P5<>\"\",LEN(P5),\"\")","v":""},null,{"$f":"IF(R5<>\"\",LEN(R5),\"\")","v":""},null,{"$f":"IF(T5<>\"\",LEN(T5),\"\")","v":""}]
[{"$f":"IF('Product registration form'!U6<>\"\",'Product registration form'!U6,\"\")","v":""},{"$f":"IF('Product registration form'!Q6<>\"\",'Product registration form'!Q6,\"\")","v":""},null,{"$f":"IF(C6<>\"\",LEN(C6),\"\")","v":""},null,{"$f":"IF(E6<>\"\",LEN(E6),\"\")","v":""},null,{"$f":"IF(G6<>\"\",LEN(G6),\"\")","v":""},null,{"$f":"IF(I6<>\"\",LEN(I6),\"\")","v":""},null,null,{"$f":"IF(L6<>\"\",LEN(L6),\"\")","v":""},null,{"$f":"IF(N6<>\"\",LEN(N6),\"\")","v":""},null,{"$f":"IF(P6<>\"\",LEN(P6),\"\")","v":""},null,{"$f":"IF(R6<>\"\",LEN(R6),\"\")","v":""},null,{"$f":"IF(T6<>\"\",LEN(T6),\"\")","v":""}]
[{"$f":"IF('Product registration form'!U7<>\"\",'Product registration form'!U7,\"\")","v":""},{"$f":"IF('Product registration form'!Q7<>\"\",'Product registration form'!Q7,\"\")","v":""},null,"",null,"",null,"",null,"",null,null,"",null,"",null,"",null,"",null,""]
[{"$f":"IF('Product registration form'!U8<>\"\",'Product registration form'!U8,\"\")","v":""},{"$f":"IF('Product registration form'!Q8<>\"\",'Product registration form'!Q8,\"\")","v":""},null,"",null,"",null,"",null,"",null,null,"",null,"",null,"",null,"",null,""]
[{"$f":"IF('Product registration form'!U9<>\"\",'Product registration form'!U9,\"\")","v":""},{"$f":"IF('Product registration form'!Q9<>\"\",'Product registration form'!Q9,\"\")","v":""},null,"",null,"",null,"",null,"",null,null,"",null,"",null,"",null,"",null,""]
[{"$f":"IF('Product registration form'!U10<>\"\",'Product registration form'!U10,\"\")","v":""},{"$f":"IF('Product registration form'!Q10<>\"\",'Product registration form'!Q10,\"\")","v":""},null,"",null,"",null,"",null,"",null,null,{"$f":"IF(L10<>\"\",LEN(L10),\"\")","v":""},null,"",null,"",null,"",null,""]
[{"$f":"IF('Product registration form'!U11<>\"\",'Product registration form'!U11,\"\")","v":""},{"$f":"IF('Product registration form'!Q11<>\"\",'Product registration form'!Q11,\"\")","v":""},null,"",null,"",null,"",null,{"$f":"IF(I11<>\"\",LEN(I11),\"\")","v":""},null,null,"",null,"",null,"",null,{"$f":"IF(R11<>\"\",LEN(R11),\"\")","v":""},null,""]
[{"$f":"IF('Product registration form'!U12<>\"\",'Product registration form'!U12,\"\")","v":""},{"$f":"IF('Product registration form'!Q12<>\"\",'Product registration form'!Q12,\"\")","v":""},null,"",null,"",null,"",null,"",null,null,"",null,"",null,"",null,"",null,""]
[{"$f":"IF('Product registration form'!U13<>\"\",'Product registration form'!U13,\"\")","v":""},{"$f":"IF('Product registration form'!Q13<>\"\",'Product registration form'!Q13,\"\")","v":""},null,"",null,"",null,"",null,"",null,null,"",null,{"$f":"IF(N13<>\"\",LEN(N13),\"\")","v":""},null,"",null,"",null,{"$f":"IF(T13<>\"\",LEN(T13),\"\")","v":""}]
[{"$f":"IF('Product registration form'!U14<>\"\",'Product registration form'!U14,\"\")","v":""},{"$f":"IF('Product registration form'!Q14<>\"\",'Product registration form'!Q14,\"\")","v":""},null,"",null,"",null,"",null,"",null,null,"",null,"",null,{"$f":"IF(P14<>\"\",LEN(P14),\"\")","v":""},null,"",null,""]
[{"$f":"IF('Product registration form'!U15<>\"\",'Product registration form'!U15,\"\")","v":""},{"$f":"IF('Product registration form'!Q15<>\"\",'Product registration form'!Q15,\"\")","v":""},null,"",null,"",null,"",null,"",null,null,"",null,"",null,"",null,"",null,""]
[{"$f":"IF('Product registration form'!U16<>\"\",'Product registration form'!U16,\"\")","v":""},{"$f":"IF('Product registration form'!Q16<>\"\",'Product registration form'!Q16,\"\")","v":""},null,"",null,"",null,"",null,"",null,null,"",null,"",null,"",null,"",null,""]
[{"$f":"IF('Product registration form'!U17<>\"\",'Product registration form'!U17,\"\")","v":""},{"$f":"IF('Product registration form'!Q17<>\"\",'Product registration form'!Q17,\"\")","v":""},null,"",null,"",null,"",null,"",null,null,"",null,"",null,"",null,"",null,""]
[{"$f":"IF('Product registration form'!U18<>\"\",'Product registration form'!U18,\"\")","v":""},{"$f":"IF('Product registration form'!Q18<>\"\",'Product registration form'!Q18,\"\")","v":""},null,"",null,"",null,"",null,"",null,null,"",null,"",null,"",null,"",null,""]
[{"$f":"IF('Product registration form'!U19<>\"\",'Product registration form'!U19,\"\")","v":""},{"$f":"IF('Product registration form'!Q19<>\"\",'Product registration form'!Q19,\"\")","v":""},null,"",null,"",null,"",null,"",null,null,"",null,"",null,"",null,"",null,""]
[{"$f":"IF('Product registration form'!U20<>\"\",'Product registration form'!U20,\"\")","v":""},{"$f":"IF('Product registration form'!Q20<>\"\",'Product registration form'!Q20,\"\")","v":""},null,"",null,"",null,"",null,"",null,null,"",null,"",null,"",null,"",null,""]
[{"$f":"IF('Product registration form'!U21<>\"\",'Product registration form'!U21,\"\")","v":""},{"$f":"IF('Product registration form'!Q21<>\"\",'Product registration form'!Q21,\"\")","v":""},null,"",null,"",null,"",null,"",null,null,"",null,"",null,"",null,"",null,""]
[{"$f":"IF('Product registration form'!U22<>\"\",'Product registration form'!U22,\"\")","v":""},{"$f":"IF('Product registration form'!Q22<>\"\",'Product registration form'!Q22,\"\")","v":""},null,"",null,"",null,"",null,"",null,null,"",null,"",null,"",null,"",null,""]
[{"$f":"IF('Product registration form'!U23<>\"\",'Product registration form'!U23,\"\")","v":""},{"$f":"IF('Product registration form'!Q23<>\"\",'Product registration form'!Q23,\"\")","v":""},null,"",null,"",null,"",null,"",null,null,"",null,"",null,"",null,"",null,""]
[{"$f":"IF('Product registration form'!U24<>\"\",'Product registration form'!U24,\"\")","v":""},{"$f":"IF('Product registration form'!Q24<>\"\",'Product registration form'!Q24,\"\")","v":""},null,"",null,"",null,"",null,"",null,null,"",null,"",null,"",null,"",null,""]
[{"$f":"IF('Product registration form'!U25<>\"\",'Product registration form'!U25,\"\")","v":""},{"$f":"IF('Product registration form'!Q25<>\"\",'Product registration form'!Q25,\"\")","v":""},null,"",null,"",null,"",null,"",null,null,"",null,"",null,"",null,"",null,""]
[{"$f":"IF('Product registration form'!U26<>\"\",'Product registration form'!U26,\"\")","v":""},{"$f":"IF('Product registration form'!Q26<>\"\",'Product registration form'!Q26,\"\")","v":""},null,"",null,"",null,"",null,"",null,null,"",null,"",null,"",null,"",null,""]
[{"$f":"IF('Product registration form'!U27<>\"\",'Product registration form'!U27,\"\")","v":""},{"$f":"IF('Product registration form'!Q27<>\"\",'Product registration form'!Q27,\"\")","v":""},null,"",null,"",null,"",null,"",null,null,"",null,"",null,"",null,"",null,""]
[{"$f":"IF('Product registration form'!U28<>\"\",'Product registration form'!U28,\"\")","v":""},{"$f":"IF('Product registration form'!Q28<>\"\",'Product registration form'!Q28,\"\")","v":""},null,"",null,"",null,"",null,"",null,null,"",null,"",null,"",null,"",null,""]
[{"$f":"IF('Product registration form'!U29<>\"\",'Product registration form'!U29,\"\")","v":""},{"$f":"IF('Product registration form'!Q29<>\"\",'Product registration form'!Q29,\"\")","v":""},null,"",null,"",null,"",null,"",null,null,"",null,"",null,"",null,"",null,""]
[{"$f":"IF('Product registration form'!U30<>\"\",'Product registration form'!U30,\"\")","v":""},{"$f":"IF('Product registration form'!Q30<>\"\",'Product registration form'!Q30,\"\")","v":""},null,"",null,"",null,"",null,"",null,null,"",null,"",null,"",null,"",null,""]
[{"$f":"IF('Product registration form'!U31<>\"\",'Product registration form'!U31,\"\")","v":""},{"$f":"IF('Product registration form'!Q31<>\"\",'Product registration form'!Q31,\"\")","v":""},null,"",null,"",null,"",null,"",null,null,"",null,"",null,"",null,"",null,""]
[{"$f":"IF('Product registration form'!U32<>\"\",'Product registration form'!U32,\"\")","v":""},{"$f":"IF('Product registration form'!Q32<>\"\",'Product registration form'!Q32,\"\")","v":""},null,"",null,"",null,"",null,"",null,null,"",null,"",null,"",null,"",null,""]
[{"$f":"IF('Product registration form'!U33<>\"\",'Product registration form'!U33,\"\")","v":""},{"$f":"IF('Product registration form'!Q33<>\"\",'Product registration form'!Q33,\"\")","v":""},null,"",null,"",null,"",null,"",null,null,"",null,"",null,"",null,"",null,""]
[{"$f":"IF('Product registration form'!U34<>\"\",'Product registration form'!U34,\"\")","v":""},{"$f":"IF('Product registration form'!Q34<>\"\",'Product registration form'!Q34,\"\")","v":""},null,"",null,"",null,"",null,"",null,null,"",null,"",null,"",null,"",null,""]
[{"$f":"IF('Product registration form'!U35<>\"\",'Product registration form'!U35,\"\")","v":""},{"$f":"IF('Product registration form'!Q35<>\"\",'Product registration form'!Q35,\"\")","v":""},null,"",null,"",null,"",null,"",null,null,"",null,"",null,"",null,"",null,""]
[{"$f":"IF('Product registration form'!U36<>\"\",'Product registration form'!U36,\"\")","v":""},{"$f":"IF('Product registration form'!Q36<>\"\",'Product registration form'!Q36,\"\")","v":""},null,"",null,"",null,"",null,"",null,null,"",null,"",null,"",null,"",null,""]
[{"$f":"IF('Product registration form'!U37<>\"\",'Product registration form'!U37,\"\")","v":""},{"$f":"IF('Product registration form'!Q37<>\"\",'Product registration form'!Q37,\"\")","v":""},null,"",null,"",null,"",null,"",null,null,"",null,"",null,"",null,"",null,""]
[{"$f":"IF('Product registration form'!U38<>\"\",'Product registration form'!U38,\"\")","v":""},{"$f":"IF('Product registration form'!Q38<>\"\",'Product registration form'!Q38,\"\")","v":""},null,"",null,"",null,"",null,"",null,null,"",null,"",null,"",null,"",null,""]
[{"$f":"IF('Product registration form'!U39<>\"\",'Product registration form'!U39,\"\")","v":""},{"$f":"IF('Product registration form'!Q39<>\"\",'Product registration form'!Q39,\"\")","v":""},null,"",null,"",null,"",null,"",null,null,"",null,"",null,"",null,"",null,""]
[{"$f":"IF('Product registration form'!U40<>\"\",'Product registration form'!U40,\"\")","v":""},{"$f":"IF('Product registration form'!Q40<>\"\",'Product registration form'!Q40,\"\")","v":""},null,"",null,"",null,"",null,"",null,null,"",null,"",null,"",null,"",null,""]
[{"$f":"IF('Product registration form'!U41<>\"\",'Product registration form'!U41,\"\")","v":""},{"$f":"IF('Product registration form'!Q41<>\"\",'Product registration form'!Q41,\"\")","v":""},null,"",null,"",null,"",null,"",null,null,"",null,"",null,"",null,"",null,""]
[{"$f":"IF('Product registration form'!U42<>\"\",'Product registration form'!U42,\"\")","v":""},{"$f":"IF('Product registration form'!Q42<>\"\",'Product registration form'!Q42,\"\")","v":""},null,"",null,"",null,"",null,"",null,null,"",null,"",null,"",null,"",null,""]
[{"$f":"IF('Product registration form'!U43<>\"\",'Product registration form'!U43,\"\")","v":""},{"$f":"IF('Product registration form'!Q43<>\"\",'Product registration form'!Q43,\"\")","v":""},null,"",null,"",null,"",null,"",null,null,"",null,"",null,"",null,"",null,""]
[{"$f":"IF('Product registration form'!U44<>\"\",'Product registration form'!U44,\"\")","v":""},{"$f":"IF('Product registration form'!Q44<>\"\",'Product registration form'!Q44,\"\")","v":""},null,"",null,"",null,"",null,"",null,null,"",null,"",null,"",null,"",null,""]
[{"$f":"IF('Product registration form'!U45<>\"\",'Product registration form'!U45,\"\")","v":""},{"$f":"IF('Product registration form'!Q45<>\"\",'Product registration form'!Q45,\"\")","v":""},null,"",null,"",null,"",null,"",null,null,"",null,"",null,"",null,"",null,""]
[{"$f":"IF('Product registration form'!U46<>\"\",'Product registration form'!U46,\"\")","v":""},{"$f":"IF('Product registration form'!Q46<>\"\",'Product registration form'!Q46,\"\")","v":""},null,"",null,"",null,"",null,"",null,null,"",null,"",null,"",null,"",null,""]
[{"$f":"IF('Product registration form'!U47<>\"\",'Product registration form'!U47,\"\")","v":""},{"$f":"IF('Product registration form'!Q47<>\"\",'Product registration form'!Q47,\"\")","v":""},null,"",null,"",null,"",null,"",null,null,"",null,"",null,"",null,"",null,""]
[{"$f":"IF('Product registration form'!U48<>\"\",'Product registration form'!U48,\"\")","v":""},{"$f":"IF('Product registration form'!Q48<>\"\",'Product registration form'!Q48,\"\")","v":""},null,"",null,"",null,"",null,"",null,null,"",null,"",null,"",null,"",null,""]
[{"$f":"IF('Product registration form'!U49<>\"\",'Product registration form'!U49,\"\")","v":""},{"$f":"IF('Product registration form'!Q49<>\"\",'Product registration form'!Q49,\"\")","v":""},null,"",null,"",null,"",null,"",null,null,"",null,"",null,"",null,"",null,""]
[{"$f":"IF('Product registration form'!U50<>\"\",'Product registration form'!U50,\"\")","v":""},{"$f":"IF('Product registration form'!Q50<>\"\",'Product registration form'!Q50,\"\")","v":""},null,"",null,"",null,"",null,"",null,null,"",null,"",null,"",null,"",null,""]
[{"$f":"IF('Product registration form'!U51<>\"\",'Product registration form'!U51,\"\")","v":""},{"$f":"IF('Product registration form'!Q51<>\"\",'Product registration form'!Q51,\"\")","v":""},null,"",null,"",null,"",null,"",null,null,"",null,"",null,"",null,"",null,""]
[{"$f":"IF('Product registration form'!U52<>\"\",'Product registration form'!U52,\"\")","v":""},{"$f":"IF('Product registration form'!Q52<>\"\",'Product registration form'!Q52,\"\")","v":""},null,"",null,"",null,"",null,"",null,null,"",null,"",null,"",null,"",null,""]
[{"$f":"IF('Product registration form'!U53<>\"\",'Product registration form'!U53,\"\")","v":""},{"$f":"IF('Product registration form'!Q53<>\"\",'Product registration form'!Q53,\"\")","v":""},null,"",null,"",null,"",null,"",null,null,"",null,"",null,"",null,"",null,""]
[{"$f":"IF('Product registration form'!U54<>\"\",'Product registration form'!U54,\"\")","v":""},{"$f":"IF('Product registration form'!Q54<>\"\",'Product registration form'!Q54,\"\")","v":""},null,"",null,"",null,"",null,"",null,null,"",null,"",null,"",null,"",null,""]
[{"$f":"IF('Product registration form'!U55<>\"\",'Product registration form'!U55,\"\")","v":""},{"$f":"IF('Product registration form'!Q55<>\"\",'Product registration form'!Q55,\"\")","v":""},null,"",null,"",null,"",null,"",null,null,"",null,"",null,"",null,"",null,""]
[{"$f":"IF('Product registration form'!U56<>\"\",'Product registration form'!U56,\"\")","v":""},{"$f":"IF('Product registration form'!Q56<>\"\",'Product registration form'!Q56,\"\")","v":""},null,"",null,"",null,"",null,"",null,null,"",null,"",null,"",null,"",null,""]
[{"$f":"IF('Product registration form'!U57<>\"\",'Product registration form'!U57,\"\")","v":""},{"$f":"IF('Product registration form'!Q57<>\"\",'Product registration form'!Q57,\"\")","v":""},null,"",null,"",null,"",null,"",null,null,"",null,"",null,"",null,"",null,""]
[{"$f":"IF('Product registration form'!U58<>\"\",'Product registration form'!U58,\"\")","v":""},{"$f":"IF('Product registration form'!Q58<>\"\",'Product registration form'!Q58,\"\")","v":""},null,"",null,"",null,"",null,"",null,null,"",null,"",null,"",null,"",null,""]
[{"$f":"IF('Product registration form'!U59<>\"\",'Product registration form'!U59,\"\")","v":""},{"$f":"IF('Product registration form'!Q59<>\"\",'Product registration form'!Q59,\"\")","v":""},null,"",null,"",null,"",null,"",null,null,"",null,"",null,"",null,"",null,""]
[{"$f":"IF('Product registration form'!U60<>\"\",'Product registration form'!U60,\"\")","v":""},{"$f":"IF('Product registration form'!Q60<>\"\",'Product registration form'!Q60,\"\")","v":""},null,"",null,"",null,"",null,"",null,null,"",null,"",null,"",null,"",null,""]
[{"$f":"IF('Product registration form'!U61<>\"\",'Product registration form'!U61,\"\")","v":""},{"$f":"IF('Product registration form'!Q61<>\"\",'Product registration form'!Q61,\"\")","v":""},null,"",null,"",null,"",null,"",null,null,"",null,"",null,"",null,"",null,""]
[{"$f":"IF('Product registration form'!U62<>\"\",'Product registration form'!U62,\"\")","v":""},{"$f":"IF('Product registration form'!Q62<>\"\",'Product registration form'!Q62,\"\")","v":""},null,"",null,"",null,"",null,"",null,null,"",null,"",null,"",null,"",null,""]
[{"$f":"IF('Product registration form'!U63<>\"\",'Product registration form'!U63,\"\")","v":""},{"$f":"IF('Product registration form'!Q63<>\"\",'Product registration form'!Q63,\"\")","v":""},null,"",null,"",null,"",null,"",null,null,"",null,"",null,"",null,"",null,""]
[{"$f":"IF('Product registration form'!U64<>\"\",'Product registration form'!U64,\"\")","v":""},{"$f":"IF('Product registration form'!Q64<>\"\",'Product registration form'!Q64,\"\")","v":""},null,"",null,"",null,"",null,"",null,null,"",null,"",null,"",null,"",null,""]
[{"$f":"IF('Product registration form'!U65<>\"\",'Product registration form'!U65,\"\")","v":""},{"$f":"IF('Product registration form'!Q65<>\"\",'Product registration form'!Q65,\"\")","v":""},null,"",null,"",null,"",null,"",null,null,"",null,"",null,"",null,"",null,""]
[{"$f":"IF('Product registration form'!U66<>\"\",'Product registration form'!U66,\"\")","v":""},{"$f":"IF('Product registration form'!Q66<>\"\",'Product registration form'!Q66,\"\")","v":""},null,"",null,"",null,"",null,"",null,null,"",null,"",null,"",null,"",null,""]
[{"$f":"IF('Product registration form'!U67<>\"\",'Product registration form'!U67,\"\")","v":""},{"$f":"IF('Product registration form'!Q67<>\"\",'Product registration form'!Q67,\"\")","v":""},null,"",null,"",null,"",null,"",null,null,"",null,"",null,"",null,"",null,""]
[{"$f":"IF('Product registration form'!U68<>\"\",'Product registration form'!U68,\"\")","v":""},{"$f":"IF('Product registration form'!Q68<>\"\",'Product registration form'!Q68,\"\")","v":""},null,"",null,"",null,"",null,{"$f":"IF(I68<>\"\",LEN(I68),\"\")","v":""},null,null,"",null,"",null,"",null,"",null,""]
[{"$f":"IF('Product registration form'!U69<>\"\",'Product registration form'!U69,\"\")","v":""},{"$f":"IF('Product registration form'!Q69<>\"\",'Product registration form'!Q69,\"\")","v":""},null,"",null,"",null,"",null,{"$f":"IF(I69<>\"\",LEN(I69),\"\")","v":""},null,null,{"$f":"IF(L69<>\"\",LEN(L69),\"\")","v":""},null,"",null,"",null,"",null,{"$f":"IF(T69<>\"\",LEN(T69),\"\")","v":""}]
[{"$f":"IF('Product registration form'!U70<>\"\",'Product registration form'!U70,\"\")","v":""},{"$f":"IF('Product registration form'!Q70<>\"\",'Product registration form'!Q70,\"\")","v":""},null,{"$f":"IF(C70<>\"\",LEN(C70),\"\")","v":""},null,{"$f":"IF(E70<>\"\",LEN(E70),\"\")","v":""},null,{"$f":"IF(G70<>\"\",LEN(G70),\"\")","v":""},null,"",null,null,"",null,{"$f":"IF(N70<>\"\",LEN(N70),\"\")","v":""},null,{"$f":"IF(P70<>\"\",LEN(P70),\"\")","v":""},null,{"$f":"IF(R70<>\"\",LEN(R70),\"\")","v":""},null,""]
[{"$f":"IF('Product registration form'!U71<>\"\",'Product registration form'!U71,\"\")","v":""},{"$f":"IF('Product registration form'!Q71<>\"\",'Product registration form'!Q71,\"\")","v":""},null,"",null,"",null,"",null,"",null,null,"",null,"",null,"",null,"",null,""]
[{"$f":"IF('Product registration form'!U72<>\"\",'Product registration form'!U72,\"\")","v":""},{"$f":"IF('Product registration form'!Q72<>\"\",'Product registration form'!Q72,\"\")","v":""},null,"",null,"",null,"",null,"",null,null,"",null,"",null,"",null,"",null,""]
[{"$f":"IF('Product registration form'!U73<>\"\",'Product registration form'!U73,\"\")","v":""},{"$f":"IF('Product registration form'!Q73<>\"\",'Product registration form'!Q73,\"\")","v":""},null,"",null,"",null,"",null,"",null,null,"",null,"",null,"",null,"",null,""]
[{"$f":"IF('Product registration form'!U74<>\"\",'Product registration form'!U74,\"\")","v":""},{"$f":"IF('Product registration form'!Q74<>\"\",'Product registration form'!Q74,\"\")","v":""},null,"",null,"",null,"",null,"",null,null,"",null,"",null,"",null,"",null,""]
[{"$f":"IF('Product registration form'!U75<>\"\",'Product registration form'!U75,\"\")","v":""},{"$f":"IF('Product registration form'!Q75<>\"\",'Product registration form'!Q75,\"\")","v":""},null,"",null,"",null,"",null,"",null,null,"",null,"",null,"",null,"",null,""]
[{"$f":"IF('Product registration form'!U76<>\"\",'Product registration form'!U76,\"\")","v":""},{"$f":"IF('Product registration form'!Q76<>\"\",'Product registration form'!Q76,\"\")","v":""},null,"",null,"",null,"",null,"",null,null,"",null,"",null,"",null,"",null,""]
[{"$f":"IF('Product registration form'!U77<>\"\",'Product registration form'!U77,\"\")","v":""},{"$f":"IF('Product registration form'!Q77<>\"\",'Product registration form'!Q77,\"\")","v":""},null,"",null,"",null,"",null,"",null,null,"",null,"",null,"",null,"",null,""]
[{"$f":"IF('Product registration form'!U78<>\"\",'Product registration form'!U78,\"\")","v":""},{"$f":"IF('Product registration form'!Q78<>\"\",'Product registration form'!Q78,\"\")","v":""},null,"",null,"",null,"",null,"",null,null,"",null,"",null,"",null,"",null,""]
[{"$f":"IF('Product registration form'!U79<>\"\",'Product registration form'!U79,\"\")","v":""},{"$f":"IF('Product registration form'!Q79<>\"\",'Product registration form'!Q79,\"\")","v":""},null,"",null,"",null,"",null,"",null,null,"",null,"",null,"",null,"",null,""]
[{"$f":"IF('Product registration form'!U80<>\"\",'Product registration form'!U80,\"\")","v":""},{"$f":"IF('Product registration form'!Q80<>\"\",'Product registration form'!Q80,\"\")","v":""},null,"",null,"",null,"",null,"",null,null,"",null,"",null,"",null,"",null,""]
[{"$f":"IF('Product registration form'!U81<>\"\",'Product registration form'!U81,\"\")","v":""},{"$f":"IF('Product registration form'!Q81<>\"\",'Product registration form'!Q81,\"\")","v":""},null,"",null,"",null,"",null,"",null,null,"",null,"",null,"",null,"",null,""]
[{"$f":"IF('Product registration form'!U82<>\"\",'Product registration form'!U82,\"\")","v":""},{"$f":"IF('Product registration form'!Q82<>\"\",'Product registration form'!Q82,\"\")","v":""},null,"",null,"",null,"",null,"",null,null,"",null,"",null,"",null,"",null,""]
[{"$f":"IF('Product registration form'!U83<>\"\",'Product registration form'!U83,\"\")","v":""},{"$f":"IF('Product registration form'!Q83<>\"\",'Product registration form'!Q83,\"\")","v":""},null,"",null,"",null,"",null,"",null,null,"",null,"",null,"",null,"",null,""]
[{"$f":"IF('Product registration form'!U84<>\"\",'Product registration form'!U84,\"\")","v":""},{"$f":"IF('Product registration form'!Q84<>\"\",'Product registration form'!Q84,\"\")","v":""},null,"",null,"",null,"",null,"",null,null,"",null,"",null,"",null,"",null,""]
[{"$f":"IF('Product registration form'!U85<>\"\",'Product registration form'!U85,\"\")","v":""},{"$f":"IF('Product registration form'!Q85<>\"\",'Product registration form'!Q85,\"\")","v":""},null,"",null,"",null,"",null,"",null,null,"",null,"",null,"",null,"",null,""]
[{"$f":"IF('Product registration form'!U86<>\"\",'Product registration form'!U86,\"\")","v":""},{"$f":"IF('Product registration form'!Q86<>\"\",'Product registration form'!Q86,\"\")","v":""},null,"",null,"",null,"",null,"",null,null,"",null,"",null,"",null,"",null,""]
[{"$f":"IF('Product registration form'!U87<>\"\",'Product registration form'!U87,\"\")","v":""},{"$f":"IF('Product registration form'!Q87<>\"\",'Product registration form'!Q87,\"\")","v":""},null,"",null,"",null,"",null,"",null,null,"",null,"",null,"",null,"",null,""]
[{"$f":"IF('Product registration form'!U88<>\"\",'Product registration form'!U88,\"\")","v":""},{"$f":"IF('Product registration form'!Q88<>\"\",'Product registration form'!Q88,\"\")","v":""},null,"",null,"",null,"",null,"",null,null,"",null,"",null,"",null,"",null,""]
[{"$f":"IF('Product registration form'!U89<>\"\",'Product registration form'!U89,\"\")","v":""},{"$f":"IF('Product registration form'!Q89<>\"\",'Product registration form'!Q89,\"\")","v":""},null,"",null,"",null,"",null,"",null,null,"",null,"",null,"",null,"",null,""]
[{"$f":"IF('Product registration form'!U90<>\"\",'Product registration form'!U90,\"\")","v":""},{"$f":"IF('Product registration form'!Q90<>\"\",'Product registration form'!Q90,\"\")","v":""},null,"",null,"",null,"",null,"",null,null,"",null,"",null,"",null,"",null,""]
[{"$f":"IF('Product registration form'!U91<>\"\",'Product registration form'!U91,\"\")","v":""},{"$f":"IF('Product registration form'!Q91<>\"\",'Product registration form'!Q91,\"\")","v":""},null,"",null,"",null,"",null,"",null,null,"",null,"",null,"",null,"",null,""]
[{"$f":"IF('Product registration form'!U92<>\"\",'Product registration form'!U92,\"\")","v":""},{"$f":"IF('Product registration form'!Q92<>\"\",'Product registration form'!Q92,\"\")","v":""},null,"",null,"",null,"",null,"",null,null,"",null,"",null,"",null,"",null,""]
[{"$f":"IF('Product registration form'!U93<>\"\",'Product registration form'!U93,\"\")","v":""},{"$f":"IF('Product registration form'!Q93<>\"\",'Product registration form'!Q93,\"\")","v":""},null,"",null,"",null,"",null,"",null,null,"",null,"",null,"",null,"",null,""]
[{"$f":"IF('Product registration form'!U94<>\"\",'Product registration form'!U94,\"\")","v":""},{"$f":"IF('Product registration form'!Q94<>\"\",'Product registration form'!Q94,\"\")","v":""},null,"",null,"",null,"",null,"",null,null,"",null,"",null,"",null,"",null,""]
[{"$f":"IF('Product registration form'!U95<>\"\",'Product registration form'!U95,\"\")","v":""},{"$f":"IF('Product registration form'!Q95<>\"\",'Product registration form'!Q95,\"\")","v":""},null,"",null,"",null,"",null,"",null,null,"",null,"",null,"",null,"",null,""]
[{"$f":"IF('Product registration form'!U96<>\"\",'Product registration form'!U96,\"\")","v":""},{"$f":"IF('Product registration form'!Q96<>\"\",'Product registration form'!Q96,\"\")","v":""},null,"",null,"",null,"",null,"",null,null,"",null,"",null,"",null,"",null,""]
[{"$f":"IF('Product registration form'!U97<>\"\",'Product registration form'!U97,\"\")","v":""},{"$f":"IF('Product registration form'!Q97<>\"\",'Product registration form'!Q97,\"\")","v":""},null,"",null,"",null,"",null,"",null,null,"",null,"",null,"",null,"",null,""]
[{"$f":"IF('Product registration form'!U98<>\"\",'Product registration form'!U98,\"\")","v":""},{"$f":"IF('Product registration form'!Q98<>\"\",'Product registration form'!Q98,\"\")","v":""},null,"",null,"",null,"",null,"",null,null,"",null,"",null,"",null,"",null,""]
[{"$f":"IF('Product registration form'!U99<>\"\",'Product registration form'!U99,\"\")","v":""},{"$f":"IF('Product registration form'!Q99<>\"\",'Product registration form'!Q99,\"\")","v":""},null,"",null,"",null,"",null,"",null,null,"",null,"",null,"",null,"",null,""]
[{"$f":"IF('Product registration form'!U100<>\"\",'Product registration form'!U100,\"\")","v":""},{"$f":"IF('Product registration form'!Q100<>\"\",'Product registration form'!Q100,\"\")","v":""},null,"",null,"",null,"",null,"",null,null,"",null,"",null,"",null,"",null,""]
[{"$f":"IF('Product registration form'!U101<>\"\",'Product registration form'!U101,\"\")","v":""},{"$f":"IF('Product registration form'!Q101<>\"\",'Product registration form'!Q101,\"\")","v":""},null,"",null,"",null,"",null,"",null,null,"",null,"",null,"",null,"",null,""]
[{"$f":"IF('Product registration form'!U102<>\"\",'Product registration form'!U102,\"\")","v":""},{"$f":"IF('Product registration form'!Q102<>\"\",'Product registration form'!Q102,\"\")","v":""},null,"",null,"",null,"",null,"",null,null,"",null,"",null,"",null,"",null,""]
[{"$f":"IF('Product registration form'!U103<>\"\",'Product registration form'!U103,\"\")","v":""},{"$f":"IF('Product registration form'!Q103<>\"\",'Product registration form'!Q103,\"\")","v":""},null,"",null,"",null,"",null,"",null,null,"",null,"",null,"",null,"",null,""]
[{"$f":"IF('Product registration form'!U104<>\"\",'Product registration form'!U104,\"\")","v":""},{"$f":"IF('Product registration form'!Q104<>\"\",'Product registration form'!Q104,\"\")","v":""},null,"",null,"",null,"",null,"",null,null,"",null,"",null,"",null,"",null,""]
[{"$f":"IF('Product registration form'!U105<>\"\",'Product registration form'!U105,\"\")","v":""},{"$f":"IF('Product registration form'!Q105<>\"\",'Product registration form'!Q105,\"\")","v":""},null,"",null,"",null,"",null,"",null,null,"",null,"",null,"",null,"",null,""]
[{"$f":"IF('Product registration form'!U106<>\"\",'Product registration form'!U106,\"\")","v":""},{"$f":"IF('Product registration form'!Q106<>\"\",'Product registration form'!Q106,\"\")","v":""},null,"",null,"",null,"",null,"",null,null,"",null,"",null,"",null,"",null,""]
[{"$f":"IF('Product registration form'!U107<>\"\",'Product registration form'!U107,\"\")","v":""},{"$f":"IF('Product registration form'!Q107<>\"\",'Product registration form'!Q107,\"\")","v":""},null,"",null,"",null,"",null,"",null,null,"",null,"",null,"",null,"",null,""]
[{"$f":"IF('Product registration form'!U108<>\"\",'Product registration form'!U108,\"\")","v":""},{"$f":"IF('Product registration form'!Q108<>\"\",'Product registration form'!Q108,\"\")","v":""},null,"",null,"",null,"",null,"",null,null,"",null,"",null,"",null,"",null,""]
[{"$f":"IF('Product registration form'!U109<>\"\",'Product registration form'!U109,\"\")","v":""},{"$f":"IF('Product registration form'!Q109<>\"\",'Product registration form'!Q109,\"\")","v":""},null,"",null,"",null,"",null,"",null,null,"",null,"",null,"",null,"",null,""]
[{"$f":"IF('Product registration form'!U110<>\"\",'Product registration form'!U110,\"\")","v":""},{"$f":"IF('Product registration form'!Q110<>\"\",'Product registration form'!Q110,\"\")","v":""},null,"",null,"",null,"",null,"",null,null,"",null,"",null,"",null,"",null,""]
[{"$f":"IF('Product registration form'!U111<>\"\",'Product registration form'!U111,\"\")","v":""},{"$f":"IF('Product registration form'!Q111<>\"\",'Product registration form'!Q111,\"\")","v":""},null,"",null,"",null,"",null,"",null,null,"",null,"",null,"",null,"",null,""]
[{"$f":"IF('Product registration form'!U112<>\"\",'Product registration form'!U112,\"\")","v":""},{"$f":"IF('Product registration form'!Q112<>\"\",'Product registration form'!Q112,\"\")","v":""},null,"",null,"",null,"",null,"",null,null,"",null,"",null,"",null,"",null,""]
[{"$f":"IF('Product registration form'!U113<>\"\",'Product registration form'!U113,\"\")","v":""},{"$f":"IF('Product registration form'!Q113<>\"\",'Product registration form'!Q113,\"\")","v":""},null,"",null,"",null,"",null,"",null,null,"",null,"",null,"",null,"",null,""]
[{"$f":"IF('Product registration form'!U114<>\"\",'Product registration form'!U114,\"\")","v":""},{"$f":"IF('Product registration form'!Q114<>\"\",'Product registration form'!Q114,\"\")","v":""},null,"",null,"",null,"",null,"",null,null,"",null,"",null,"",null,"",null,""]
[{"$f":"IF('Product registration form'!U115<>\"\",'Product registration form'!U115,\"\")","v":""},{"$f":"IF('Product registration form'!Q115<>\"\",'Product registration form'!Q115,\"\")","v":""},null,"",null,"",null,"",null,"",null,null,"",null,"",null,"",null,"",null,""]
[{"$f":"IF('Product registration form'!U116<>\"\",'Product registration form'!U116,\"\")","v":""},{"$f":"IF('Product registration form'!Q116<>\"\",'Product registration form'!Q116,\"\")","v":""},null,"",null,"",null,"",null,"",null,null,"",null,"",null,"",null,"",null,""]
[{"$f":"IF('Product registration form'!U117<>\"\",'Product registration form'!U117,\"\")","v":""},{"$f":"IF('Product registration form'!Q117<>\"\",'Product registration form'!Q117,\"\")","v":""},null,"",null,"",null,"",null,"",null,null,"",null,"",null,"",null,"",null,""]
[{"$f":"IF('Product registration form'!U118<>\"\",'Product registration form'!U118,\"\")","v":""},{"$f":"IF('Product registration form'!Q118<>\"\",'Product registration form'!Q118,\"\")","v":""},null,"",null,"",null,"",null,"",null,null,"",null,"",null,"",null,"",null,""]
[{"$f":"IF('Product registration form'!U119<>\"\",'Product registration form'!U119,\"\")","v":""},{"$f":"IF('Product registration form'!Q119<>\"\",'Product registration form'!Q119,\"\")","v":""},null,"",null,"",null,"",null,"",null,null,"",null,"",null,"",null,"",null,""]
[{"$f":"IF('Product registration form'!U120<>\"\",'Product registration form'!U120,\"\")","v":""},{"$f":"IF('Product registration form'!Q120<>\"\",'Product registration form'!Q120,\"\")","v":""},null,"",null,"",null,"",null,"",null,null,"",null,"",null,"",null,"",null,""]
[{"$f":"IF('Product registration form'!U121<>\"\",'Product registration form'!U121,\"\")","v":""},{"$f":"IF('Product registration form'!Q121<>\"\",'Product registration form'!Q121,\"\")","v":""},null,"",null,"",null,"",null,"",null,null,"",null,"",null,"",null,"",null,""]
[{"$f":"IF('Product registration form'!U122<>\"\",'Product registration form'!U122,\"\")","v":""},{"$f":"IF('Product registration form'!Q122<>\"\",'Product registration form'!Q122,\"\")","v":""},null,"",null,"",null,"",null,"",null,null,"",null,"",null,"",null,"",null,""]
[{"$f":"IF('Product registration form'!U123<>\"\",'Product registration form'!U123,\"\")","v":""},{"$f":"IF('Product registration form'!Q123<>\"\",'Product registration form'!Q123,\"\")","v":""},null,"",null,"",null,"",null,"",null,null,"",null,"",null,"",null,"",null,""]
[{"$f":"IF('Product registration form'!U124<>\"\",'Product registration form'!U124,\"\")","v":""},{"$f":"IF('Product registration form'!Q124<>\"\",'Product registration form'!Q124,\"\")","v":""},null,"",null,"",null,"",null,"",null,null,"",null,"",null,"",null,"",null,""]
[{"$f":"IF('Product registration form'!U125<>\"\",'Product registration form'!U125,\"\")","v":""},{"$f":"IF('Product registration form'!Q125<>\"\",'Product registration form'!Q125,\"\")","v":""},null,"",null,"",null,"",null,"",null,null,"",null,"",null,"",null,"",null,""]
[{"$f":"IF('Product registration form'!U126<>\"\",'Product registration form'!U126,\"\")","v":""},{"$f":"IF('Product registration form'!Q126<>\"\",'Product registration form'!Q126,\"\")","v":""},null,"",null,"",null,"",null,"",null,null,"",null,"",null,"",null,"",null,""]
[{"$f":"IF('Product registration form'!U127<>\"\",'Product registration form'!U127,\"\")","v":""},{"$f":"IF('Product registration form'!Q127<>\"\",'Product registration form'!Q127,\"\")","v":""},null,"",null,"",null,"",null,"",null,null,"",null,"",null,"",null,"",null,""]
[{"$f":"IF('Product registration form'!U128<>\"\",'Product registration form'!U128,\"\")","v":""},{"$f":"IF('Product registration form'!Q128<>\"\",'Product registration form'!Q128,\"\")","v":""},null,"",null,"",null,"",null,"",null,null,"",null,"",null,"",null,"",null,""]
[{"$f":"IF('Product registration form'!U129<>\"\",'Product registration form'!U129,\"\")","v":""},{"$f":"IF('Product registration form'!Q129<>\"\",'Product registration form'!Q129,\"\")","v":""},null,"",null,"",null,"",null,"",null,null,"",null,"",null,"",null,"",null,""]
[{"$f":"IF('Product registration form'!U130<>\"\",'Product registration form'!U130,\"\")","v":""},{"$f":"IF('Product registration form'!Q130<>\"\",'Product registration form'!Q130,\"\")","v":""},null,"",null,"",null,"",null,"",null,null,"",null,"",null,"",null,"",null,""]
[{"$f":"IF('Product registration form'!U131<>\"\",'Product registration form'!U131,\"\")","v":""},{"$f":"IF('Product registration form'!Q131<>\"\",'Product registration form'!Q131,\"\")","v":""},null,"",null,"",null,"",null,"",null,null,"",null,"",null,"",null,"",null,""]
[{"$f":"IF('Product registration form'!U132<>\"\",'Product registration form'!U132,\"\")","v":""},{"$f":"IF('Product registration form'!Q132<>\"\",'Product registration form'!Q132,\"\")","v":""},null,"",null,"",null,"",null,{"$f":"IF(I132<>\"\",LEN(I132),\"\")","v":""},null,null,"",null,"",null,"",null,"",null,""]
[{"$f":"IF('Product registration form'!U133<>\"\",'Product registration form'!U133,\"\")","v":""},{"$f":"IF('Product registration form'!Q133<>\"\",'Product registration form'!Q133,\"\")","v":""},null,"",null,"",null,"",null,{"$f":"IF(I133<>\"\",LEN(I133),\"\")","v":""},null,null,{"$f":"IF(L133<>\"\",LEN(L133),\"\")","v":""},null,"",null,"",null,"",null,{"$f":"IF(T133<>\"\",LEN(T133),\"\")","v":""}]
[{"$f":"IF('Product registration form'!U134<>\"\",'Product registration form'!U134,\"\")","v":""},{"$f":"IF('Product registration form'!Q134<>\"\",'Product registration form'!Q134,\"\")","v":""},null,{"$f":"IF(C134<>\"\",LEN(C134),\"\")","v":""},null,{"$f":"IF(E134<>\"\",LEN(E134),\"\")","v":""},null,{"$f":"IF(G134<>\"\",LEN(G134),\"\")","v":""},null,"",null,null,"",null,{"$f":"IF(N134<>\"\",LEN(N134),\"\")","v":""},null,{"$f":"IF(P134<>\"\",LEN(P134),\"\")","v":""},null,{"$f":"IF(R134<>\"\",LEN(R134),\"\")","v":""},null,""]
[{"$f":"IF('Product registration form'!U135<>\"\",'Product registration form'!U135,\"\")","v":""},{"$f":"IF('Product registration form'!Q135<>\"\",'Product registration form'!Q135,\"\")","v":""},null,"",null,"",null,"",null,"",null,null,"",null,"",null,"",null,"",null,""]
[{"$f":"IF('Product registration form'!U136<>\"\",'Product registration form'!U136,\"\")","v":""},{"$f":"IF('Product registration form'!Q136<>\"\",'Product registration form'!Q136,\"\")","v":""},null,"",null,"",null,"",null,"",null,null,"",null,"",null,"",null,"",null,""]
[{"$f":"IF('Product registration form'!U137<>\"\",'Product registration form'!U137,\"\")","v":""},{"$f":"IF('Product registration form'!Q137<>\"\",'Product registration form'!Q137,\"\")","v":""},null,"",null,"",null,"",null,"",null,null,"",null,"",null,"",null,"",null,""]
[{"$f":"IF('Product registration form'!U138<>\"\",'Product registration form'!U138,\"\")","v":""},{"$f":"IF('Product registration form'!Q138<>\"\",'Product registration form'!Q138,\"\")","v":""},null,"",null,"",null,"",null,"",null,null,"",null,"",null,"",null,"",null,""]
[{"$f":"IF('Product registration form'!U139<>\"\",'Product registration form'!U139,\"\")","v":""},{"$f":"IF('Product registration form'!Q139<>\"\",'Product registration form'!Q139,\"\")","v":""},null,"",null,"",null,"",null,"",null,null,"",null,"",null,"",null,"",null,""]
[{"$f":"IF('Product registration form'!U140<>\"\",'Product registration form'!U140,\"\")","v":""},{"$f":"IF('Product registration form'!Q140<>\"\",'Product registration form'!Q140,\"\")","v":""},null,"",null,"",null,"",null,"",null,null,"",null,"",null,"",null,"",null,""]
[{"$f":"IF('Product registration form'!U141<>\"\",'Product registration form'!U141,\"\")","v":""},{"$f":"IF('Product registration form'!Q141<>\"\",'Product registration form'!Q141,\"\")","v":""},null,"",null,"",null,"",null,"",null,null,"",null,"",null,"",null,"",null,""]
[{"$f":"IF('Product registration form'!U142<>\"\",'Product registration form'!U142,\"\")","v":""},{"$f":"IF('Product registration form'!Q142<>\"\",'Product registration form'!Q142,\"\")","v":""},null,"",null,"",null,"",null,"",null,null,"",null,"",null,"",null,"",null,""]
[{"$f":"IF('Product registration form'!U143<>\"\",'Product registration form'!U143,\"\")","v":""},{"$f":"IF('Product registration form'!Q143<>\"\",'Product registration form'!Q143,\"\")","v":""},null,"",null,"",null,"",null,"",null,null,"",null,"",null,"",null,"",null,""]
[{"$f":"IF('Product registration form'!U144<>\"\",'Product registration form'!U144,\"\")","v":""},{"$f":"IF('Product registration form'!Q144<>\"\",'Product registration form'!Q144,\"\")","v":""},null,"",null,"",null,"",null,"",null,null,"",null,"",null,"",null,"",null,""]
[{"$f":"IF('Product registration form'!U145<>\"\",'Product registration form'!U145,\"\")","v":""},{"$f":"IF('Product registration form'!Q145<>\"\",'Product registration form'!Q145,\"\")","v":""},null,"",null,"",null,"",null,"",null,null,"",null,"",null,"",null,"",null,""]
[{"$f":"IF('Product registration form'!U146<>\"\",'Product registration form'!U146,\"\")","v":""},{"$f":"IF('Product registration form'!Q146<>\"\",'Product registration form'!Q146,\"\")","v":""},null,"",null,"",null,"",null,"",null,null,"",null,"",null,"",null,"",null,""]
[{"$f":"IF('Product registration form'!U147<>\"\",'Product registration form'!U147,\"\")","v":""},{"$f":"IF('Product registration form'!Q147<>\"\",'Product registration form'!Q147,\"\")","v":""},null,"",null,"",null,"",null,"",null,null,"",null,"",null,"",null,"",null,""]
[{"$f":"IF('Product registration form'!U148<>\"\",'Product registration form'!U148,\"\")","v":""},{"$f":"IF('Product registration form'!Q148<>\"\",'Product registration form'!Q148,\"\")","v":""},null,"",null,"",null,"",null,"",null,null,"",null,"",null,"",null,"",null,""]
[{"$f":"IF('Product registration form'!U149<>\"\",'Product registration form'!U149,\"\")","v":""},{"$f":"IF('Product registration form'!Q149<>\"\",'Product registration form'!Q149,\"\")","v":""},null,"",null,"",null,"",null,"",null,null,"",null,"",null,"",null,"",null,""]
[{"$f":"IF('Product registration form'!U150<>\"\",'Product registration form'!U150,\"\")","v":""},{"$f":"IF('Product registration form'!Q150<>\"\",'Product registration form'!Q150,\"\")","v":""},null,"",null,"",null,"",null,"",null,null,"",null,"",null,"",null,"",null,""]
[{"$f":"IF('Product registration form'!U151<>\"\",'Product registration form'!U151,\"\")","v":""},{"$f":"IF('Product registration form'!Q151<>\"\",'Product registration form'!Q151,\"\")","v":""},null,"",null,"",null,"",null,"",null,null,"",null,"",null,"",null,"",null,""]
[{"$f":"IF('Product registration form'!U152<>\"\",'Product registration form'!U152,\"\")","v":""},{"$f":"IF('Product registration form'!Q152<>\"\",'Product registration form'!Q152,\"\")","v":""},null,"",null,"",null,"",null,"",null,null,"",null,"",null,"",null,"",null,""]
[{"$f":"IF('Product registration form'!U153<>\"\",'Product registration form'!U153,\"\")","v":""},{"$f":"IF('Product registration form'!Q153<>\"\",'Product registration form'!Q153,\"\")","v":""},null,"",null,"",null,"",null,"",null,null,"",null,"",null,"",null,"",null,""]
[{"$f":"IF('Product registration form'!U154<>\"\",'Product registration form'!U154,\"\")","v":""},{"$f":"IF('Product registration form'!Q154<>\"\",'Product registration form'!Q154,\"\")","v":""},null,"",null,"",null,"",null,"",null,null,"",null,"",null,"",null,"",null,""]
[{"$f":"IF('Product registration form'!U155<>\"\",'Product registration form'!U155,\"\")","v":""},{"$f":"IF('Product registration form'!Q155<>\"\",'Product registration form'!Q155,\"\")","v":""},null,"",null,"",null,"",null,"",null,null,"",null,"",null,"",null,"",null,""]
[{"$f":"IF('Product registration form'!U156<>\"\",'Product registration form'!U156,\"\")","v":""},{"$f":"IF('Product registration form'!Q156<>\"\",'Product registration form'!Q156,\"\")","v":""},null,"",null,"",null,"",null,"",null,null,"",null,"",null,"",null,"",null,""]
[{"$f":"IF('Product registration form'!U157<>\"\",'Product registration form'!U157,\"\")","v":""},{"$f":"IF('Product registration form'!Q157<>\"\",'Product registration form'!Q157,\"\")","v":""},null,"",null,"",null,"",null,"",null,null,"",null,"",null,"",null,"",null,""]
[{"$f":"IF('Product registration form'!U158<>\"\",'Product registration form'!U158,\"\")","v":""},{"$f":"IF('Product registration form'!Q158<>\"\",'Product registration form'!Q158,\"\")","v":""},null,"",null,"",null,"",null,"",null,null,"",null,"",null,"",null,"",null,""]
[{"$f":"IF('Product registration form'!U159<>\"\",'Product registration form'!U159,\"\")","v":""},{"$f":"IF('Product registration form'!Q159<>\"\",'Product registration form'!Q159,\"\")","v":""},null,"",null,"",null,"",null,"",null,null,"",null,"",null,"",null,"",null,""]
[{"$f":"IF('Product registration form'!U160<>\"\",'Product registration form'!U160,\"\")","v":""},{"$f":"IF('Product registration form'!Q160<>\"\",'Product registration form'!Q160,\"\")","v":""},null,"",null,"",null,"",null,"",null,null,"",null,"",null,"",null,"",null,""]
[{"$f":"IF('Product registration form'!U161<>\"\",'Product registration form'!U161,\"\")","v":""},{"$f":"IF('Product registration form'!Q161<>\"\",'Product registration form'!Q161,\"\")","v":""},null,"",null,"",null,"",null,"",null,null,"",null,"",null,"",null,"",null,""]
[{"$f":"IF('Product registration form'!U162<>\"\",'Product registration form'!U162,\"\")","v":""},{"$f":"IF('Product registration form'!Q162<>\"\",'Product registration form'!Q162,\"\")","v":""},null,"",null,"",null,"",null,"",null,null,"",null,"",null,"",null,"",null,""]
[{"$f":"IF('Product registration form'!U163<>\"\",'Product registration form'!U163,\"\")","v":""},{"$f":"IF('Product registration form'!Q163<>\"\",'Product registration form'!Q163,\"\")","v":""},null,"",null,"",null,"",null,"",null,null,"",null,"",null,"",null,"",null,""]
[{"$f":"IF('Product registration form'!U164<>\"\",'Product registration form'!U164,\"\")","v":""},{"$f":"IF('Product registration form'!Q164<>\"\",'Product registration form'!Q164,\"\")","v":""},null,"",null,"",null,"",null,"",null,null,"",null,"",null,"",null,"",null,""]
[{"$f":"IF('Product registration form'!U165<>\"\",'Product registration form'!U165,\"\")","v":""},{"$f":"IF('Product registration form'!Q165<>\"\",'Product registration form'!Q165,\"\")","v":""},null,"",null,"",null,"",null,"",null,null,"",null,"",null,"",null,"",null,""]
[{"$f":"IF('Product registration form'!U166<>\"\",'Product registration form'!U166,\"\")","v":""},{"$f":"IF('Product registration form'!Q166<>\"\",'Product registration form'!Q166,\"\")","v":""},null,"",null,"",null,"",null,"",null,null,"",null,"",null,"",null,"",null,""]
[{"$f":"IF('Product registration form'!U167<>\"\",'Product registration form'!U167,\"\")","v":""},{"$f":"IF('Product registration form'!Q167<>\"\",'Product registration form'!Q167,\"\")","v":""},null,"",null,"",null,"",null,"",null,null,"",null,"",null,"",null,"",null,""]
[{"$f":"IF('Product registration form'!U168<>\"\",'Product registration form'!U168,\"\")","v":""},{"$f":"IF('Product registration form'!Q168<>\"\",'Product registration form'!Q168,\"\")","v":""},null,"",null,"",null,"",null,"",null,null,"",null,"",null,"",null,"",null,""]
[{"$f":"IF('Product registration form'!U169<>\"\",'Product registration form'!U169,\"\")","v":""},{"$f":"IF('Product registration form'!Q169<>\"\",'Product registration form'!Q169,\"\")","v":""},null,"",null,"",null,"",null,"",null,null,"",null,"",null,"",null,"",null,""]
[{"$f":"IF('Product registration form'!U170<>\"\",'Product registration form'!U170,\"\")","v":""},{"$f":"IF('Product registration form'!Q170<>\"\",'Product registration form'!Q170,\"\")","v":""},null,"",null,"",null,"",null,"",null,null,"",null,"",null,"",null,"",null,""]
[{"$f":"IF('Product registration form'!U171<>\"\",'Product registration form'!U171,\"\")","v":""},{"$f":"IF('Product registration form'!Q171<>\"\",'Product registration form'!Q171,\"\")","v":""},null,"",null,"",null,"",null,"",null,null,"",null,"",null,"",null,"",null,""]
[{"$f":"IF('Product registration form'!U172<>\"\",'Product registration form'!U172,\"\")","v":""},{"$f":"IF('Product registration form'!Q172<>\"\",'Product registration form'!Q172,\"\")","v":""},null,"",null,"",null,"",null,"",null,null,"",null,"",null,"",null,"",null,""]
[{"$f":"IF('Product registration form'!U173<>\"\",'Product registration form'!U173,\"\")","v":""},{"$f":"IF('Product registration form'!Q173<>\"\",'Product registration form'!Q173,\"\")","v":""},null,"",null,"",null,"",null,"",null,null,"",null,"",null,"",null,"",null,""]
[{"$f":"IF('Product registration form'!U174<>\"\",'Product registration form'!U174,\"\")","v":""},{"$f":"IF('Product registration form'!Q174<>\"\",'Product registration form'!Q174,\"\")","v":""},null,"",null,"",null,"",null,"",null,null,"",null,"",null,"",null,"",null,""]
[{"$f":"IF('Product registration form'!U175<>\"\",'Product registration form'!U175,\"\")","v":""},{"$f":"IF('Product registration form'!Q175<>\"\",'Product registration form'!Q175,\"\")","v":""},null,"",null,"",null,"",null,"",null,null,"",null,"",null,"",null,"",null,""]
[{"$f":"IF('Product registration form'!U176<>\"\",'Product registration form'!U176,\"\")","v":""},{"$f":"IF('Product registration form'!Q176<>\"\",'Product registration form'!Q176,\"\")","v":""},null,"",null,"",null,"",null,"",null,null,"",null,"",null,"",null,"",null,""]
[{"$f":"IF('Product registration form'!U177<>\"\",'Product registration form'!U177,\"\")","v":""},{"$f":"IF('Product registration form'!Q177<>\"\",'Product registration form'!Q177,\"\")","v":""},null,"",null,"",null,"",null,"",null,null,"",null,"",null,"",null,"",null,""]
[{"$f":"IF('Product registration form'!U178<>\"\",'Product registration form'!U178,\"\")","v":""},{"$f":"IF('Product registration form'!Q178<>\"\",'Product registration form'!Q178,\"\")","v":""},null,"",null,"",null,"",null,"",null,null,"",null,"",null,"",null,"",null,""]
[{"$f":"IF('Product registration form'!U179<>\"\",'Product registration form'!U179,\"\")","v":""},{"$f":"IF('Product registration form'!Q179<>\"\",'Product registration form'!Q179,\"\")","v":""},null,"",null,"",null,"",null,"",null,null,"",null,"",null,"",null,"",null,""]
[{"$f":"IF('Product registration form'!U180<>\"\",'Product registration form'!U180,\"\")","v":""},{"$f":"IF('Product registration form'!Q180<>\"\",'Product registration form'!Q180,\"\")","v":""},null,"",null,"",null,"",null,"",null,null,"",null,"",null,"",null,"",null,""]
[{"$f":"IF('Product registration form'!U181<>\"\",'Product registration form'!U181,\"\")","v":""},{"$f":"IF('Product registration form'!Q181<>\"\",'Product registration form'!Q181,\"\")","v":""},null,"",null,"",null,"",null,"",null,null,"",null,"",null,"",null,"",null,""]
[{"$f":"IF('Product registration form'!U182<>\"\",'Product registration form'!U182,\"\")","v":""},{"$f":"IF('Product registration form'!Q182<>\"\",'Product registration form'!Q182,\"\")","v":""},null,"",null,"",null,"",null,"",null,null,"",null,"",null,"",null,"",null,""]
[{"$f":"IF('Product registration form'!U183<>\"\",'Product registration form'!U183,\"\")","v":""},{"$f":"IF('Product registration form'!Q183<>\"\",'Product registration form'!Q183,\"\")","v":""},null,"",null,"",null,"",null,"",null,null,"",null,"",null,"",null,"",null,""]
[{"$f":"IF('Product registration form'!U184<>\"\",'Product registration form'!U184,\"\")","v":""},{"$f":"IF('Product registration form'!Q184<>\"\",'Product registration form'!Q184,\"\")","v":""},null,"",null,"",null,"",null,"",null,null,"",null,"",null,"",null,"",null,""]
[{"$f":"IF('Product registration form'!U185<>\"\",'Product registration form'!U185,\"\")","v":""},{"$f":"IF('Product registration form'!Q185<>\"\",'Product registration form'!Q185,\"\")","v":""},null,"",null,"",null,"",null,"",null,null,"",null,"",null,"",null,"",null,""]
[{"$f":"IF('Product registration form'!U186<>\"\",'Product registration form'!U186,\"\")","v":""},{"$f":"IF('Product registration form'!Q186<>\"\",'Product registration form'!Q186,\"\")","v":""},null,"",null,"",null,"",null,"",null,null,"",null,"",null,"",null,"",null,""]
[{"$f":"IF('Product registration form'!U187<>\"\",'Product registration form'!U187,\"\")","v":""},{"$f":"IF('Product registration form'!Q187<>\"\",'Product registration form'!Q187,\"\")","v":""},null,"",null,"",null,"",null,{"$f":"IF(I187<>\"\",LEN(I187),\"\")","v":""},null,null,{"$f":"IF(L187<>\"\",LEN(L187),\"\")","v":""},null,"",null,"",null,"",null,{"$f":"IF(T187<>\"\",LEN(T187),\"\")","v":""}]
[{"$f":"IF('Product registration form'!U188<>\"\",'Product registration form'!U188,\"\")","v":""},{"$f":"IF('Product registration form'!Q188<>\"\",'Product registration form'!Q188,\"\")","v":""},null,"",null,"",null,"",null,"",null,null,"",null,"",null,"",null,"",null,""]
[{"$f":"IF('Product registration form'!U189<>\"\",'Product registration form'!U189,\"\")","v":""},{"$f":"IF('Product registration form'!Q189<>\"\",'Product registration form'!Q189,\"\")","v":""},null,"",null,"",null,"",null,"",null,null,"",null,"",null,"",null,"",null,""]
[{"$f":"IF('Product registration form'!U190<>\"\",'Product registration form'!U190,\"\")","v":""},{"$f":"IF('Product registration form'!Q190<>\"\",'Product registration form'!Q190,\"\")","v":""},null,"",null,"",null,"",null,"",null,null,"",null,"",null,"",null,"",null,""]
[{"$f":"IF('Product registration form'!U191<>\"\",'Product registration form'!U191,\"\")","v":""},{"$f":"IF('Product registration form'!Q191<>\"\",'Product registration form'!Q191,\"\")","v":""},null,"",null,"",null,"",null,"",null,null,"",null,"",null,"",null,"",null,""]
[{"$f":"IF('Product registration form'!U192<>\"\",'Product registration form'!U192,\"\")","v":""},{"$f":"IF('Product registration form'!Q192<>\"\",'Product registration form'!Q192,\"\")","v":""},null,"",null,"",null,"",null,"",null,null,"",null,"",null,"",null,"",null,""]
[{"$f":"IF('Product registration form'!U193<>\"\",'Product registration form'!U193,\"\")","v":""},{"$f":"IF('Product registration form'!Q193<>\"\",'Product registration form'!Q193,\"\")","v":""},null,"",null,"",null,"",null,"",null,null,"",null,"",null,"",null,"",null,""]
[{"$f":"IF('Product registration form'!U194<>\"\",'Product registration form'!U194,\"\")","v":""},{"$f":"IF('Product registration form'!Q194<>\"\",'Product registration form'!Q194,\"\")","v":""},null,"",null,"",null,"",null,"",null,null,"",null,"",null,"",null,"",null,""]
[{"$f":"IF('Product registration form'!U195<>\"\",'Product registration form'!U195,\"\")","v":""},{"$f":"IF('Product registration form'!Q195<>\"\",'Product registration form'!Q195,\"\")","v":""},null,"",null,"",null,"",null,"",null,null,"",null,"",null,"",null,"",null,""]
[{"$f":"IF('Product registration form'!U196<>\"\",'Product registration form'!U196,\"\")","v":""},{"$f":"IF('Product registration form'!Q196<>\"\",'Product registration form'!Q196,\"\")","v":""},null,"",null,"",null,"",null,"",null,null,"",null,"",null,"",null,"",null,""]
[{"$f":"IF('Product registration form'!U197<>\"\",'Product registration form'!U197,\"\")","v":""},{"$f":"IF('Product registration form'!Q197<>\"\",'Product registration form'!Q197,\"\")","v":""},null,"",null,"",null,"",null,"",null,null,"",null,"",null,"",null,"",null,""]
[{"$f":"IF('Product registration form'!U198<>\"\",'Product registration form'!U198,\"\")","v":""},{"$f":"IF('Product registration form'!Q198<>\"\",'Product registration form'!Q198,\"\")","v":""},null,{"$f":"IF(C198<>\"\",LEN(C198),\"\")","v":""},null,{"$f":"IF(E198<>\"\",LEN(E198),\"\")","v":""},null,{"$f":"IF(G198<>\"\",LEN(G198),\"\")","v":""},null,"",null,null,"",null,{"$f":"IF(N198<>\"\",LEN(N198),\"\")","v":""},null,{"$f":"IF(P198<>\"\",LEN(P198),\"\")","v":""},null,{"$f":"IF(R198<>\"\",LEN(R198),\"\")","v":""},null,""]
[{"$f":"IF('Product registration form'!U199<>\"\",'Product registration form'!U199,\"\")","v":""},{"$f":"IF('Product registration form'!Q199<>\"\",'Product registration form'!Q199,\"\")","v":""},null,"",null,"",null,"",null,"",null,null,"",null,"",null,"",null,"",null,""]
[{"$f":"IF('Product registration form'!U200<>\"\",'Product registration form'!U200,\"\")","v":""},{"$f":"IF('Product registration form'!Q200<>\"\",'Product registration form'!Q200,\"\")","v":""},null,"",null,"",null,"",null,"",null,null,"",null,"",null,"",null,"",null,""]

{"sheet":"Bottle deposit","index":3,"n_rows":200,"n_cols":10,"rows_kept":200,"cut":false,"hidden":false,"merged":[[2,1,3,1],[2,6,2,9],[2,0,3,0],[2,2,2,5]]}
[]
[null,null,null,"To be filled by vendor",null,"To be filled by buying dep."]
["GTIN","Article description","Deposit sales unit",null,null,null,"Deposit (Crate/Tray) order unit"]
[null,null,"DS Article No.","Deposit type","Deposit GTIN EA","Number of deposits in EA","DS Article No.","Description","Crate/Tray GTIN","Number of Crates/Trays  pr. order unit"]
[{"$f":"IF('Product registration form'!U5<>\"\",'Product registration form'!U5,\"\")","v":""},{"$f":"IF('Product registration form'!Q5<>\"\",'Product registration form'!Q5,\"\")","v":""}]
[{"$f":"IF('Product registration form'!U6<>\"\",'Product registration form'!U6,\"\")","v":""},{"$f":"IF('Product registration form'!Q6<>\"\",'Product registration form'!Q6,\"\")","v":""}]
[{"$f":"IF('Product registration form'!U7<>\"\",'Product registration form'!U7,\"\")","v":""},{"$f":"IF('Product registration form'!Q7<>\"\",'Product registration form'!Q7,\"\")","v":""}]
[{"$f":"IF('Product registration form'!U8<>\"\",'Product registration form'!U8,\"\")","v":""},{"$f":"IF('Product registration form'!Q8<>\"\",'Product registration form'!Q8,\"\")","v":""}]
[{"$f":"IF('Product registration form'!U9<>\"\",'Product registration form'!U9,\"\")","v":""},{"$f":"IF('Product registration form'!Q9<>\"\",'Product registration form'!Q9,\"\")","v":""}]
[{"$f":"IF('Product registration form'!U10<>\"\",'Product registration form'!U10,\"\")","v":""},{"$f":"IF('Product registration form'!Q10<>\"\",'Product registration form'!Q10,\"\")","v":""}]
[{"$f":"IF('Product registration form'!U11<>\"\",'Product registration form'!U11,\"\")","v":""},{"$f":"IF('Product registration form'!Q11<>\"\",'Product registration form'!Q11,\"\")","v":""}]
[{"$f":"IF('Product registration form'!U12<>\"\",'Product registration form'!U12,\"\")","v":""},{"$f":"IF('Product registration form'!Q12<>\"\",'Product registration form'!Q12,\"\")","v":""}]
[{"$f":"IF('Product registration form'!U13<>\"\",'Product registration form'!U13,\"\")","v":""},{"$f":"IF('Product registration form'!Q13<>\"\",'Product registration form'!Q13,\"\")","v":""}]
[{"$f":"IF('Product registration form'!U14<>\"\",'Product registration form'!U14,\"\")","v":""},{"$f":"IF('Product registration form'!Q14<>\"\",'Product registration form'!Q14,\"\")","v":""}]
[{"$f":"IF('Product registration form'!U15<>\"\",'Product registration form'!U15,\"\")","v":""},{"$f":"IF('Product registration form'!Q15<>\"\",'Product registration form'!Q15,\"\")","v":""}]
[{"$f":"IF('Product registration form'!U16<>\"\",'Product registration form'!U16,\"\")","v":""},{"$f":"IF('Product registration form'!Q16<>\"\",'Product registration form'!Q16,\"\")","v":""}]
[{"$f":"IF('Product registration form'!U17<>\"\",'Product registration form'!U17,\"\")","v":""},{"$f":"IF('Product registration form'!Q17<>\"\",'Product registration form'!Q17,\"\")","v":""}]
[{"$f":"IF('Product registration form'!U18<>\"\",'Product registration form'!U18,\"\")","v":""},{"$f":"IF('Product registration form'!Q18<>\"\",'Product registration form'!Q18,\"\")","v":""}]
[{"$f":"IF('Product registration form'!U19<>\"\",'Product registration form'!U19,\"\")","v":""},{"$f":"IF('Product registration form'!Q19<>\"\",'Product registration form'!Q19,\"\")","v":""}]
[{"$f":"IF('Product registration form'!U20<>\"\",'Product registration form'!U20,\"\")","v":""},{"$f":"IF('Product registration form'!Q20<>\"\",'Product registration form'!Q20,\"\")","v":""}]
[{"$f":"IF('Product registration form'!U21<>\"\",'Product registration form'!U21,\"\")","v":""},{"$f":"IF('Product registration form'!Q21<>\"\",'Product registration form'!Q21,\"\")","v":""}]
[{"$f":"IF('Product registration form'!U22<>\"\",'Product registration form'!U22,\"\")","v":""},{"$f":"IF('Product registration form'!Q22<>\"\",'Product registration form'!Q22,\"\")","v":""}]
[{"$f":"IF('Product registration form'!U23<>\"\",'Product registration form'!U23,\"\")","v":""},{"$f":"IF('Product registration form'!Q23<>\"\",'Product registration form'!Q23,\"\")","v":""}]
[{"$f":"IF('Product registration form'!U24<>\"\",'Product registration form'!U24,\"\")","v":""},{"$f":"IF('Product registration form'!Q24<>\"\",'Product registration form'!Q24,\"\")","v":""}]
[{"$f":"IF('Product registration form'!U25<>\"\",'Product registration form'!U25,\"\")","v":""},{"$f":"IF('Product registration form'!Q25<>\"\",'Product registration form'!Q25,\"\")","v":""}]
[{"$f":"IF('Product registration form'!U26<>\"\",'Product registration form'!U26,\"\")","v":""},{"$f":"IF('Product registration form'!Q26<>\"\",'Product registration form'!Q26,\"\")","v":""}]
[{"$f":"IF('Product registration form'!U27<>\"\",'Product registration form'!U27,\"\")","v":""},{"$f":"IF('Product registration form'!Q27<>\"\",'Product registration form'!Q27,\"\")","v":""}]
[{"$f":"IF('Product registration form'!U28<>\"\",'Product registration form'!U28,\"\")","v":""},{"$f":"IF('Product registration form'!Q28<>\"\",'Product registration form'!Q28,\"\")","v":""}]
[{"$f":"IF('Product registration form'!U29<>\"\",'Product registration form'!U29,\"\")","v":""},{"$f":"IF('Product registration form'!Q29<>\"\",'Product registration form'!Q29,\"\")","v":""}]
[{"$f":"IF('Product registration form'!U30<>\"\",'Product registration form'!U30,\"\")","v":""},{"$f":"IF('Product registration form'!Q30<>\"\",'Product registration form'!Q30,\"\")","v":""}]
[{"$f":"IF('Product registration form'!U31<>\"\",'Product registration form'!U31,\"\")","v":""},{"$f":"IF('Product registration form'!Q31<>\"\",'Product registration form'!Q31,\"\")","v":""}]
[{"$f":"IF('Product registration form'!U32<>\"\",'Product registration form'!U32,\"\")","v":""},{"$f":"IF('Product registration form'!Q32<>\"\",'Product registration form'!Q32,\"\")","v":""}]
[{"$f":"IF('Product registration form'!U33<>\"\",'Product registration form'!U33,\"\")","v":""},{"$f":"IF('Product registration form'!Q33<>\"\",'Product registration form'!Q33,\"\")","v":""}]
[{"$f":"IF('Product registration form'!U34<>\"\",'Product registration form'!U34,\"\")","v":""},{"$f":"IF('Product registration form'!Q34<>\"\",'Product registration form'!Q34,\"\")","v":""}]
[{"$f":"IF('Product registration form'!U35<>\"\",'Product registration form'!U35,\"\")","v":""},{"$f":"IF('Product registration form'!Q35<>\"\",'Product registration form'!Q35,\"\")","v":""}]
[{"$f":"IF('Product registration form'!U36<>\"\",'Product registration form'!U36,\"\")","v":""},{"$f":"IF('Product registration form'!Q36<>\"\",'Product registration form'!Q36,\"\")","v":""}]
[{"$f":"IF('Product registration form'!U37<>\"\",'Product registration form'!U37,\"\")","v":""},{"$f":"IF('Product registration form'!Q37<>\"\",'Product registration form'!Q37,\"\")","v":""}]
[{"$f":"IF('Product registration form'!U38<>\"\",'Product registration form'!U38,\"\")","v":""},{"$f":"IF('Product registration form'!Q38<>\"\",'Product registration form'!Q38,\"\")","v":""}]
[{"$f":"IF('Product registration form'!U39<>\"\",'Product registration form'!U39,\"\")","v":""},{"$f":"IF('Product registration form'!Q39<>\"\",'Product registration form'!Q39,\"\")","v":""}]
[{"$f":"IF('Product registration form'!U40<>\"\",'Product registration form'!U40,\"\")","v":""},{"$f":"IF('Product registration form'!Q40<>\"\",'Product registration form'!Q40,\"\")","v":""}]
[{"$f":"IF('Product registration form'!U41<>\"\",'Product registration form'!U41,\"\")","v":""},{"$f":"IF('Product registration form'!Q41<>\"\",'Product registration form'!Q41,\"\")","v":""}]
[{"$f":"IF('Product registration form'!U42<>\"\",'Product registration form'!U42,\"\")","v":""},{"$f":"IF('Product registration form'!Q42<>\"\",'Product registration form'!Q42,\"\")","v":""}]
[{"$f":"IF('Product registration form'!U43<>\"\",'Product registration form'!U43,\"\")","v":""},{"$f":"IF('Product registration form'!Q43<>\"\",'Product registration form'!Q43,\"\")","v":""}]
[{"$f":"IF('Product registration form'!U44<>\"\",'Product registration form'!U44,\"\")","v":""},{"$f":"IF('Product registration form'!Q44<>\"\",'Product registration form'!Q44,\"\")","v":""}]
[{"$f":"IF('Product registration form'!U45<>\"\",'Product registration form'!U45,\"\")","v":""},{"$f":"IF('Product registration form'!Q45<>\"\",'Product registration form'!Q45,\"\")","v":""}]
[{"$f":"IF('Product registration form'!U46<>\"\",'Product registration form'!U46,\"\")","v":""},{"$f":"IF('Product registration form'!Q46<>\"\",'Product registration form'!Q46,\"\")","v":""}]
[{"$f":"IF('Product registration form'!U47<>\"\",'Product registration form'!U47,\"\")","v":""},{"$f":"IF('Product registration form'!Q47<>\"\",'Product registration form'!Q47,\"\")","v":""}]
[{"$f":"IF('Product registration form'!U48<>\"\",'Product registration form'!U48,\"\")","v":""},{"$f":"IF('Product registration form'!Q48<>\"\",'Product registration form'!Q48,\"\")","v":""}]
[{"$f":"IF('Product registration form'!U49<>\"\",'Product registration form'!U49,\"\")","v":""},{"$f":"IF('Product registration form'!Q49<>\"\",'Product registration form'!Q49,\"\")","v":""}]
[{"$f":"IF('Product registration form'!U50<>\"\",'Product registration form'!U50,\"\")","v":""},{"$f":"IF('Product registration form'!Q50<>\"\",'Product registration form'!Q50,\"\")","v":""}]
[{"$f":"IF('Product registration form'!U51<>\"\",'Product registration form'!U51,\"\")","v":""},{"$f":"IF('Product registration form'!Q51<>\"\",'Product registration form'!Q51,\"\")","v":""}]
[{"$f":"IF('Product registration form'!U52<>\"\",'Product registration form'!U52,\"\")","v":""},{"$f":"IF('Product registration form'!Q52<>\"\",'Product registration form'!Q52,\"\")","v":""}]
[{"$f":"IF('Product registration form'!U53<>\"\",'Product registration form'!U53,\"\")","v":""},{"$f":"IF('Product registration form'!Q53<>\"\",'Product registration form'!Q53,\"\")","v":""}]
[{"$f":"IF('Product registration form'!U54<>\"\",'Product registration form'!U54,\"\")","v":""},{"$f":"IF('Product registration form'!Q54<>\"\",'Product registration form'!Q54,\"\")","v":""}]
[{"$f":"IF('Product registration form'!U55<>\"\",'Product registration form'!U55,\"\")","v":""},{"$f":"IF('Product registration form'!Q55<>\"\",'Product registration form'!Q55,\"\")","v":""}]
[{"$f":"IF('Product registration form'!U56<>\"\",'Product registration form'!U56,\"\")","v":""},{"$f":"IF('Product registration form'!Q56<>\"\",'Product registration form'!Q56,\"\")","v":""}]
[{"$f":"IF('Product registration form'!U57<>\"\",'Product registration form'!U57,\"\")","v":""},{"$f":"IF('Product registration form'!Q57<>\"\",'Product registration form'!Q57,\"\")","v":""}]
[{"$f":"IF('Product registration form'!U58<>\"\",'Product registration form'!U58,\"\")","v":""},{"$f":"IF('Product registration form'!Q58<>\"\",'Product registration form'!Q58,\"\")","v":""}]
[{"$f":"IF('Product registration form'!U59<>\"\",'Product registration form'!U59,\"\")","v":""},{"$f":"IF('Product registration form'!Q59<>\"\",'Product registration form'!Q59,\"\")","v":""}]
[{"$f":"IF('Product registration form'!U60<>\"\",'Product registration form'!U60,\"\")","v":""},{"$f":"IF('Product registration form'!Q60<>\"\",'Product registration form'!Q60,\"\")","v":""}]
[{"$f":"IF('Product registration form'!U61<>\"\",'Product registration form'!U61,\"\")","v":""},{"$f":"IF('Product registration form'!Q61<>\"\",'Product registration form'!Q61,\"\")","v":""}]
[{"$f":"IF('Product registration form'!U62<>\"\",'Product registration form'!U62,\"\")","v":""},{"$f":"IF('Product registration form'!Q62<>\"\",'Product registration form'!Q62,\"\")","v":""}]
[{"$f":"IF('Product registration form'!U63<>\"\",'Product registration form'!U63,\"\")","v":""},{"$f":"IF('Product registration form'!Q63<>\"\",'Product registration form'!Q63,\"\")","v":""}]
[{"$f":"IF('Product registration form'!U64<>\"\",'Product registration form'!U64,\"\")","v":""},{"$f":"IF('Product registration form'!Q64<>\"\",'Product registration form'!Q64,\"\")","v":""}]
[{"$f":"IF('Product registration form'!U65<>\"\",'Product registration form'!U65,\"\")","v":""},{"$f":"IF('Product registration form'!Q65<>\"\",'Product registration form'!Q65,\"\")","v":""}]
[{"$f":"IF('Product registration form'!U66<>\"\",'Product registration form'!U66,\"\")","v":""},{"$f":"IF('Product registration form'!Q66<>\"\",'Product registration form'!Q66,\"\")","v":""}]
[{"$f":"IF('Product registration form'!U67<>\"\",'Product registration form'!U67,\"\")","v":""},{"$f":"IF('Product registration form'!Q67<>\"\",'Product registration form'!Q67,\"\")","v":""}]
[{"$f":"IF('Product registration form'!U68<>\"\",'Product registration form'!U68,\"\")","v":""},{"$f":"IF('Product registration form'!Q68<>\"\",'Product registration form'!Q68,\"\")","v":""}]
[{"$f":"IF('Product registration form'!U69<>\"\",'Product registration form'!U69,\"\")","v":""},{"$f":"IF('Product registration form'!Q69<>\"\",'Product registration form'!Q69,\"\")","v":""}]
[{"$f":"IF('Product registration form'!U70<>\"\",'Product registration form'!U70,\"\")","v":""},{"$f":"IF('Product registration form'!Q70<>\"\",'Product registration form'!Q70,\"\")","v":""}]
[{"$f":"IF('Product registration form'!U71<>\"\",'Product registration form'!U71,\"\")","v":""},{"$f":"IF('Product registration form'!Q71<>\"\",'Product registration form'!Q71,\"\")","v":""}]
[{"$f":"IF('Product registration form'!U72<>\"\",'Product registration form'!U72,\"\")","v":""},{"$f":"IF('Product registration form'!Q72<>\"\",'Product registration form'!Q72,\"\")","v":""}]
[{"$f":"IF('Product registration form'!U73<>\"\",'Product registration form'!U73,\"\")","v":""},{"$f":"IF('Product registration form'!Q73<>\"\",'Product registration form'!Q73,\"\")","v":""}]
[{"$f":"IF('Product registration form'!U74<>\"\",'Product registration form'!U74,\"\")","v":""},{"$f":"IF('Product registration form'!Q74<>\"\",'Product registration form'!Q74,\"\")","v":""}]
[{"$f":"IF('Product registration form'!U75<>\"\",'Product registration form'!U75,\"\")","v":""},{"$f":"IF('Product registration form'!Q75<>\"\",'Product registration form'!Q75,\"\")","v":""}]
[{"$f":"IF('Product registration form'!U76<>\"\",'Product registration form'!U76,\"\")","v":""},{"$f":"IF('Product registration form'!Q76<>\"\",'Product registration form'!Q76,\"\")","v":""}]
[{"$f":"IF('Product registration form'!U77<>\"\",'Product registration form'!U77,\"\")","v":""},{"$f":"IF('Product registration form'!Q77<>\"\",'Product registration form'!Q77,\"\")","v":""}]
[{"$f":"IF('Product registration form'!U78<>\"\",'Product registration form'!U78,\"\")","v":""},{"$f":"IF('Product registration form'!Q78<>\"\",'Product registration form'!Q78,\"\")","v":""}]
[{"$f":"IF('Product registration form'!U79<>\"\",'Product registration form'!U79,\"\")","v":""},{"$f":"IF('Product registration form'!Q79<>\"\",'Product registration form'!Q79,\"\")","v":""}]
[{"$f":"IF('Product registration form'!U80<>\"\",'Product registration form'!U80,\"\")","v":""},{"$f":"IF('Product registration form'!Q80<>\"\",'Product registration form'!Q80,\"\")","v":""}]
[{"$f":"IF('Product registration form'!U81<>\"\",'Product registration form'!U81,\"\")","v":""},{"$f":"IF('Product registration form'!Q81<>\"\",'Product registration form'!Q81,\"\")","v":""}]
[{"$f":"IF('Product registration form'!U82<>\"\",'Product registration form'!U82,\"\")","v":""},{"$f":"IF('Product registration form'!Q82<>\"\",'Product registration form'!Q82,\"\")","v":""}]
[{"$f":"IF('Product registration form'!U83<>\"\",'Product registration form'!U83,\"\")","v":""},{"$f":"IF('Product registration form'!Q83<>\"\",'Product registration form'!Q83,\"\")","v":""}]
[{"$f":"IF('Product registration form'!U84<>\"\",'Product registration form'!U84,\"\")","v":""},{"$f":"IF('Product registration form'!Q84<>\"\",'Product registration form'!Q84,\"\")","v":""}]
[{"$f":"IF('Product registration form'!U85<>\"\",'Product registration form'!U85,\"\")","v":""},{"$f":"IF('Product registration form'!Q85<>\"\",'Product registration form'!Q85,\"\")","v":""}]
[{"$f":"IF('Product registration form'!U86<>\"\",'Product registration form'!U86,\"\")","v":""},{"$f":"IF('Product registration form'!Q86<>\"\",'Product registration form'!Q86,\"\")","v":""}]
[{"$f":"IF('Product registration form'!U87<>\"\",'Product registration form'!U87,\"\")","v":""},{"$f":"IF('Product registration form'!Q87<>\"\",'Product registration form'!Q87,\"\")","v":""}]
[{"$f":"IF('Product registration form'!U88<>\"\",'Product registration form'!U88,\"\")","v":""},{"$f":"IF('Product registration form'!Q88<>\"\",'Product registration form'!Q88,\"\")","v":""}]
[{"$f":"IF('Product registration form'!U89<>\"\",'Product registration form'!U89,\"\")","v":""},{"$f":"IF('Product registration form'!Q89<>\"\",'Product registration form'!Q89,\"\")","v":""}]
[{"$f":"IF('Product registration form'!U90<>\"\",'Product registration form'!U90,\"\")","v":""},{"$f":"IF('Product registration form'!Q90<>\"\",'Product registration form'!Q90,\"\")","v":""}]
[{"$f":"IF('Product registration form'!U91<>\"\",'Product registration form'!U91,\"\")","v":""},{"$f":"IF('Product registration form'!Q91<>\"\",'Product registration form'!Q91,\"\")","v":""}]
[{"$f":"IF('Product registration form'!U92<>\"\",'Product registration form'!U92,\"\")","v":""},{"$f":"IF('Product registration form'!Q92<>\"\",'Product registration form'!Q92,\"\")","v":""}]
[{"$f":"IF('Product registration form'!U93<>\"\",'Product registration form'!U93,\"\")","v":""},{"$f":"IF('Product registration form'!Q93<>\"\",'Product registration form'!Q93,\"\")","v":""}]
[{"$f":"IF('Product registration form'!U94<>\"\",'Product registration form'!U94,\"\")","v":""},{"$f":"IF('Product registration form'!Q94<>\"\",'Product registration form'!Q94,\"\")","v":""}]
[{"$f":"IF('Product registration form'!U95<>\"\",'Product registration form'!U95,\"\")","v":""},{"$f":"IF('Product registration form'!Q95<>\"\",'Product registration form'!Q95,\"\")","v":""}]
[{"$f":"IF('Product registration form'!U96<>\"\",'Product registration form'!U96,\"\")","v":""},{"$f":"IF('Product registration form'!Q96<>\"\",'Product registration form'!Q96,\"\")","v":""}]
[{"$f":"IF('Product registration form'!U97<>\"\",'Product registration form'!U97,\"\")","v":""},{"$f":"IF('Product registration form'!Q97<>\"\",'Product registration form'!Q97,\"\")","v":""}]
[{"$f":"IF('Product registration form'!U98<>\"\",'Product registration form'!U98,\"\")","v":""},{"$f":"IF('Product registration form'!Q98<>\"\",'Product registration form'!Q98,\"\")","v":""}]
[{"$f":"IF('Product registration form'!U99<>\"\",'Product registration form'!U99,\"\")","v":""},{"$f":"IF('Product registration form'!Q99<>\"\",'Product registration form'!Q99,\"\")","v":""}]
[{"$f":"IF('Product registration form'!U100<>\"\",'Product registration form'!U100,\"\")","v":""},{"$f":"IF('Product registration form'!Q100<>\"\",'Product registration form'!Q100,\"\")","v":""}]
[{"$f":"IF('Product registration form'!U101<>\"\",'Product registration form'!U101,\"\")","v":""},{"$f":"IF('Product registration form'!Q101<>\"\",'Product registration form'!Q101,\"\")","v":""}]
[{"$f":"IF('Product registration form'!U102<>\"\",'Product registration form'!U102,\"\")","v":""},{"$f":"IF('Product registration form'!Q102<>\"\",'Product registration form'!Q102,\"\")","v":""}]
[{"$f":"IF('Product registration form'!U103<>\"\",'Product registration form'!U103,\"\")","v":""},{"$f":"IF('Product registration form'!Q103<>\"\",'Product registration form'!Q103,\"\")","v":""}]
[{"$f":"IF('Product registration form'!U104<>\"\",'Product registration form'!U104,\"\")","v":""},{"$f":"IF('Product registration form'!Q104<>\"\",'Product registration form'!Q104,\"\")","v":""}]
[{"$f":"IF('Product registration form'!U105<>\"\",'Product registration form'!U105,\"\")","v":""},{"$f":"IF('Product registration form'!Q105<>\"\",'Product registration form'!Q105,\"\")","v":""}]
[{"$f":"IF('Product registration form'!U106<>\"\",'Product registration form'!U106,\"\")","v":""},{"$f":"IF('Product registration form'!Q106<>\"\",'Product registration form'!Q106,\"\")","v":""}]
[{"$f":"IF('Product registration form'!U107<>\"\",'Product registration form'!U107,\"\")","v":""},{"$f":"IF('Product registration form'!Q107<>\"\",'Product registration form'!Q107,\"\")","v":""}]
[{"$f":"IF('Product registration form'!U108<>\"\",'Product registration form'!U108,\"\")","v":""},{"$f":"IF('Product registration form'!Q108<>\"\",'Product registration form'!Q108,\"\")","v":""}]
[{"$f":"IF('Product registration form'!U109<>\"\",'Product registration form'!U109,\"\")","v":""},{"$f":"IF('Product registration form'!Q109<>\"\",'Product registration form'!Q109,\"\")","v":""}]
[{"$f":"IF('Product registration form'!U110<>\"\",'Product registration form'!U110,\"\")","v":""},{"$f":"IF('Product registration form'!Q110<>\"\",'Product registration form'!Q110,\"\")","v":""}]
[{"$f":"IF('Product registration form'!U111<>\"\",'Product registration form'!U111,\"\")","v":""},{"$f":"IF('Product registration form'!Q111<>\"\",'Product registration form'!Q111,\"\")","v":""}]
[{"$f":"IF('Product registration form'!U112<>\"\",'Product registration form'!U112,\"\")","v":""},{"$f":"IF('Product registration form'!Q112<>\"\",'Product registration form'!Q112,\"\")","v":""}]
[{"$f":"IF('Product registration form'!U113<>\"\",'Product registration form'!U113,\"\")","v":""},{"$f":"IF('Product registration form'!Q113<>\"\",'Product registration form'!Q113,\"\")","v":""}]
[{"$f":"IF('Product registration form'!U114<>\"\",'Product registration form'!U114,\"\")","v":""},{"$f":"IF('Product registration form'!Q114<>\"\",'Product registration form'!Q114,\"\")","v":""}]
[{"$f":"IF('Product registration form'!U115<>\"\",'Product registration form'!U115,\"\")","v":""},{"$f":"IF('Product registration form'!Q115<>\"\",'Product registration form'!Q115,\"\")","v":""}]
[{"$f":"IF('Product registration form'!U116<>\"\",'Product registration form'!U116,\"\")","v":""},{"$f":"IF('Product registration form'!Q116<>\"\",'Product registration form'!Q116,\"\")","v":""}]
[{"$f":"IF('Product registration form'!U117<>\"\",'Product registration form'!U117,\"\")","v":""},{"$f":"IF('Product registration form'!Q117<>\"\",'Product registration form'!Q117,\"\")","v":""}]
[{"$f":"IF('Product registration form'!U118<>\"\",'Product registration form'!U118,\"\")","v":""},{"$f":"IF('Product registration form'!Q118<>\"\",'Product registration form'!Q118,\"\")","v":""}]
[{"$f":"IF('Product registration form'!U119<>\"\",'Product registration form'!U119,\"\")","v":""},{"$f":"IF('Product registration form'!Q119<>\"\",'Product registration form'!Q119,\"\")","v":""}]
[{"$f":"IF('Product registration form'!U120<>\"\",'Product registration form'!U120,\"\")","v":""},{"$f":"IF('Product registration form'!Q120<>\"\",'Product registration form'!Q120,\"\")","v":""}]
[{"$f":"IF('Product registration form'!U121<>\"\",'Product registration form'!U121,\"\")","v":""},{"$f":"IF('Product registration form'!Q121<>\"\",'Product registration form'!Q121,\"\")","v":""}]
[{"$f":"IF('Product registration form'!U122<>\"\",'Product registration form'!U122,\"\")","v":""},{"$f":"IF('Product registration form'!Q122<>\"\",'Product registration form'!Q122,\"\")","v":""}]
[{"$f":"IF('Product registration form'!U123<>\"\",'Product registration form'!U123,\"\")","v":""},{"$f":"IF('Product registration form'!Q123<>\"\",'Product registration form'!Q123,\"\")","v":""}]
[{"$f":"IF('Product registration form'!U124<>\"\",'Product registration form'!U124,\"\")","v":""},{"$f":"IF('Product registration form'!Q124<>\"\",'Product registration form'!Q124,\"\")","v":""}]
[{"$f":"IF('Product registration form'!U125<>\"\",'Product registration form'!U125,\"\")","v":""},{"$f":"IF('Product registration form'!Q125<>\"\",'Product registration form'!Q125,\"\")","v":""}]
[{"$f":"IF('Product registration form'!U126<>\"\",'Product registration form'!U126,\"\")","v":""},{"$f":"IF('Product registration form'!Q126<>\"\",'Product registration form'!Q126,\"\")","v":""}]
[{"$f":"IF('Product registration form'!U127<>\"\",'Product registration form'!U127,\"\")","v":""},{"$f":"IF('Product registration form'!Q127<>\"\",'Product registration form'!Q127,\"\")","v":""}]
[{"$f":"IF('Product registration form'!U128<>\"\",'Product registration form'!U128,\"\")","v":""},{"$f":"IF('Product registration form'!Q128<>\"\",'Product registration form'!Q128,\"\")","v":""}]
[{"$f":"IF('Product registration form'!U129<>\"\",'Product registration form'!U129,\"\")","v":""},{"$f":"IF('Product registration form'!Q129<>\"\",'Product registration form'!Q129,\"\")","v":""}]
[{"$f":"IF('Product registration form'!U130<>\"\",'Product registration form'!U130,\"\")","v":""},{"$f":"IF('Product registration form'!Q130<>\"\",'Product registration form'!Q130,\"\")","v":""}]
[{"$f":"IF('Product registration form'!U131<>\"\",'Product registration form'!U131,\"\")","v":""},{"$f":"IF('Product registration form'!Q131<>\"\",'Product registration form'!Q131,\"\")","v":""}]
[{"$f":"IF('Product registration form'!U132<>\"\",'Product registration form'!U132,\"\")","v":""},{"$f":"IF('Product registration form'!Q132<>\"\",'Product registration form'!Q132,\"\")","v":""}]
[{"$f":"IF('Product registration form'!U133<>\"\",'Product registration form'!U133,\"\")","v":""},{"$f":"IF('Product registration form'!Q133<>\"\",'Product registration form'!Q133,\"\")","v":""}]
[{"$f":"IF('Product registration form'!U134<>\"\",'Product registration form'!U134,\"\")","v":""},{"$f":"IF('Product registration form'!Q134<>\"\",'Product registration form'!Q134,\"\")","v":""}]
[{"$f":"IF('Product registration form'!U135<>\"\",'Product registration form'!U135,\"\")","v":""},{"$f":"IF('Product registration form'!Q135<>\"\",'Product registration form'!Q135,\"\")","v":""}]
[{"$f":"IF('Product registration form'!U136<>\"\",'Product registration form'!U136,\"\")","v":""},{"$f":"IF('Product registration form'!Q136<>\"\",'Product registration form'!Q136,\"\")","v":""}]
[{"$f":"IF('Product registration form'!U137<>\"\",'Product registration form'!U137,\"\")","v":""},{"$f":"IF('Product registration form'!Q137<>\"\",'Product registration form'!Q137,\"\")","v":""}]
[{"$f":"IF('Product registration form'!U138<>\"\",'Product registration form'!U138,\"\")","v":""},{"$f":"IF('Product registration form'!Q138<>\"\",'Product registration form'!Q138,\"\")","v":""}]
[{"$f":"IF('Product registration form'!U139<>\"\",'Product registration form'!U139,\"\")","v":""},{"$f":"IF('Product registration form'!Q139<>\"\",'Product registration form'!Q139,\"\")","v":""}]
[{"$f":"IF('Product registration form'!U140<>\"\",'Product registration form'!U140,\"\")","v":""},{"$f":"IF('Product registration form'!Q140<>\"\",'Product registration form'!Q140,\"\")","v":""}]
[{"$f":"IF('Product registration form'!U141<>\"\",'Product registration form'!U141,\"\")","v":""},{"$f":"IF('Product registration form'!Q141<>\"\",'Product registration form'!Q141,\"\")","v":""}]
[{"$f":"IF('Product registration form'!U142<>\"\",'Product registration form'!U142,\"\")","v":""},{"$f":"IF('Product registration form'!Q142<>\"\",'Product registration form'!Q142,\"\")","v":""}]
[{"$f":"IF('Product registration form'!U143<>\"\",'Product registration form'!U143,\"\")","v":""},{"$f":"IF('Product registration form'!Q143<>\"\",'Product registration form'!Q143,\"\")","v":""}]
[{"$f":"IF('Product registration form'!U144<>\"\",'Product registration form'!U144,\"\")","v":""},{"$f":"IF('Product registration form'!Q144<>\"\",'Product registration form'!Q144,\"\")","v":""}]
[{"$f":"IF('Product registration form'!U145<>\"\",'Product registration form'!U145,\"\")","v":""},{"$f":"IF('Product registration form'!Q145<>\"\",'Product registration form'!Q145,\"\")","v":""}]
[{"$f":"IF('Product registration form'!U146<>\"\",'Product registration form'!U146,\"\")","v":""},{"$f":"IF('Product registration form'!Q146<>\"\",'Product registration form'!Q146,\"\")","v":""}]
[{"$f":"IF('Product registration form'!U147<>\"\",'Product registration form'!U147,\"\")","v":""},{"$f":"IF('Product registration form'!Q147<>\"\",'Product registration form'!Q147,\"\")","v":""}]
[{"$f":"IF('Product registration form'!U148<>\"\",'Product registration form'!U148,\"\")","v":""},{"$f":"IF('Product registration form'!Q148<>\"\",'Product registration form'!Q148,\"\")","v":""}]
[{"$f":"IF('Product registration form'!U149<>\"\",'Product registration form'!U149,\"\")","v":""},{"$f":"IF('Product registration form'!Q149<>\"\",'Product registration form'!Q149,\"\")","v":""}]
[{"$f":"IF('Product registration form'!U150<>\"\",'Product registration form'!U150,\"\")","v":""},{"$f":"IF('Product registration form'!Q150<>\"\",'Product registration form'!Q150,\"\")","v":""}]
[{"$f":"IF('Product registration form'!U151<>\"\",'Product registration form'!U151,\"\")","v":""},{"$f":"IF('Product registration form'!Q151<>\"\",'Product registration form'!Q151,\"\")","v":""}]
[{"$f":"IF('Product registration form'!U152<>\"\",'Product registration form'!U152,\"\")","v":""},{"$f":"IF('Product registration form'!Q152<>\"\",'Product registration form'!Q152,\"\")","v":""}]
[{"$f":"IF('Product registration form'!U153<>\"\",'Product registration form'!U153,\"\")","v":""},{"$f":"IF('Product registration form'!Q153<>\"\",'Product registration form'!Q153,\"\")","v":""}]
[{"$f":"IF('Product registration form'!U154<>\"\",'Product registration form'!U154,\"\")","v":""},{"$f":"IF('Product registration form'!Q154<>\"\",'Product registration form'!Q154,\"\")","v":""}]
[{"$f":"IF('Product registration form'!U155<>\"\",'Product registration form'!U155,\"\")","v":""},{"$f":"IF('Product registration form'!Q155<>\"\",'Product registration form'!Q155,\"\")","v":""}]
[{"$f":"IF('Product registration form'!U156<>\"\",'Product registration form'!U156,\"\")","v":""},{"$f":"IF('Product registration form'!Q156<>\"\",'Product registration form'!Q156,\"\")","v":""}]
[{"$f":"IF('Product registration form'!U157<>\"\",'Product registration form'!U157,\"\")","v":""},{"$f":"IF('Product registration form'!Q157<>\"\",'Product registration form'!Q157,\"\")","v":""}]
[{"$f":"IF('Product registration form'!U158<>\"\",'Product registration form'!U158,\"\")","v":""},{"$f":"IF('Product registration form'!Q158<>\"\",'Product registration form'!Q158,\"\")","v":""}]
[{"$f":"IF('Product registration form'!U159<>\"\",'Product registration form'!U159,\"\")","v":""},{"$f":"IF('Product registration form'!Q159<>\"\",'Product registration form'!Q159,\"\")","v":""}]
[{"$f":"IF('Product registration form'!U160<>\"\",'Product registration form'!U160,\"\")","v":""},{"$f":"IF('Product registration form'!Q160<>\"\",'Product registration form'!Q160,\"\")","v":""}]
[{"$f":"IF('Product registration form'!U161<>\"\",'Product registration form'!U161,\"\")","v":""},{"$f":"IF('Product registration form'!Q161<>\"\",'Product registration form'!Q161,\"\")","v":""}]
[{"$f":"IF('Product registration form'!U162<>\"\",'Product registration form'!U162,\"\")","v":""},{"$f":"IF('Product registration form'!Q162<>\"\",'Product registration form'!Q162,\"\")","v":""}]
[{"$f":"IF('Product registration form'!U163<>\"\",'Product registration form'!U163,\"\")","v":""},{"$f":"IF('Product registration form'!Q163<>\"\",'Product registration form'!Q163,\"\")","v":""}]
[{"$f":"IF('Product registration form'!U164<>\"\",'Product registration form'!U164,\"\")","v":""},{"$f":"IF('Product registration form'!Q164<>\"\",'Product registration form'!Q164,\"\")","v":""}]
[{"$f":"IF('Product registration form'!U165<>\"\",'Product registration form'!U165,\"\")","v":""},{"$f":"IF('Product registration form'!Q165<>\"\",'Product registration form'!Q165,\"\")","v":""}]
[{"$f":"IF('Product registration form'!U166<>\"\",'Product registration form'!U166,\"\")","v":""},{"$f":"IF('Product registration form'!Q166<>\"\",'Product registration form'!Q166,\"\")","v":""}]
[{"$f":"IF('Product registration form'!U167<>\"\",'Product registration form'!U167,\"\")","v":""},{"$f":"IF('Product registration form'!Q167<>\"\",'Product registration form'!Q167,\"\")","v":""}]
[{"$f":"IF('Product registration form'!U168<>\"\",'Product registration form'!U168,\"\")","v":""},{"$f":"IF('Product registration form'!Q168<>\"\",'Product registration form'!Q168,\"\")","v":""}]
[{"$f":"IF('Product registration form'!U169<>\"\",'Product registration form'!U169,\"\")","v":""},{"$f":"IF('Product registration form'!Q169<>\"\",'Product registration form'!Q169,\"\")","v":""}]
[{"$f":"IF('Product registration form'!U170<>\"\",'Product registration form'!U170,\"\")","v":""},{"$f":"IF('Product registration form'!Q170<>\"\",'Product registration form'!Q170,\"\")","v":""}]
[{"$f":"IF('Product registration form'!U171<>\"\",'Product registration form'!U171,\"\")","v":""},{"$f":"IF('Product registration form'!Q171<>\"\",'Product registration form'!Q171,\"\")","v":""}]
[{"$f":"IF('Product registration form'!U172<>\"\",'Product registration form'!U172,\"\")","v":""},{"$f":"IF('Product registration form'!Q172<>\"\",'Product registration form'!Q172,\"\")","v":""}]
[{"$f":"IF('Product registration form'!U173<>\"\",'Product registration form'!U173,\"\")","v":""},{"$f":"IF('Product registration form'!Q173<>\"\",'Product registration form'!Q173,\"\")","v":""}]
[{"$f":"IF('Product registration form'!U174<>\"\",'Product registration form'!U174,\"\")","v":""},{"$f":"IF('Product registration form'!Q174<>\"\",'Product registration form'!Q174,\"\")","v":""}]
[{"$f":"IF('Product registration form'!U175<>\"\",'Product registration form'!U175,\"\")","v":""},{"$f":"IF('Product registration form'!Q175<>\"\",'Product registration form'!Q175,\"\")","v":""}]
[{"$f":"IF('Product registration form'!U176<>\"\",'Product registration form'!U176,\"\")","v":""},{"$f":"IF('Product registration form'!Q176<>\"\",'Product registration form'!Q176,\"\")","v":""}]
[{"$f":"IF('Product registration form'!U177<>\"\",'Product registration form'!U177,\"\")","v":""},{"$f":"IF('Product registration form'!Q177<>\"\",'Product registration form'!Q177,\"\")","v":""}]
[{"$f":"IF('Product registration form'!U178<>\"\",'Product registration form'!U178,\"\")","v":""},{"$f":"IF('Product registration form'!Q178<>\"\",'Product registration form'!Q178,\"\")","v":""}]
[{"$f":"IF('Product registration form'!U179<>\"\",'Product registration form'!U179,\"\")","v":""},{"$f":"IF('Product registration form'!Q179<>\"\",'Product registration form'!Q179,\"\")","v":""}]
[{"$f":"IF('Product registration form'!U180<>\"\",'Product registration form'!U180,\"\")","v":""},{"$f":"IF('Product registration form'!Q180<>\"\",'Product registration form'!Q180,\"\")","v":""}]
[{"$f":"IF('Product registration form'!U181<>\"\",'Product registration form'!U181,\"\")","v":""},{"$f":"IF('Product registration form'!Q181<>\"\",'Product registration form'!Q181,\"\")","v":""}]
[{"$f":"IF('Product registration form'!U182<>\"\",'Product registration form'!U182,\"\")","v":""},{"$f":"IF('Product registration form'!Q182<>\"\",'Product registration form'!Q182,\"\")","v":""}]
[{"$f":"IF('Product registration form'!U183<>\"\",'Product registration form'!U183,\"\")","v":""},{"$f":"IF('Product registration form'!Q183<>\"\",'Product registration form'!Q183,\"\")","v":""}]
[{"$f":"IF('Product registration form'!U184<>\"\",'Product registration form'!U184,\"\")","v":""},{"$f":"IF('Product registration form'!Q184<>\"\",'Product registration form'!Q184,\"\")","v":""}]
[{"$f":"IF('Product registration form'!U185<>\"\",'Product registration form'!U185,\"\")","v":""},{"$f":"IF('Product registration form'!Q185<>\"\",'Product registration form'!Q185,\"\")","v":""}]
[{"$f":"IF('Product registration form'!U186<>\"\",'Product registration form'!U186,\"\")","v":""},{"$f":"IF('Product registration form'!Q186<>\"\",'Product registration form'!Q186,\"\")","v":""}]
[{"$f":"IF('Product registration form'!U187<>\"\",'Product registration form'!U187,\"\")","v":""},{"$f":"IF('Product registration form'!Q187<>\"\",'Product registration form'!Q187,\"\")","v":""}]
[{"$f":"IF('Product registration form'!U188<>\"\",'Product registration form'!U188,\"\")","v":""},{"$f":"IF('Product registration form'!Q188<>\"\",'Product registration form'!Q188,\"\")","v":""}]
[{"$f":"IF('Product registration form'!U189<>\"\",'Product registration form'!U189,\"\")","v":""},{"$f":"IF('Product registration form'!Q189<>\"\",'Product registration form'!Q189,\"\")","v":""}]
[{"$f":"IF('Product registration form'!U190<>\"\",'Product registration form'!U190,\"\")","v":""},{"$f":"IF('Product registration form'!Q190<>\"\",'Product registration form'!Q190,\"\")","v":""}]
[{"$f":"IF('Product registration form'!U191<>\"\",'Product registration form'!U191,\"\")","v":""},{"$f":"IF('Product registration form'!Q191<>\"\",'Product registration form'!Q191,\"\")","v":""}]
[{"$f":"IF('Product registration form'!U192<>\"\",'Product registration form'!U192,\"\")","v":""},{"$f":"IF('Product registration form'!Q192<>\"\",'Product registration form'!Q192,\"\")","v":""}]
[{"$f":"IF('Product registration form'!U193<>\"\",'Product registration form'!U193,\"\")","v":""},{"$f":"IF('Product registration form'!Q193<>\"\",'Product registration form'!Q193,\"\")","v":""}]
[{"$f":"IF('Product registration form'!U194<>\"\",'Product registration form'!U194,\"\")","v":""},{"$f":"IF('Product registration form'!Q194<>\"\",'Product registration form'!Q194,\"\")","v":""}]
[{"$f":"IF('Product registration form'!U195<>\"\",'Product registration form'!U195,\"\")","v":""},{"$f":"IF('Product registration form'!Q195<>\"\",'Product registration form'!Q195,\"\")","v":""}]
[{"$f":"IF('Product registration form'!U196<>\"\",'Product registration form'!U196,\"\")","v":""},{"$f":"IF('Product registration form'!Q196<>\"\",'Product registration form'!Q196,\"\")","v":""}]
[{"$f":"IF('Product registration form'!U197<>\"\",'Product registration form'!U197,\"\")","v":""},{"$f":"IF('Product registration form'!Q197<>\"\",'Product registration form'!Q197,\"\")","v":""}]
[{"$f":"IF('Product registration form'!U198<>\"\",'Product registration form'!U198,\"\")","v":""},{"$f":"IF('Product registration form'!Q198<>\"\",'Product registration form'!Q198,\"\")","v":""}]
[{"$f":"IF('Product registration form'!U199<>\"\",'Product registration form'!U199,\"\")","v":""},{"$f":"IF('Product registration form'!Q199<>\"\",'Product registration form'!Q199,\"\")","v":""}]
[{"$f":"IF('Product registration form'!U200<>\"\",'Product registration form'!U200,\"\")","v":""},{"$f":"IF('Product registration form'!Q200<>\"\",'Product registration form'!Q200,\"\")","v":""}]

{"sheet":"Tax - Import only","index":4,"n_rows":200,"n_cols":13,"rows_kept":200,"cut":false,"hidden":false,"merged":[]}
[]
[]
[null,null,null,"To be filled by buying dep.",null,null,"To be filled by Master Data.",null,null,"To be filled by vendor",null,null,"Leave blank"]
["GTIN","Article description","Article no","WEEE","Product weight","Battery","21.1 Bottom cell\nweight i G","21.2 Acid blue\nweight in G","21.3 Nikkle cadmium\nweight in G","21.5 – Industrial\nweight in G","21.4 Other battery\nweight in G","Product weight minus battery"]
[{"$f":"IF('Product registration form'!U5<>\"\",'Product registration form'!U5,\"\")","v":""},{"$f":"IF('Product registration form'!Q5<>\"\",'Product registration form'!Q5,\"\")","v":""},null,null,{"$f":"IF('Product registration form'!AD5<>\"\",'Product registration form'!AD5,\"\")","v":""},null,null,null,null,null,null,{"$f":"(E5*1000) - G5 - H5 - I5 - J5 - K5","v":{"$error":"#VALUE!"}}]
[{"$f":"IF('Product registration form'!U6<>\"\",'Product registration form'!U6,\"\")","v":""},{"$f":"IF('Product registration form'!Q6<>\"\",'Product registration form'!Q6,\"\")","v":""},null,null,{"$f":"IF('Product registration form'!AD6<>\"\",'Product registration form'!AD6,\"\")","v":""},null,null,null,null,null,null,{"$f":"(E6*1000) - G6 - H6 - I6 - J6 - K6","v":{"$error":"#VALUE!"}}]
[{"$f":"IF('Product registration form'!U7<>\"\",'Product registration form'!U7,\"\")","v":""},{"$f":"IF('Product registration form'!Q7<>\"\",'Product registration form'!Q7,\"\")","v":""},null,null,{"$f":"IF('Product registration form'!AD7<>\"\",'Product registration form'!AD7,\"\")","v":""},null,null,null,null,null,null,{"$error":"#VALUE!"}]
[{"$f":"IF('Product registration form'!U8<>\"\",'Product registration form'!U8,\"\")","v":""},{"$f":"IF('Product registration form'!Q8<>\"\",'Product registration form'!Q8,\"\")","v":""},null,null,{"$f":"IF('Product registration form'!AD8<>\"\",'Product registration form'!AD8,\"\")","v":""},null,null,null,null,null,null,{"$error":"#VALUE!"}]
[{"$f":"IF('Product registration form'!U9<>\"\",'Product registration form'!U9,\"\")","v":""},{"$f":"IF('Product registration form'!Q9<>\"\",'Product registration form'!Q9,\"\")","v":""},null,null,{"$f":"IF('Product registration form'!AD9<>\"\",'Product registration form'!AD9,\"\")","v":""},null,null,null,null,null,null,{"$error":"#VALUE!"}]
[{"$f":"IF('Product registration form'!U10<>\"\",'Product registration form'!U10,\"\")","v":""},{"$f":"IF('Product registration form'!Q10<>\"\",'Product registration form'!Q10,\"\")","v":""},null,null,{"$f":"IF('Product registration form'!AD10<>\"\",'Product registration form'!AD10,\"\")","v":""},null,null,null,null,null,null,{"$error":"#VALUE!"}]
[{"$f":"IF('Product registration form'!U11<>\"\",'Product registration form'!U11,\"\")","v":""},{"$f":"IF('Product registration form'!Q11<>\"\",'Product registration form'!Q11,\"\")","v":""},null,null,{"$f":"IF('Product registration form'!AD11<>\"\",'Product registration form'!AD11,\"\")","v":""},null,null,null,null,null,null,{"$error":"#VALUE!"}]
[{"$f":"IF('Product registration form'!U12<>\"\",'Product registration form'!U12,\"\")","v":""},{"$f":"IF('Product registration form'!Q12<>\"\",'Product registration form'!Q12,\"\")","v":""},null,null,{"$f":"IF('Product registration form'!AD12<>\"\",'Product registration form'!AD12,\"\")","v":""},null,null,null,null,null,null,{"$error":"#VALUE!"}]
[{"$f":"IF('Product registration form'!U13<>\"\",'Product registration form'!U13,\"\")","v":""},{"$f":"IF('Product registration form'!Q13<>\"\",'Product registration form'!Q13,\"\")","v":""},null,null,{"$f":"IF('Product registration form'!AD13<>\"\",'Product registration form'!AD13,\"\")","v":""},null,null,null,null,null,null,{"$error":"#VALUE!"}]
[{"$f":"IF('Product registration form'!U14<>\"\",'Product registration form'!U14,\"\")","v":""},{"$f":"IF('Product registration form'!Q14<>\"\",'Product registration form'!Q14,\"\")","v":""},null,null,{"$f":"IF('Product registration form'!AD14<>\"\",'Product registration form'!AD14,\"\")","v":""},null,null,null,null,null,null,{"$error":"#VALUE!"}]
[{"$f":"IF('Product registration form'!U15<>\"\",'Product registration form'!U15,\"\")","v":""},{"$f":"IF('Product registration form'!Q15<>\"\",'Product registration form'!Q15,\"\")","v":""},null,null,{"$f":"IF('Product registration form'!AD15<>\"\",'Product registration form'!AD15,\"\")","v":""},null,null,null,null,null,null,{"$error":"#VALUE!"}]
[{"$f":"IF('Product registration form'!U16<>\"\",'Product registration form'!U16,\"\")","v":""},{"$f":"IF('Product registration form'!Q16<>\"\",'Product registration form'!Q16,\"\")","v":""},null,null,{"$f":"IF('Product registration form'!AD16<>\"\",'Product registration form'!AD16,\"\")","v":""},null,null,null,null,null,null,{"$error":"#VALUE!"}]
[{"$f":"IF('Product registration form'!U17<>\"\",'Product registration form'!U17,\"\")","v":""},{"$f":"IF('Product registration form'!Q17<>\"\",'Product registration form'!Q17,\"\")","v":""},null,null,{"$f":"IF('Product registration form'!AD17<>\"\",'Product registration form'!AD17,\"\")","v":""},null,null,null,null,null,null,{"$error":"#VALUE!"}]
[{"$f":"IF('Product registration form'!U18<>\"\",'Product registration form'!U18,\"\")","v":""},{"$f":"IF('Product registration form'!Q18<>\"\",'Product registration form'!Q18,\"\")","v":""},null,null,{"$f":"IF('Product registration form'!AD18<>\"\",'Product registration form'!AD18,\"\")","v":""},null,null,null,null,null,null,{"$error":"#VALUE!"}]
[{"$f":"IF('Product registration form'!U19<>\"\",'Product registration form'!U19,\"\")","v":""},{"$f":"IF('Product registration form'!Q19<>\"\",'Product registration form'!Q19,\"\")","v":""},null,null,{"$f":"IF('Product registration form'!AD19<>\"\",'Product registration form'!AD19,\"\")","v":""},null,null,null,null,null,null,{"$error":"#VALUE!"}]
[{"$f":"IF('Product registration form'!U20<>\"\",'Product registration form'!U20,\"\")","v":""},{"$f":"IF('Product registration form'!Q20<>\"\",'Product registration form'!Q20,\"\")","v":""},null,null,{"$f":"IF('Product registration form'!AD20<>\"\",'Product registration form'!AD20,\"\")","v":""},null,null,null,null,null,null,{"$error":"#VALUE!"}]
[{"$f":"IF('Product registration form'!U21<>\"\",'Product registration form'!U21,\"\")","v":""},{"$f":"IF('Product registration form'!Q21<>\"\",'Product registration form'!Q21,\"\")","v":""},null,null,{"$f":"IF('Product registration form'!AD21<>\"\",'Product registration form'!AD21,\"\")","v":""},null,null,null,null,null,null,{"$error":"#VALUE!"}]
[{"$f":"IF('Product registration form'!U22<>\"\",'Product registration form'!U22,\"\")","v":""},{"$f":"IF('Product registration form'!Q22<>\"\",'Product registration form'!Q22,\"\")","v":""},null,null,{"$f":"IF('Product registration form'!AD22<>\"\",'Product registration form'!AD22,\"\")","v":""},null,null,null,null,null,null,{"$error":"#VALUE!"}]
[{"$f":"IF('Product registration form'!U23<>\"\",'Product registration form'!U23,\"\")","v":""},{"$f":"IF('Product registration form'!Q23<>\"\",'Product registration form'!Q23,\"\")","v":""},null,null,{"$f":"IF('Product registration form'!AD23<>\"\",'Product registration form'!AD23,\"\")","v":""},null,null,null,null,null,null,{"$error":"#VALUE!"}]
[{"$f":"IF('Product registration form'!U24<>\"\",'Product registration form'!U24,\"\")","v":""},{"$f":"IF('Product registration form'!Q24<>\"\",'Product registration form'!Q24,\"\")","v":""},null,null,{"$f":"IF('Product registration form'!AD24<>\"\",'Product registration form'!AD24,\"\")","v":""},null,null,null,null,null,null,{"$error":"#VALUE!"}]
[{"$f":"IF('Product registration form'!U25<>\"\",'Product registration form'!U25,\"\")","v":""},{"$f":"IF('Product registration form'!Q25<>\"\",'Product registration form'!Q25,\"\")","v":""},null,null,{"$f":"IF('Product registration form'!AD25<>\"\",'Product registration form'!AD25,\"\")","v":""},null,null,null,null,null,null,{"$error":"#VALUE!"}]
[{"$f":"IF('Product registration form'!U26<>\"\",'Product registration form'!U26,\"\")","v":""},{"$f":"IF('Product registration form'!Q26<>\"\",'Product registration form'!Q26,\"\")","v":""},null,null,{"$f":"IF('Product registration form'!AD26<>\"\",'Product registration form'!AD26,\"\")","v":""},null,null,null,null,null,null,{"$error":"#VALUE!"}]
[{"$f":"IF('Product registration form'!U27<>\"\",'Product registration form'!U27,\"\")","v":""},{"$f":"IF('Product registration form'!Q27<>\"\",'Product registration form'!Q27,\"\")","v":""},null,null,{"$f":"IF('Product registration form'!AD27<>\"\",'Product registration form'!AD27,\"\")","v":""},null,null,null,null,null,null,{"$error":"#VALUE!"}]
[{"$f":"IF('Product registration form'!U28<>\"\",'Product registration form'!U28,\"\")","v":""},{"$f":"IF('Product registration form'!Q28<>\"\",'Product registration form'!Q28,\"\")","v":""},null,null,{"$f":"IF('Product registration form'!AD28<>\"\",'Product registration form'!AD28,\"\")","v":""},null,null,null,null,null,null,{"$error":"#VALUE!"}]
[{"$f":"IF('Product registration form'!U29<>\"\",'Product registration form'!U29,\"\")","v":""},{"$f":"IF('Product registration form'!Q29<>\"\",'Product registration form'!Q29,\"\")","v":""},null,null,{"$f":"IF('Product registration form'!AD29<>\"\",'Product registration form'!AD29,\"\")","v":""},null,null,null,null,null,null,{"$error":"#VALUE!"}]
[{"$f":"IF('Product registration form'!U30<>\"\",'Product registration form'!U30,\"\")","v":""},{"$f":"IF('Product registration form'!Q30<>\"\",'Product registration form'!Q30,\"\")","v":""},null,null,{"$f":"IF('Product registration form'!AD30<>\"\",'Product registration form'!AD30,\"\")","v":""},null,null,null,null,null,null,{"$error":"#VALUE!"}]
[{"$f":"IF('Product registration form'!U31<>\"\",'Product registration form'!U31,\"\")","v":""},{"$f":"IF('Product registration form'!Q31<>\"\",'Product registration form'!Q31,\"\")","v":""},null,null,{"$f":"IF('Product registration form'!AD31<>\"\",'Product registration form'!AD31,\"\")","v":""},null,null,null,null,null,null,{"$error":"#VALUE!"}]
[{"$f":"IF('Product registration form'!U32<>\"\",'Product registration form'!U32,\"\")","v":""},{"$f":"IF('Product registration form'!Q32<>\"\",'Product registration form'!Q32,\"\")","v":""},null,null,{"$f":"IF('Product registration form'!AD32<>\"\",'Product registration form'!AD32,\"\")","v":""},null,null,null,null,null,null,{"$error":"#VALUE!"}]
[{"$f":"IF('Product registration form'!U33<>\"\",'Product registration form'!U33,\"\")","v":""},{"$f":"IF('Product registration form'!Q33<>\"\",'Product registration form'!Q33,\"\")","v":""},null,null,{"$f":"IF('Product registration form'!AD33<>\"\",'Product registration form'!AD33,\"\")","v":""},null,null,null,null,null,null,{"$error":"#VALUE!"}]
[{"$f":"IF('Product registration form'!U34<>\"\",'Product registration form'!U34,\"\")","v":""},{"$f":"IF('Product registration form'!Q34<>\"\",'Product registration form'!Q34,\"\")","v":""},null,null,{"$f":"IF('Product registration form'!AD34<>\"\",'Product registration form'!AD34,\"\")","v":""},null,null,null,null,null,null,{"$error":"#VALUE!"}]
[{"$f":"IF('Product registration form'!U35<>\"\",'Product registration form'!U35,\"\")","v":""},{"$f":"IF('Product registration form'!Q35<>\"\",'Product registration form'!Q35,\"\")","v":""},null,null,{"$f":"IF('Product registration form'!AD35<>\"\",'Product registration form'!AD35,\"\")","v":""},null,null,null,null,null,null,{"$error":"#VALUE!"}]
[{"$f":"IF('Product registration form'!U36<>\"\",'Product registration form'!U36,\"\")","v":""},{"$f":"IF('Product registration form'!Q36<>\"\",'Product registration form'!Q36,\"\")","v":""},null,null,{"$f":"IF('Product registration form'!AD36<>\"\",'Product registration form'!AD36,\"\")","v":""},null,null,null,null,null,null,{"$error":"#VALUE!"}]
[{"$f":"IF('Product registration form'!U37<>\"\",'Product registration form'!U37,\"\")","v":""},{"$f":"IF('Product registration form'!Q37<>\"\",'Product registration form'!Q37,\"\")","v":""},null,null,{"$f":"IF('Product registration form'!AD37<>\"\",'Product registration form'!AD37,\"\")","v":""},null,null,null,null,null,null,{"$error":"#VALUE!"}]
[{"$f":"IF('Product registration form'!U38<>\"\",'Product registration form'!U38,\"\")","v":""},{"$f":"IF('Product registration form'!Q38<>\"\",'Product registration form'!Q38,\"\")","v":""},null,null,{"$f":"IF('Product registration form'!AD38<>\"\",'Product registration form'!AD38,\"\")","v":""},null,null,null,null,null,null,{"$error":"#VALUE!"}]
[{"$f":"IF('Product registration form'!U39<>\"\",'Product registration form'!U39,\"\")","v":""},{"$f":"IF('Product registration form'!Q39<>\"\",'Product registration form'!Q39,\"\")","v":""},null,null,{"$f":"IF('Product registration form'!AD39<>\"\",'Product registration form'!AD39,\"\")","v":""},null,null,null,null,null,null,{"$error":"#VALUE!"}]
[{"$f":"IF('Product registration form'!U40<>\"\",'Product registration form'!U40,\"\")","v":""},{"$f":"IF('Product registration form'!Q40<>\"\",'Product registration form'!Q40,\"\")","v":""},null,null,{"$f":"IF('Product registration form'!AD40<>\"\",'Product registration form'!AD40,\"\")","v":""},null,null,null,null,null,null,{"$error":"#VALUE!"}]
[{"$f":"IF('Product registration form'!U41<>\"\",'Product registration form'!U41,\"\")","v":""},{"$f":"IF('Product registration form'!Q41<>\"\",'Product registration form'!Q41,\"\")","v":""},null,null,{"$f":"IF('Product registration form'!AD41<>\"\",'Product registration form'!AD41,\"\")","v":""},null,null,null,null,null,null,{"$error":"#VALUE!"}]
[{"$f":"IF('Product registration form'!U42<>\"\",'Product registration form'!U42,\"\")","v":""},{"$f":"IF('Product registration form'!Q42<>\"\",'Product registration form'!Q42,\"\")","v":""},null,null,{"$f":"IF('Product registration form'!AD42<>\"\",'Product registration form'!AD42,\"\")","v":""},null,null,null,null,null,null,{"$error":"#VALUE!"}]
[{"$f":"IF('Product registration form'!U43<>\"\",'Product registration form'!U43,\"\")","v":""},{"$f":"IF('Product registration form'!Q43<>\"\",'Product registration form'!Q43,\"\")","v":""},null,null,{"$f":"IF('Product registration form'!AD43<>\"\",'Product registration form'!AD43,\"\")","v":""},null,null,null,null,null,null,{"$error":"#VALUE!"}]
[{"$f":"IF('Product registration form'!U44<>\"\",'Product registration form'!U44,\"\")","v":""},{"$f":"IF('Product registration form'!Q44<>\"\",'Product registration form'!Q44,\"\")","v":""},null,null,{"$f":"IF('Product registration form'!AD44<>\"\",'Product registration form'!AD44,\"\")","v":""},null,null,null,null,null,null,{"$error":"#VALUE!"}]
[{"$f":"IF('Product registration form'!U45<>\"\",'Product registration form'!U45,\"\")","v":""},{"$f":"IF('Product registration form'!Q45<>\"\",'Product registration form'!Q45,\"\")","v":""},null,null,{"$f":"IF('Product registration form'!AD45<>\"\",'Product registration form'!AD45,\"\")","v":""},null,null,null,null,null,null,{"$error":"#VALUE!"}]
[{"$f":"IF('Product registration form'!U46<>\"\",'Product registration form'!U46,\"\")","v":""},{"$f":"IF('Product registration form'!Q46<>\"\",'Product registration form'!Q46,\"\")","v":""},null,null,{"$f":"IF('Product registration form'!AD46<>\"\",'Product registration form'!AD46,\"\")","v":""},null,null,null,null,null,null,{"$error":"#VALUE!"}]
[{"$f":"IF('Product registration form'!U47<>\"\",'Product registration form'!U47,\"\")","v":""},{"$f":"IF('Product registration form'!Q47<>\"\",'Product registration form'!Q47,\"\")","v":""},null,null,{"$f":"IF('Product registration form'!AD47<>\"\",'Product registration form'!AD47,\"\")","v":""},null,null,null,null,null,null,{"$error":"#VALUE!"}]
[{"$f":"IF('Product registration form'!U48<>\"\",'Product registration form'!U48,\"\")","v":""},{"$f":"IF('Product registration form'!Q48<>\"\",'Product registration form'!Q48,\"\")","v":""},null,null,{"$f":"IF('Product registration form'!AD48<>\"\",'Product registration form'!AD48,\"\")","v":""},null,null,null,null,null,null,{"$error":"#VALUE!"}]
[{"$f":"IF('Product registration form'!U49<>\"\",'Product registration form'!U49,\"\")","v":""},{"$f":"IF('Product registration form'!Q49<>\"\",'Product registration form'!Q49,\"\")","v":""},null,null,{"$f":"IF('Product registration form'!AD49<>\"\",'Product registration form'!AD49,\"\")","v":""},null,null,null,null,null,null,{"$error":"#VALUE!"}]
[{"$f":"IF('Product registration form'!U50<>\"\",'Product registration form'!U50,\"\")","v":""},{"$f":"IF('Product registration form'!Q50<>\"\",'Product registration form'!Q50,\"\")","v":""},null,null,{"$f":"IF('Product registration form'!AD50<>\"\",'Product registration form'!AD50,\"\")","v":""},null,null,null,null,null,null,{"$error":"#VALUE!"}]
[{"$f":"IF('Product registration form'!U51<>\"\",'Product registration form'!U51,\"\")","v":""},{"$f":"IF('Product registration form'!Q51<>\"\",'Product registration form'!Q51,\"\")","v":""},null,null,{"$f":"IF('Product registration form'!AD51<>\"\",'Product registration form'!AD51,\"\")","v":""},null,null,null,null,null,null,{"$error":"#VALUE!"}]
[{"$f":"IF('Product registration form'!U52<>\"\",'Product registration form'!U52,\"\")","v":""},{"$f":"IF('Product registration form'!Q52<>\"\",'Product registration form'!Q52,\"\")","v":""},null,null,{"$f":"IF('Product registration form'!AD52<>\"\",'Product registration form'!AD52,\"\")","v":""},null,null,null,null,null,null,{"$error":"#VALUE!"}]
[{"$f":"IF('Product registration form'!U53<>\"\",'Product registration form'!U53,\"\")","v":""},{"$f":"IF('Product registration form'!Q53<>\"\",'Product registration form'!Q53,\"\")","v":""},null,null,{"$f":"IF('Product registration form'!AD53<>\"\",'Product registration form'!AD53,\"\")","v":""},null,null,null,null,null,null,{"$error":"#VALUE!"}]
[{"$f":"IF('Product registration form'!U54<>\"\",'Product registration form'!U54,\"\")","v":""},{"$f":"IF('Product registration form'!Q54<>\"\",'Product registration form'!Q54,\"\")","v":""},null,null,{"$f":"IF('Product registration form'!AD54<>\"\",'Product registration form'!AD54,\"\")","v":""},null,null,null,null,null,null,{"$error":"#VALUE!"}]
[{"$f":"IF('Product registration form'!U55<>\"\",'Product registration form'!U55,\"\")","v":""},{"$f":"IF('Product registration form'!Q55<>\"\",'Product registration form'!Q55,\"\")","v":""},null,null,{"$f":"IF('Product registration form'!AD55<>\"\",'Product registration form'!AD55,\"\")","v":""},null,null,null,null,null,null,{"$error":"#VALUE!"}]
[{"$f":"IF('Product registration form'!U56<>\"\",'Product registration form'!U56,\"\")","v":""},{"$f":"IF('Product registration form'!Q56<>\"\",'Product registration form'!Q56,\"\")","v":""},null,null,{"$f":"IF('Product registration form'!AD56<>\"\",'Product registration form'!AD56,\"\")","v":""},null,null,null,null,null,null,{"$error":"#VALUE!"}]
[{"$f":"IF('Product registration form'!U57<>\"\",'Product registration form'!U57,\"\")","v":""},{"$f":"IF('Product registration form'!Q57<>\"\",'Product registration form'!Q57,\"\")","v":""},null,null,{"$f":"IF('Product registration form'!AD57<>\"\",'Product registration form'!AD57,\"\")","v":""},null,null,null,null,null,null,{"$error":"#VALUE!"}]
[{"$f":"IF('Product registration form'!U58<>\"\",'Product registration form'!U58,\"\")","v":""},{"$f":"IF('Product registration form'!Q58<>\"\",'Product registration form'!Q58,\"\")","v":""},null,null,{"$f":"IF('Product registration form'!AD58<>\"\",'Product registration form'!AD58,\"\")","v":""},null,null,null,null,null,null,{"$error":"#VALUE!"}]
[{"$f":"IF('Product registration form'!U59<>\"\",'Product registration form'!U59,\"\")","v":""},{"$f":"IF('Product registration form'!Q59<>\"\",'Product registration form'!Q59,\"\")","v":""},null,null,{"$f":"IF('Product registration form'!AD59<>\"\",'Product registration form'!AD59,\"\")","v":""},null,null,null,null,null,null,{"$error":"#VALUE!"}]
[{"$f":"IF('Product registration form'!U60<>\"\",'Product registration form'!U60,\"\")","v":""},{"$f":"IF('Product registration form'!Q60<>\"\",'Product registration form'!Q60,\"\")","v":""},null,null,{"$f":"IF('Product registration form'!AD60<>\"\",'Product registration form'!AD60,\"\")","v":""},null,null,null,null,null,null,{"$error":"#VALUE!"}]
[{"$f":"IF('Product registration form'!U61<>\"\",'Product registration form'!U61,\"\")","v":""},{"$f":"IF('Product registration form'!Q61<>\"\",'Product registration form'!Q61,\"\")","v":""},null,null,{"$f":"IF('Product registration form'!AD61<>\"\",'Product registration form'!AD61,\"\")","v":""},null,null,null,null,null,null,{"$error":"#VALUE!"}]
[{"$f":"IF('Product registration form'!U62<>\"\",'Product registration form'!U62,\"\")","v":""},{"$f":"IF('Product registration form'!Q62<>\"\",'Product registration form'!Q62,\"\")","v":""},null,null,{"$f":"IF('Product registration form'!AD62<>\"\",'Product registration form'!AD62,\"\")","v":""},null,null,null,null,null,null,{"$error":"#VALUE!"}]
[{"$f":"IF('Product registration form'!U63<>\"\",'Product registration form'!U63,\"\")","v":""},{"$f":"IF('Product registration form'!Q63<>\"\",'Product registration form'!Q63,\"\")","v":""},null,null,{"$f":"IF('Product registration form'!AD63<>\"\",'Product registration form'!AD63,\"\")","v":""},null,null,null,null,null,null,{"$error":"#VALUE!"}]
[{"$f":"IF('Product registration form'!U64<>\"\",'Product registration form'!U64,\"\")","v":""},{"$f":"IF('Product registration form'!Q64<>\"\",'Product registration form'!Q64,\"\")","v":""},null,null,{"$f":"IF('Product registration form'!AD64<>\"\",'Product registration form'!AD64,\"\")","v":""},null,null,null,null,null,null,{"$error":"#VALUE!"}]
[{"$f":"IF('Product registration form'!U65<>\"\",'Product registration form'!U65,\"\")","v":""},{"$f":"IF('Product registration form'!Q65<>\"\",'Product registration form'!Q65,\"\")","v":""},null,null,{"$f":"IF('Product registration form'!AD65<>\"\",'Product registration form'!AD65,\"\")","v":""},null,null,null,null,null,null,{"$error":"#VALUE!"}]
[{"$f":"IF('Product registration form'!U66<>\"\",'Product registration form'!U66,\"\")","v":""},{"$f":"IF('Product registration form'!Q66<>\"\",'Product registration form'!Q66,\"\")","v":""},null,null,{"$f":"IF('Product registration form'!AD66<>\"\",'Product registration form'!AD66,\"\")","v":""},null,null,null,null,null,null,{"$error":"#VALUE!"}]
[{"$f":"IF('Product registration form'!U67<>\"\",'Product registration form'!U67,\"\")","v":""},{"$f":"IF('Product registration form'!Q67<>\"\",'Product registration form'!Q67,\"\")","v":""},null,null,{"$f":"IF('Product registration form'!AD67<>\"\",'Product registration form'!AD67,\"\")","v":""},null,null,null,null,null,null,{"$error":"#VALUE!"}]
[{"$f":"IF('Product registration form'!U68<>\"\",'Product registration form'!U68,\"\")","v":""},{"$f":"IF('Product registration form'!Q68<>\"\",'Product registration form'!Q68,\"\")","v":""},null,null,{"$f":"IF('Product registration form'!AD68<>\"\",'Product registration form'!AD68,\"\")","v":""},null,null,null,null,null,null,{"$error":"#VALUE!"}]
[{"$f":"IF('Product registration form'!U69<>\"\",'Product registration form'!U69,\"\")","v":""},{"$f":"IF('Product registration form'!Q69<>\"\",'Product registration form'!Q69,\"\")","v":""},null,null,{"$f":"IF('Product registration form'!AD69<>\"\",'Product registration form'!AD69,\"\")","v":""},null,null,null,null,null,null,{"$error":"#VALUE!"}]
[{"$f":"IF('Product registration form'!U70<>\"\",'Product registration form'!U70,\"\")","v":""},{"$f":"IF('Product registration form'!Q70<>\"\",'Product registration form'!Q70,\"\")","v":""},null,null,{"$f":"IF('Product registration form'!AD70<>\"\",'Product registration form'!AD70,\"\")","v":""},null,null,null,null,null,null,{"$f":"(E70*1000) - G70 - H70 - I70 - J70 - K70","v":{"$error":"#VALUE!"}}]
[{"$f":"IF('Product registration form'!U71<>\"\",'Product registration form'!U71,\"\")","v":""},{"$f":"IF('Product registration form'!Q71<>\"\",'Product registration form'!Q71,\"\")","v":""},null,null,{"$f":"IF('Product registration form'!AD71<>\"\",'Product registration form'!AD71,\"\")","v":""},null,null,null,null,null,null,{"$error":"#VALUE!"}]
[{"$f":"IF('Product registration form'!U72<>\"\",'Product registration form'!U72,\"\")","v":""},{"$f":"IF('Product registration form'!Q72<>\"\",'Product registration form'!Q72,\"\")","v":""},null,null,{"$f":"IF('Product registration form'!AD72<>\"\",'Product registration form'!AD72,\"\")","v":""},null,null,null,null,null,null,{"$error":"#VALUE!"}]
[{"$f":"IF('Product registration form'!U73<>\"\",'Product registration form'!U73,\"\")","v":""},{"$f":"IF('Product registration form'!Q73<>\"\",'Product registration form'!Q73,\"\")","v":""},null,null,{"$f":"IF('Product registration form'!AD73<>\"\",'Product registration form'!AD73,\"\")","v":""},null,null,null,null,null,null,{"$error":"#VALUE!"}]
[{"$f":"IF('Product registration form'!U74<>\"\",'Product registration form'!U74,\"\")","v":""},{"$f":"IF('Product registration form'!Q74<>\"\",'Product registration form'!Q74,\"\")","v":""},null,null,{"$f":"IF('Product registration form'!AD74<>\"\",'Product registration form'!AD74,\"\")","v":""},null,null,null,null,null,null,{"$error":"#VALUE!"}]
[{"$f":"IF('Product registration form'!U75<>\"\",'Product registration form'!U75,\"\")","v":""},{"$f":"IF('Product registration form'!Q75<>\"\",'Product registration form'!Q75,\"\")","v":""},null,null,{"$f":"IF('Product registration form'!AD75<>\"\",'Product registration form'!AD75,\"\")","v":""},null,null,null,null,null,null,{"$error":"#VALUE!"}]
[{"$f":"IF('Product registration form'!U76<>\"\",'Product registration form'!U76,\"\")","v":""},{"$f":"IF('Product registration form'!Q76<>\"\",'Product registration form'!Q76,\"\")","v":""},null,null,{"$f":"IF('Product registration form'!AD76<>\"\",'Product registration form'!AD76,\"\")","v":""},null,null,null,null,null,null,{"$error":"#VALUE!"}]
[{"$f":"IF('Product registration form'!U77<>\"\",'Product registration form'!U77,\"\")","v":""},{"$f":"IF('Product registration form'!Q77<>\"\",'Product registration form'!Q77,\"\")","v":""},null,null,{"$f":"IF('Product registration form'!AD77<>\"\",'Product registration form'!AD77,\"\")","v":""},null,null,null,null,null,null,{"$error":"#VALUE!"}]
[{"$f":"IF('Product registration form'!U78<>\"\",'Product registration form'!U78,\"\")","v":""},{"$f":"IF('Product registration form'!Q78<>\"\",'Product registration form'!Q78,\"\")","v":""},null,null,{"$f":"IF('Product registration form'!AD78<>\"\",'Product registration form'!AD78,\"\")","v":""},null,null,null,null,null,null,{"$error":"#VALUE!"}]
[{"$f":"IF('Product registration form'!U79<>\"\",'Product registration form'!U79,\"\")","v":""},{"$f":"IF('Product registration form'!Q79<>\"\",'Product registration form'!Q79,\"\")","v":""},null,null,{"$f":"IF('Product registration form'!AD79<>\"\",'Product registration form'!AD79,\"\")","v":""},null,null,null,null,null,null,{"$error":"#VALUE!"}]
[{"$f":"IF('Product registration form'!U80<>\"\",'Product registration form'!U80,\"\")","v":""},{"$f":"IF('Product registration form'!Q80<>\"\",'Product registration form'!Q80,\"\")","v":""},null,null,{"$f":"IF('Product registration form'!AD80<>\"\",'Product registration form'!AD80,\"\")","v":""},null,null,null,null,null,null,{"$error":"#VALUE!"}]
[{"$f":"IF('Product registration form'!U81<>\"\",'Product registration form'!U81,\"\")","v":""},{"$f":"IF('Product registration form'!Q81<>\"\",'Product registration form'!Q81,\"\")","v":""},null,null,{"$f":"IF('Product registration form'!AD81<>\"\",'Product registration form'!AD81,\"\")","v":""},null,null,null,null,null,null,{"$error":"#VALUE!"}]
[{"$f":"IF('Product registration form'!U82<>\"\",'Product registration form'!U82,\"\")","v":""},{"$f":"IF('Product registration form'!Q82<>\"\",'Product registration form'!Q82,\"\")","v":""},null,null,{"$f":"IF('Product registration form'!AD82<>\"\",'Product registration form'!AD82,\"\")","v":""},null,null,null,null,null,null,{"$error":"#VALUE!"}]
[{"$f":"IF('Product registration form'!U83<>\"\",'Product registration form'!U83,\"\")","v":""},{"$f":"IF('Product registration form'!Q83<>\"\",'Product registration form'!Q83,\"\")","v":""},null,null,{"$f":"IF('Product registration form'!AD83<>\"\",'Product registration form'!AD83,\"\")","v":""},null,null,null,null,null,null,{"$error":"#VALUE!"}]
[{"$f":"IF('Product registration form'!U84<>\"\",'Product registration form'!U84,\"\")","v":""},{"$f":"IF('Product registration form'!Q84<>\"\",'Product registration form'!Q84,\"\")","v":""},null,null,{"$f":"IF('Product registration form'!AD84<>\"\",'Product registration form'!AD84,\"\")","v":""},null,null,null,null,null,null,{"$error":"#VALUE!"}]
[{"$f":"IF('Product registration form'!U85<>\"\",'Product registration form'!U85,\"\")","v":""},{"$f":"IF('Product registration form'!Q85<>\"\",'Product registration form'!Q85,\"\")","v":""},null,null,{"$f":"IF('Product registration form'!AD85<>\"\",'Product registration form'!AD85,\"\")","v":""},null,null,null,null,null,null,{"$error":"#VALUE!"}]
[{"$f":"IF('Product registration form'!U86<>\"\",'Product registration form'!U86,\"\")","v":""},{"$f":"IF('Product registration form'!Q86<>\"\",'Product registration form'!Q86,\"\")","v":""},null,null,{"$f":"IF('Product registration form'!AD86<>\"\",'Product registration form'!AD86,\"\")","v":""},null,null,null,null,null,null,{"$error":"#VALUE!"}]
[{"$f":"IF('Product registration form'!U87<>\"\",'Product registration form'!U87,\"\")","v":""},{"$f":"IF('Product registration form'!Q87<>\"\",'Product registration form'!Q87,\"\")","v":""},null,null,{"$f":"IF('Product registration form'!AD87<>\"\",'Product registration form'!AD87,\"\")","v":""},null,null,null,null,null,null,{"$error":"#VALUE!"}]
[{"$f":"IF('Product registration form'!U88<>\"\",'Product registration form'!U88,\"\")","v":""},{"$f":"IF('Product registration form'!Q88<>\"\",'Product registration form'!Q88,\"\")","v":""},null,null,{"$f":"IF('Product registration form'!AD88<>\"\",'Product registration form'!AD88,\"\")","v":""},null,null,null,null,null,null,{"$error":"#VALUE!"}]
[{"$f":"IF('Product registration form'!U89<>\"\",'Product registration form'!U89,\"\")","v":""},{"$f":"IF('Product registration form'!Q89<>\"\",'Product registration form'!Q89,\"\")","v":""},null,null,{"$f":"IF('Product registration form'!AD89<>\"\",'Product registration form'!AD89,\"\")","v":""},null,null,null,null,null,null,{"$error":"#VALUE!"}]
[{"$f":"IF('Product registration form'!U90<>\"\",'Product registration form'!U90,\"\")","v":""},{"$f":"IF('Product registration form'!Q90<>\"\",'Product registration form'!Q90,\"\")","v":""},null,null,{"$f":"IF('Product registration form'!AD90<>\"\",'Product registration form'!AD90,\"\")","v":""},null,null,null,null,null,null,{"$error":"#VALUE!"}]
[{"$f":"IF('Product registration form'!U91<>\"\",'Product registration form'!U91,\"\")","v":""},{"$f":"IF('Product registration form'!Q91<>\"\",'Product registration form'!Q91,\"\")","v":""},null,null,{"$f":"IF('Product registration form'!AD91<>\"\",'Product registration form'!AD91,\"\")","v":""},null,null,null,null,null,null,{"$error":"#VALUE!"}]
[{"$f":"IF('Product registration form'!U92<>\"\",'Product registration form'!U92,\"\")","v":""},{"$f":"IF('Product registration form'!Q92<>\"\",'Product registration form'!Q92,\"\")","v":""},null,null,{"$f":"IF('Product registration form'!AD92<>\"\",'Product registration form'!AD92,\"\")","v":""},null,null,null,null,null,null,{"$error":"#VALUE!"}]
[{"$f":"IF('Product registration form'!U93<>\"\",'Product registration form'!U93,\"\")","v":""},{"$f":"IF('Product registration form'!Q93<>\"\",'Product registration form'!Q93,\"\")","v":""},null,null,{"$f":"IF('Product registration form'!AD93<>\"\",'Product registration form'!AD93,\"\")","v":""},null,null,null,null,null,null,{"$error":"#VALUE!"}]
[{"$f":"IF('Product registration form'!U94<>\"\",'Product registration form'!U94,\"\")","v":""},{"$f":"IF('Product registration form'!Q94<>\"\",'Product registration form'!Q94,\"\")","v":""},null,null,{"$f":"IF('Product registration form'!AD94<>\"\",'Product registration form'!AD94,\"\")","v":""},null,null,null,null,null,null,{"$error":"#VALUE!"}]
[{"$f":"IF('Product registration form'!U95<>\"\",'Product registration form'!U95,\"\")","v":""},{"$f":"IF('Product registration form'!Q95<>\"\",'Product registration form'!Q95,\"\")","v":""},null,null,{"$f":"IF('Product registration form'!AD95<>\"\",'Product registration form'!AD95,\"\")","v":""},null,null,null,null,null,null,{"$error":"#VALUE!"}]
[{"$f":"IF('Product registration form'!U96<>\"\",'Product registration form'!U96,\"\")","v":""},{"$f":"IF('Product registration form'!Q96<>\"\",'Product registration form'!Q96,\"\")","v":""},null,null,{"$f":"IF('Product registration form'!AD96<>\"\",'Product registration form'!AD96,\"\")","v":""},null,null,null,null,null,null,{"$error":"#VALUE!"}]
[{"$f":"IF('Product registration form'!U97<>\"\",'Product registration form'!U97,\"\")","v":""},{"$f":"IF('Product registration form'!Q97<>\"\",'Product registration form'!Q97,\"\")","v":""},null,null,{"$f":"IF('Product registration form'!AD97<>\"\",'Product registration form'!AD97,\"\")","v":""},null,null,null,null,null,null,{"$error":"#VALUE!"}]
[{"$f":"IF('Product registration form'!U98<>\"\",'Product registration form'!U98,\"\")","v":""},{"$f":"IF('Product registration form'!Q98<>\"\",'Product registration form'!Q98,\"\")","v":""},null,null,{"$f":"IF('Product registration form'!AD98<>\"\",'Product registration form'!AD98,\"\")","v":""},null,null,null,null,null,null,{"$error":"#VALUE!"}]
[{"$f":"IF('Product registration form'!U99<>\"\",'Product registration form'!U99,\"\")","v":""},{"$f":"IF('Product registration form'!Q99<>\"\",'Product registration form'!Q99,\"\")","v":""},null,null,{"$f":"IF('Product registration form'!AD99<>\"\",'Product registration form'!AD99,\"\")","v":""},null,null,null,null,null,null,{"$error":"#VALUE!"}]
[{"$f":"IF('Product registration form'!U100<>\"\",'Product registration form'!U100,\"\")","v":""},{"$f":"IF('Product registration form'!Q100<>\"\",'Product registration form'!Q100,\"\")","v":""},null,null,{"$f":"IF('Product registration form'!AD100<>\"\",'Product registration form'!AD100,\"\")","v":""},null,null,null,null,null,null,{"$error":"#VALUE!"}]
[{"$f":"IF('Product registration form'!U101<>\"\",'Product registration form'!U101,\"\")","v":""},{"$f":"IF('Product registration form'!Q101<>\"\",'Product registration form'!Q101,\"\")","v":""},null,null,{"$f":"IF('Product registration form'!AD101<>\"\",'Product registration form'!AD101,\"\")","v":""},null,null,null,null,null,null,{"$error":"#VALUE!"}]
[{"$f":"IF('Product registration form'!U102<>\"\",'Product registration form'!U102,\"\")","v":""},{"$f":"IF('Product registration form'!Q102<>\"\",'Product registration form'!Q102,\"\")","v":""},null,null,{"$f":"IF('Product registration form'!AD102<>\"\",'Product registration form'!AD102,\"\")","v":""},null,null,null,null,null,null,{"$error":"#VALUE!"}]
[{"$f":"IF('Product registration form'!U103<>\"\",'Product registration form'!U103,\"\")","v":""},{"$f":"IF('Product registration form'!Q103<>\"\",'Product registration form'!Q103,\"\")","v":""},null,null,{"$f":"IF('Product registration form'!AD103<>\"\",'Product registration form'!AD103,\"\")","v":""},null,null,null,null,null,null,{"$error":"#VALUE!"}]
[{"$f":"IF('Product registration form'!U104<>\"\",'Product registration form'!U104,\"\")","v":""},{"$f":"IF('Product registration form'!Q104<>\"\",'Product registration form'!Q104,\"\")","v":""},null,null,{"$f":"IF('Product registration form'!AD104<>\"\",'Product registration form'!AD104,\"\")","v":""},null,null,null,null,null,null,{"$error":"#VALUE!"}]
[{"$f":"IF('Product registration form'!U105<>\"\",'Product registration form'!U105,\"\")","v":""},{"$f":"IF('Product registration form'!Q105<>\"\",'Product registration form'!Q105,\"\")","v":""},null,null,{"$f":"IF('Product registration form'!AD105<>\"\",'Product registration form'!AD105,\"\")","v":""},null,null,null,null,null,null,{"$error":"#VALUE!"}]
[{"$f":"IF('Product registration form'!U106<>\"\",'Product registration form'!U106,\"\")","v":""},{"$f":"IF('Product registration form'!Q106<>\"\",'Product registration form'!Q106,\"\")","v":""},null,null,{"$f":"IF('Product registration form'!AD106<>\"\",'Product registration form'!AD106,\"\")","v":""},null,null,null,null,null,null,{"$error":"#VALUE!"}]
[{"$f":"IF('Product registration form'!U107<>\"\",'Product registration form'!U107,\"\")","v":""},{"$f":"IF('Product registration form'!Q107<>\"\",'Product registration form'!Q107,\"\")","v":""},null,null,{"$f":"IF('Product registration form'!AD107<>\"\",'Product registration form'!AD107,\"\")","v":""},null,null,null,null,null,null,{"$error":"#VALUE!"}]
[{"$f":"IF('Product registration form'!U108<>\"\",'Product registration form'!U108,\"\")","v":""},{"$f":"IF('Product registration form'!Q108<>\"\",'Product registration form'!Q108,\"\")","v":""},null,null,{"$f":"IF('Product registration form'!AD108<>\"\",'Product registration form'!AD108,\"\")","v":""},null,null,null,null,null,null,{"$error":"#VALUE!"}]
[{"$f":"IF('Product registration form'!U109<>\"\",'Product registration form'!U109,\"\")","v":""},{"$f":"IF('Product registration form'!Q109<>\"\",'Product registration form'!Q109,\"\")","v":""},null,null,{"$f":"IF('Product registration form'!AD109<>\"\",'Product registration form'!AD109,\"\")","v":""},null,null,null,null,null,null,{"$error":"#VALUE!"}]
[{"$f":"IF('Product registration form'!U110<>\"\",'Product registration form'!U110,\"\")","v":""},{"$f":"IF('Product registration form'!Q110<>\"\",'Product registration form'!Q110,\"\")","v":""},null,null,{"$f":"IF('Product registration form'!AD110<>\"\",'Product registration form'!AD110,\"\")","v":""},null,null,null,null,null,null,{"$error":"#VALUE!"}]
[{"$f":"IF('Product registration form'!U111<>\"\",'Product registration form'!U111,\"\")","v":""},{"$f":"IF('Product registration form'!Q111<>\"\",'Product registration form'!Q111,\"\")","v":""},null,null,{"$f":"IF('Product registration form'!AD111<>\"\",'Product registration form'!AD111,\"\")","v":""},null,null,null,null,null,null,{"$error":"#VALUE!"}]
[{"$f":"IF('Product registration form'!U112<>\"\",'Product registration form'!U112,\"\")","v":""},{"$f":"IF('Product registration form'!Q112<>\"\",'Product registration form'!Q112,\"\")","v":""},null,null,{"$f":"IF('Product registration form'!AD112<>\"\",'Product registration form'!AD112,\"\")","v":""},null,null,null,null,null,null,{"$error":"#VALUE!"}]
[{"$f":"IF('Product registration form'!U113<>\"\",'Product registration form'!U113,\"\")","v":""},{"$f":"IF('Product registration form'!Q113<>\"\",'Product registration form'!Q113,\"\")","v":""},null,null,{"$f":"IF('Product registration form'!AD113<>\"\",'Product registration form'!AD113,\"\")","v":""},null,null,null,null,null,null,{"$error":"#VALUE!"}]
[{"$f":"IF('Product registration form'!U114<>\"\",'Product registration form'!U114,\"\")","v":""},{"$f":"IF('Product registration form'!Q114<>\"\",'Product registration form'!Q114,\"\")","v":""},null,null,{"$f":"IF('Product registration form'!AD114<>\"\",'Product registration form'!AD114,\"\")","v":""},null,null,null,null,null,null,{"$error":"#VALUE!"}]
[{"$f":"IF('Product registration form'!U115<>\"\",'Product registration form'!U115,\"\")","v":""},{"$f":"IF('Product registration form'!Q115<>\"\",'Product registration form'!Q115,\"\")","v":""},null,null,{"$f":"IF('Product registration form'!AD115<>\"\",'Product registration form'!AD115,\"\")","v":""},null,null,null,null,null,null,{"$error":"#VALUE!"}]
[{"$f":"IF('Product registration form'!U116<>\"\",'Product registration form'!U116,\"\")","v":""},{"$f":"IF('Product registration form'!Q116<>\"\",'Product registration form'!Q116,\"\")","v":""},null,null,{"$f":"IF('Product registration form'!AD116<>\"\",'Product registration form'!AD116,\"\")","v":""},null,null,null,null,null,null,{"$error":"#VALUE!"}]
[{"$f":"IF('Product registration form'!U117<>\"\",'Product registration form'!U117,\"\")","v":""},{"$f":"IF('Product registration form'!Q117<>\"\",'Product registration form'!Q117,\"\")","v":""},null,null,{"$f":"IF('Product registration form'!AD117<>\"\",'Product registration form'!AD117,\"\")","v":""},null,null,null,null,null,null,{"$error":"#VALUE!"}]
[{"$f":"IF('Product registration form'!U118<>\"\",'Product registration form'!U118,\"\")","v":""},{"$f":"IF('Product registration form'!Q118<>\"\",'Product registration form'!Q118,\"\")","v":""},null,null,{"$f":"IF('Product registration form'!AD118<>\"\",'Product registration form'!AD118,\"\")","v":""},null,null,null,null,null,null,{"$error":"#VALUE!"}]
[{"$f":"IF('Product registration form'!U119<>\"\",'Product registration form'!U119,\"\")","v":""},{"$f":"IF('Product registration form'!Q119<>\"\",'Product registration form'!Q119,\"\")","v":""},null,null,{"$f":"IF('Product registration form'!AD119<>\"\",'Product registration form'!AD119,\"\")","v":""},null,null,null,null,null,null,{"$error":"#VALUE!"}]
[{"$f":"IF('Product registration form'!U120<>\"\",'Product registration form'!U120,\"\")","v":""},{"$f":"IF('Product registration form'!Q120<>\"\",'Product registration form'!Q120,\"\")","v":""},null,null,{"$f":"IF('Product registration form'!AD120<>\"\",'Product registration form'!AD120,\"\")","v":""},null,null,null,null,null,null,{"$error":"#VALUE!"}]
[{"$f":"IF('Product registration form'!U121<>\"\",'Product registration form'!U121,\"\")","v":""},{"$f":"IF('Product registration form'!Q121<>\"\",'Product registration form'!Q121,\"\")","v":""},null,null,{"$f":"IF('Product registration form'!AD121<>\"\",'Product registration form'!AD121,\"\")","v":""},null,null,null,null,null,null,{"$error":"#VALUE!"}]
[{"$f":"IF('Product registration form'!U122<>\"\",'Product registration form'!U122,\"\")","v":""},{"$f":"IF('Product registration form'!Q122<>\"\",'Product registration form'!Q122,\"\")","v":""},null,null,{"$f":"IF('Product registration form'!AD122<>\"\",'Product registration form'!AD122,\"\")","v":""},null,null,null,null,null,null,{"$error":"#VALUE!"}]
[{"$f":"IF('Product registration form'!U123<>\"\",'Product registration form'!U123,\"\")","v":""},{"$f":"IF('Product registration form'!Q123<>\"\",'Product registration form'!Q123,\"\")","v":""},null,null,{"$f":"IF('Product registration form'!AD123<>\"\",'Product registration form'!AD123,\"\")","v":""},null,null,null,null,null,null,{"$error":"#VALUE!"}]
[{"$f":"IF('Product registration form'!U124<>\"\",'Product registration form'!U124,\"\")","v":""},{"$f":"IF('Product registration form'!Q124<>\"\",'Product registration form'!Q124,\"\")","v":""},null,null,{"$f":"IF('Product registration form'!AD124<>\"\",'Product registration form'!AD124,\"\")","v":""},null,null,null,null,null,null,{"$error":"#VALUE!"}]
[{"$f":"IF('Product registration form'!U125<>\"\",'Product registration form'!U125,\"\")","v":""},{"$f":"IF('Product registration form'!Q125<>\"\",'Product registration form'!Q125,\"\")","v":""},null,null,{"$f":"IF('Product registration form'!AD125<>\"\",'Product registration form'!AD125,\"\")","v":""},null,null,null,null,null,null,{"$error":"#VALUE!"}]
[{"$f":"IF('Product registration form'!U126<>\"\",'Product registration form'!U126,\"\")","v":""},{"$f":"IF('Product registration form'!Q126<>\"\",'Product registration form'!Q126,\"\")","v":""},null,null,{"$f":"IF('Product registration form'!AD126<>\"\",'Product registration form'!AD126,\"\")","v":""},null,null,null,null,null,null,{"$error":"#VALUE!"}]
[{"$f":"IF('Product registration form'!U127<>\"\",'Product registration form'!U127,\"\")","v":""},{"$f":"IF('Product registration form'!Q127<>\"\",'Product registration form'!Q127,\"\")","v":""},null,null,{"$f":"IF('Product registration form'!AD127<>\"\",'Product registration form'!AD127,\"\")","v":""},null,null,null,null,null,null,{"$error":"#VALUE!"}]
[{"$f":"IF('Product registration form'!U128<>\"\",'Product registration form'!U128,\"\")","v":""},{"$f":"IF('Product registration form'!Q128<>\"\",'Product registration form'!Q128,\"\")","v":""},null,null,{"$f":"IF('Product registration form'!AD128<>\"\",'Product registration form'!AD128,\"\")","v":""},null,null,null,null,null,null,{"$error":"#VALUE!"}]
[{"$f":"IF('Product registration form'!U129<>\"\",'Product registration form'!U129,\"\")","v":""},{"$f":"IF('Product registration form'!Q129<>\"\",'Product registration form'!Q129,\"\")","v":""},null,null,{"$f":"IF('Product registration form'!AD129<>\"\",'Product registration form'!AD129,\"\")","v":""},null,null,null,null,null,null,{"$error":"#VALUE!"}]
[{"$f":"IF('Product registration form'!U130<>\"\",'Product registration form'!U130,\"\")","v":""},{"$f":"IF('Product registration form'!Q130<>\"\",'Product registration form'!Q130,\"\")","v":""},null,null,{"$f":"IF('Product registration form'!AD130<>\"\",'Product registration form'!AD130,\"\")","v":""},null,null,null,null,null,null,{"$error":"#VALUE!"}]
[{"$f":"IF('Product registration form'!U131<>\"\",'Product registration form'!U131,\"\")","v":""},{"$f":"IF('Product registration form'!Q131<>\"\",'Product registration form'!Q131,\"\")","v":""},null,null,{"$f":"IF('Product registration form'!AD131<>\"\",'Product registration form'!AD131,\"\")","v":""},null,null,null,null,null,null,{"$error":"#VALUE!"}]
[{"$f":"IF('Product registration form'!U132<>\"\",'Product registration form'!U132,\"\")","v":""},{"$f":"IF('Product registration form'!Q132<>\"\",'Product registration form'!Q132,\"\")","v":""},null,null,{"$f":"IF('Product registration form'!AD132<>\"\",'Product registration form'!AD132,\"\")","v":""},null,null,null,null,null,null,{"$error":"#VALUE!"}]
[{"$f":"IF('Product registration form'!U133<>\"\",'Product registration form'!U133,\"\")","v":""},{"$f":"IF('Product registration form'!Q133<>\"\",'Product registration form'!Q133,\"\")","v":""},null,null,{"$f":"IF('Product registration form'!AD133<>\"\",'Product registration form'!AD133,\"\")","v":""},null,null,null,null,null,null,{"$error":"#VALUE!"}]
[{"$f":"IF('Product registration form'!U134<>\"\",'Product registration form'!U134,\"\")","v":""},{"$f":"IF('Product registration form'!Q134<>\"\",'Product registration form'!Q134,\"\")","v":""},null,null,{"$f":"IF('Product registration form'!AD134<>\"\",'Product registration form'!AD134,\"\")","v":""},null,null,null,null,null,null,{"$f":"(E134*1000) - G134 - H134 - I134 - J134 - K134","v":{"$error":"#VALUE!"}}]
[{"$f":"IF('Product registration form'!U135<>\"\",'Product registration form'!U135,\"\")","v":""},{"$f":"IF('Product registration form'!Q135<>\"\",'Product registration form'!Q135,\"\")","v":""},null,null,{"$f":"IF('Product registration form'!AD135<>\"\",'Product registration form'!AD135,\"\")","v":""},null,null,null,null,null,null,{"$error":"#VALUE!"}]
[{"$f":"IF('Product registration form'!U136<>\"\",'Product registration form'!U136,\"\")","v":""},{"$f":"IF('Product registration form'!Q136<>\"\",'Product registration form'!Q136,\"\")","v":""},null,null,{"$f":"IF('Product registration form'!AD136<>\"\",'Product registration form'!AD136,\"\")","v":""},null,null,null,null,null,null,{"$error":"#VALUE!"}]
[{"$f":"IF('Product registration form'!U137<>\"\",'Product registration form'!U137,\"\")","v":""},{"$f":"IF('Product registration form'!Q137<>\"\",'Product registration form'!Q137,\"\")","v":""},null,null,{"$f":"IF('Product registration form'!AD137<>\"\",'Product registration form'!AD137,\"\")","v":""},null,null,null,null,null,null,{"$error":"#VALUE!"}]
[{"$f":"IF('Product registration form'!U138<>\"\",'Product registration form'!U138,\"\")","v":""},{"$f":"IF('Product registration form'!Q138<>\"\",'Product registration form'!Q138,\"\")","v":""},null,null,{"$f":"IF('Product registration form'!AD138<>\"\",'Product registration form'!AD138,\"\")","v":""},null,null,null,null,null,null,{"$error":"#VALUE!"}]
[{"$f":"IF('Product registration form'!U139<>\"\",'Product registration form'!U139,\"\")","v":""},{"$f":"IF('Product registration form'!Q139<>\"\",'Product registration form'!Q139,\"\")","v":""},null,null,{"$f":"IF('Product registration form'!AD139<>\"\",'Product registration form'!AD139,\"\")","v":""},null,null,null,null,null,null,{"$error":"#VALUE!"}]
[{"$f":"IF('Product registration form'!U140<>\"\",'Product registration form'!U140,\"\")","v":""},{"$f":"IF('Product registration form'!Q140<>\"\",'Product registration form'!Q140,\"\")","v":""},null,null,{"$f":"IF('Product registration form'!AD140<>\"\",'Product registration form'!AD140,\"\")","v":""},null,null,null,null,null,null,{"$error":"#VALUE!"}]
[{"$f":"IF('Product registration form'!U141<>\"\",'Product registration form'!U141,\"\")","v":""},{"$f":"IF('Product registration form'!Q141<>\"\",'Product registration form'!Q141,\"\")","v":""},null,null,{"$f":"IF('Product registration form'!AD141<>\"\",'Product registration form'!AD141,\"\")","v":""},null,null,null,null,null,null,{"$error":"#VALUE!"}]
[{"$f":"IF('Product registration form'!U142<>\"\",'Product registration form'!U142,\"\")","v":""},{"$f":"IF('Product registration form'!Q142<>\"\",'Product registration form'!Q142,\"\")","v":""},null,null,{"$f":"IF('Product registration form'!AD142<>\"\",'Product registration form'!AD142,\"\")","v":""},null,null,null,null,null,null,{"$error":"#VALUE!"}]
[{"$f":"IF('Product registration form'!U143<>\"\",'Product registration form'!U143,\"\")","v":""},{"$f":"IF('Product registration form'!Q143<>\"\",'Product registration form'!Q143,\"\")","v":""},null,null,{"$f":"IF('Product registration form'!AD143<>\"\",'Product registration form'!AD143,\"\")","v":""},null,null,null,null,null,null,{"$error":"#VALUE!"}]
[{"$f":"IF('Product registration form'!U144<>\"\",'Product registration form'!U144,\"\")","v":""},{"$f":"IF('Product registration form'!Q144<>\"\",'Product registration form'!Q144,\"\")","v":""},null,null,{"$f":"IF('Product registration form'!AD144<>\"\",'Product registration form'!AD144,\"\")","v":""},null,null,null,null,null,null,{"$error":"#VALUE!"}]
[{"$f":"IF('Product registration form'!U145<>\"\",'Product registration form'!U145,\"\")","v":""},{"$f":"IF('Product registration form'!Q145<>\"\",'Product registration form'!Q145,\"\")","v":""},null,null,{"$f":"IF('Product registration form'!AD145<>\"\",'Product registration form'!AD145,\"\")","v":""},null,null,null,null,null,null,{"$error":"#VALUE!"}]
[{"$f":"IF('Product registration form'!U146<>\"\",'Product registration form'!U146,\"\")","v":""},{"$f":"IF('Product registration form'!Q146<>\"\",'Product registration form'!Q146,\"\")","v":""},null,null,{"$f":"IF('Product registration form'!AD146<>\"\",'Product registration form'!AD146,\"\")","v":""},null,null,null,null,null,null,{"$error":"#VALUE!"}]
[{"$f":"IF('Product registration form'!U147<>\"\",'Product registration form'!U147,\"\")","v":""},{"$f":"IF('Product registration form'!Q147<>\"\",'Product registration form'!Q147,\"\")","v":""},null,null,{"$f":"IF('Product registration form'!AD147<>\"\",'Product registration form'!AD147,\"\")","v":""},null,null,null,null,null,null,{"$error":"#VALUE!"}]
[{"$f":"IF('Product registration form'!U148<>\"\",'Product registration form'!U148,\"\")","v":""},{"$f":"IF('Product registration form'!Q148<>\"\",'Product registration form'!Q148,\"\")","v":""},null,null,{"$f":"IF('Product registration form'!AD148<>\"\",'Product registration form'!AD148,\"\")","v":""},null,null,null,null,null,null,{"$error":"#VALUE!"}]
[{"$f":"IF('Product registration form'!U149<>\"\",'Product registration form'!U149,\"\")","v":""},{"$f":"IF('Product registration form'!Q149<>\"\",'Product registration form'!Q149,\"\")","v":""},null,null,{"$f":"IF('Product registration form'!AD149<>\"\",'Product registration form'!AD149,\"\")","v":""},null,null,null,null,null,null,{"$error":"#VALUE!"}]
[{"$f":"IF('Product registration form'!U150<>\"\",'Product registration form'!U150,\"\")","v":""},{"$f":"IF('Product registration form'!Q150<>\"\",'Product registration form'!Q150,\"\")","v":""},null,null,{"$f":"IF('Product registration form'!AD150<>\"\",'Product registration form'!AD150,\"\")","v":""},null,null,null,null,null,null,{"$error":"#VALUE!"}]
[{"$f":"IF('Product registration form'!U151<>\"\",'Product registration form'!U151,\"\")","v":""},{"$f":"IF('Product registration form'!Q151<>\"\",'Product registration form'!Q151,\"\")","v":""},null,null,{"$f":"IF('Product registration form'!AD151<>\"\",'Product registration form'!AD151,\"\")","v":""},null,null,null,null,null,null,{"$error":"#VALUE!"}]
[{"$f":"IF('Product registration form'!U152<>\"\",'Product registration form'!U152,\"\")","v":""},{"$f":"IF('Product registration form'!Q152<>\"\",'Product registration form'!Q152,\"\")","v":""},null,null,{"$f":"IF('Product registration form'!AD152<>\"\",'Product registration form'!AD152,\"\")","v":""},null,null,null,null,null,null,{"$error":"#VALUE!"}]
[{"$f":"IF('Product registration form'!U153<>\"\",'Product registration form'!U153,\"\")","v":""},{"$f":"IF('Product registration form'!Q153<>\"\",'Product registration form'!Q153,\"\")","v":""},null,null,{"$f":"IF('Product registration form'!AD153<>\"\",'Product registration form'!AD153,\"\")","v":""},null,null,null,null,null,null,{"$error":"#VALUE!"}]
[{"$f":"IF('Product registration form'!U154<>\"\",'Product registration form'!U154,\"\")","v":""},{"$f":"IF('Product registration form'!Q154<>\"\",'Product registration form'!Q154,\"\")","v":""},null,null,{"$f":"IF('Product registration form'!AD154<>\"\",'Product registration form'!AD154,\"\")","v":""},null,null,null,null,null,null,{"$error":"#VALUE!"}]
[{"$f":"IF('Product registration form'!U155<>\"\",'Product registration form'!U155,\"\")","v":""},{"$f":"IF('Product registration form'!Q155<>\"\",'Product registration form'!Q155,\"\")","v":""},null,null,{"$f":"IF('Product registration form'!AD155<>\"\",'Product registration form'!AD155,\"\")","v":""},null,null,null,null,null,null,{"$error":"#VALUE!"}]
[{"$f":"IF('Product registration form'!U156<>\"\",'Product registration form'!U156,\"\")","v":""},{"$f":"IF('Product registration form'!Q156<>\"\",'Product registration form'!Q156,\"\")","v":""},null,null,{"$f":"IF('Product registration form'!AD156<>\"\",'Product registration form'!AD156,\"\")","v":""},null,null,null,null,null,null,{"$error":"#VALUE!"}]
[{"$f":"IF('Product registration form'!U157<>\"\",'Product registration form'!U157,\"\")","v":""},{"$f":"IF('Product registration form'!Q157<>\"\",'Product registration form'!Q157,\"\")","v":""},null,null,{"$f":"IF('Product registration form'!AD157<>\"\",'Product registration form'!AD157,\"\")","v":""},null,null,null,null,null,null,{"$error":"#VALUE!"}]
[{"$f":"IF('Product registration form'!U158<>\"\",'Product registration form'!U158,\"\")","v":""},{"$f":"IF('Product registration form'!Q158<>\"\",'Product registration form'!Q158,\"\")","v":""},null,null,{"$f":"IF('Product registration form'!AD158<>\"\",'Product registration form'!AD158,\"\")","v":""},null,null,null,null,null,null,{"$error":"#VALUE!"}]
[{"$f":"IF('Product registration form'!U159<>\"\",'Product registration form'!U159,\"\")","v":""},{"$f":"IF('Product registration form'!Q159<>\"\",'Product registration form'!Q159,\"\")","v":""},null,null,{"$f":"IF('Product registration form'!AD159<>\"\",'Product registration form'!AD159,\"\")","v":""},null,null,null,null,null,null,{"$error":"#VALUE!"}]
[{"$f":"IF('Product registration form'!U160<>\"\",'Product registration form'!U160,\"\")","v":""},{"$f":"IF('Product registration form'!Q160<>\"\",'Product registration form'!Q160,\"\")","v":""},null,null,{"$f":"IF('Product registration form'!AD160<>\"\",'Product registration form'!AD160,\"\")","v":""},null,null,null,null,null,null,{"$error":"#VALUE!"}]
[{"$f":"IF('Product registration form'!U161<>\"\",'Product registration form'!U161,\"\")","v":""},{"$f":"IF('Product registration form'!Q161<>\"\",'Product registration form'!Q161,\"\")","v":""},null,null,{"$f":"IF('Product registration form'!AD161<>\"\",'Product registration form'!AD161,\"\")","v":""},null,null,null,null,null,null,{"$error":"#VALUE!"}]
[{"$f":"IF('Product registration form'!U162<>\"\",'Product registration form'!U162,\"\")","v":""},{"$f":"IF('Product registration form'!Q162<>\"\",'Product registration form'!Q162,\"\")","v":""},null,null,{"$f":"IF('Product registration form'!AD162<>\"\",'Product registration form'!AD162,\"\")","v":""},null,null,null,null,null,null,{"$error":"#VALUE!"}]
[{"$f":"IF('Product registration form'!U163<>\"\",'Product registration form'!U163,\"\")","v":""},{"$f":"IF('Product registration form'!Q163<>\"\",'Product registration form'!Q163,\"\")","v":""},null,null,{"$f":"IF('Product registration form'!AD163<>\"\",'Product registration form'!AD163,\"\")","v":""},null,null,null,null,null,null,{"$error":"#VALUE!"}]
[{"$f":"IF('Product registration form'!U164<>\"\",'Product registration form'!U164,\"\")","v":""},{"$f":"IF('Product registration form'!Q164<>\"\",'Product registration form'!Q164,\"\")","v":""},null,null,{"$f":"IF('Product registration form'!AD164<>\"\",'Product registration form'!AD164,\"\")","v":""},null,null,null,null,null,null,{"$error":"#VALUE!"}]
[{"$f":"IF('Product registration form'!U165<>\"\",'Product registration form'!U165,\"\")","v":""},{"$f":"IF('Product registration form'!Q165<>\"\",'Product registration form'!Q165,\"\")","v":""},null,null,{"$f":"IF('Product registration form'!AD165<>\"\",'Product registration form'!AD165,\"\")","v":""},null,null,null,null,null,null,{"$error":"#VALUE!"}]
[{"$f":"IF('Product registration form'!U166<>\"\",'Product registration form'!U166,\"\")","v":""},{"$f":"IF('Product registration form'!Q166<>\"\",'Product registration form'!Q166,\"\")","v":""},null,null,{"$f":"IF('Product registration form'!AD166<>\"\",'Product registration form'!AD166,\"\")","v":""},null,null,null,null,null,null,{"$error":"#VALUE!"}]
[{"$f":"IF('Product registration form'!U167<>\"\",'Product registration form'!U167,\"\")","v":""},{"$f":"IF('Product registration form'!Q167<>\"\",'Product registration form'!Q167,\"\")","v":""},null,null,{"$f":"IF('Product registration form'!AD167<>\"\",'Product registration form'!AD167,\"\")","v":""},null,null,null,null,null,null,{"$error":"#VALUE!"}]
[{"$f":"IF('Product registration form'!U168<>\"\",'Product registration form'!U168,\"\")","v":""},{"$f":"IF('Product registration form'!Q168<>\"\",'Product registration form'!Q168,\"\")","v":""},null,null,{"$f":"IF('Product registration form'!AD168<>\"\",'Product registration form'!AD168,\"\")","v":""},null,null,null,null,null,null,{"$error":"#VALUE!"}]
[{"$f":"IF('Product registration form'!U169<>\"\",'Product registration form'!U169,\"\")","v":""},{"$f":"IF('Product registration form'!Q169<>\"\",'Product registration form'!Q169,\"\")","v":""},null,null,{"$f":"IF('Product registration form'!AD169<>\"\",'Product registration form'!AD169,\"\")","v":""},null,null,null,null,null,null,{"$error":"#VALUE!"}]
[{"$f":"IF('Product registration form'!U170<>\"\",'Product registration form'!U170,\"\")","v":""},{"$f":"IF('Product registration form'!Q170<>\"\",'Product registration form'!Q170,\"\")","v":""},null,null,{"$f":"IF('Product registration form'!AD170<>\"\",'Product registration form'!AD170,\"\")","v":""},null,null,null,null,null,null,{"$error":"#VALUE!"}]
[{"$f":"IF('Product registration form'!U171<>\"\",'Product registration form'!U171,\"\")","v":""},{"$f":"IF('Product registration form'!Q171<>\"\",'Product registration form'!Q171,\"\")","v":""},null,null,{"$f":"IF('Product registration form'!AD171<>\"\",'Product registration form'!AD171,\"\")","v":""},null,null,null,null,null,null,{"$error":"#VALUE!"}]
[{"$f":"IF('Product registration form'!U172<>\"\",'Product registration form'!U172,\"\")","v":""},{"$f":"IF('Product registration form'!Q172<>\"\",'Product registration form'!Q172,\"\")","v":""},null,null,{"$f":"IF('Product registration form'!AD172<>\"\",'Product registration form'!AD172,\"\")","v":""},null,null,null,null,null,null,{"$error":"#VALUE!"}]
[{"$f":"IF('Product registration form'!U173<>\"\",'Product registration form'!U173,\"\")","v":""},{"$f":"IF('Product registration form'!Q173<>\"\",'Product registration form'!Q173,\"\")","v":""},null,null,{"$f":"IF('Product registration form'!AD173<>\"\",'Product registration form'!AD173,\"\")","v":""},null,null,null,null,null,null,{"$error":"#VALUE!"}]
[{"$f":"IF('Product registration form'!U174<>\"\",'Product registration form'!U174,\"\")","v":""},{"$f":"IF('Product registration form'!Q174<>\"\",'Product registration form'!Q174,\"\")","v":""},null,null,{"$f":"IF('Product registration form'!AD174<>\"\",'Product registration form'!AD174,\"\")","v":""},null,null,null,null,null,null,{"$error":"#VALUE!"}]
[{"$f":"IF('Product registration form'!U175<>\"\",'Product registration form'!U175,\"\")","v":""},{"$f":"IF('Product registration form'!Q175<>\"\",'Product registration form'!Q175,\"\")","v":""},null,null,{"$f":"IF('Product registration form'!AD175<>\"\",'Product registration form'!AD175,\"\")","v":""},null,null,null,null,null,null,{"$error":"#VALUE!"}]
[{"$f":"IF('Product registration form'!U176<>\"\",'Product registration form'!U176,\"\")","v":""},{"$f":"IF('Product registration form'!Q176<>\"\",'Product registration form'!Q176,\"\")","v":""},null,null,{"$f":"IF('Product registration form'!AD176<>\"\",'Product registration form'!AD176,\"\")","v":""},null,null,null,null,null,null,{"$error":"#VALUE!"}]
[{"$f":"IF('Product registration form'!U177<>\"\",'Product registration form'!U177,\"\")","v":""},{"$f":"IF('Product registration form'!Q177<>\"\",'Product registration form'!Q177,\"\")","v":""},null,null,{"$f":"IF('Product registration form'!AD177<>\"\",'Product registration form'!AD177,\"\")","v":""},null,null,null,null,null,null,{"$error":"#VALUE!"}]
[{"$f":"IF('Product registration form'!U178<>\"\",'Product registration form'!U178,\"\")","v":""},{"$f":"IF('Product registration form'!Q178<>\"\",'Product registration form'!Q178,\"\")","v":""},null,null,{"$f":"IF('Product registration form'!AD178<>\"\",'Product registration form'!AD178,\"\")","v":""},null,null,null,null,null,null,{"$error":"#VALUE!"}]
[{"$f":"IF('Product registration form'!U179<>\"\",'Product registration form'!U179,\"\")","v":""},{"$f":"IF('Product registration form'!Q179<>\"\",'Product registration form'!Q179,\"\")","v":""},null,null,{"$f":"IF('Product registration form'!AD179<>\"\",'Product registration form'!AD179,\"\")","v":""},null,null,null,null,null,null,{"$error":"#VALUE!"}]
[{"$f":"IF('Product registration form'!U180<>\"\",'Product registration form'!U180,\"\")","v":""},{"$f":"IF('Product registration form'!Q180<>\"\",'Product registration form'!Q180,\"\")","v":""},null,null,{"$f":"IF('Product registration form'!AD180<>\"\",'Product registration form'!AD180,\"\")","v":""},null,null,null,null,null,null,{"$error":"#VALUE!"}]
[{"$f":"IF('Product registration form'!U181<>\"\",'Product registration form'!U181,\"\")","v":""},{"$f":"IF('Product registration form'!Q181<>\"\",'Product registration form'!Q181,\"\")","v":""},null,null,{"$f":"IF('Product registration form'!AD181<>\"\",'Product registration form'!AD181,\"\")","v":""},null,null,null,null,null,null,{"$error":"#VALUE!"}]
[{"$f":"IF('Product registration form'!U182<>\"\",'Product registration form'!U182,\"\")","v":""},{"$f":"IF('Product registration form'!Q182<>\"\",'Product registration form'!Q182,\"\")","v":""},null,null,{"$f":"IF('Product registration form'!AD182<>\"\",'Product registration form'!AD182,\"\")","v":""},null,null,null,null,null,null,{"$error":"#VALUE!"}]
[{"$f":"IF('Product registration form'!U183<>\"\",'Product registration form'!U183,\"\")","v":""},{"$f":"IF('Product registration form'!Q183<>\"\",'Product registration form'!Q183,\"\")","v":""},null,null,{"$f":"IF('Product registration form'!AD183<>\"\",'Product registration form'!AD183,\"\")","v":""},null,null,null,null,null,null,{"$error":"#VALUE!"}]
[{"$f":"IF('Product registration form'!U184<>\"\",'Product registration form'!U184,\"\")","v":""},{"$f":"IF('Product registration form'!Q184<>\"\",'Product registration form'!Q184,\"\")","v":""},null,null,{"$f":"IF('Product registration form'!AD184<>\"\",'Product registration form'!AD184,\"\")","v":""},null,null,null,null,null,null,{"$error":"#VALUE!"}]
[{"$f":"IF('Product registration form'!U185<>\"\",'Product registration form'!U185,\"\")","v":""},{"$f":"IF('Product registration form'!Q185<>\"\",'Product registration form'!Q185,\"\")","v":""},null,null,{"$f":"IF('Product registration form'!AD185<>\"\",'Product registration form'!AD185,\"\")","v":""},null,null,null,null,null,null,{"$error":"#VALUE!"}]
[{"$f":"IF('Product registration form'!U186<>\"\",'Product registration form'!U186,\"\")","v":""},{"$f":"IF('Product registration form'!Q186<>\"\",'Product registration form'!Q186,\"\")","v":""},null,null,{"$f":"IF('Product registration form'!AD186<>\"\",'Product registration form'!AD186,\"\")","v":""},null,null,null,null,null,null,{"$error":"#VALUE!"}]
[{"$f":"IF('Product registration form'!U187<>\"\",'Product registration form'!U187,\"\")","v":""},{"$f":"IF('Product registration form'!Q187<>\"\",'Product registration form'!Q187,\"\")","v":""},null,null,{"$f":"IF('Product registration form'!AD187<>\"\",'Product registration form'!AD187,\"\")","v":""},null,null,null,null,null,null,{"$error":"#VALUE!"}]
[{"$f":"IF('Product registration form'!U188<>\"\",'Product registration form'!U188,\"\")","v":""},{"$f":"IF('Product registration form'!Q188<>\"\",'Product registration form'!Q188,\"\")","v":""},null,null,{"$f":"IF('Product registration form'!AD188<>\"\",'Product registration form'!AD188,\"\")","v":""},null,null,null,null,null,null,{"$error":"#VALUE!"}]
[{"$f":"IF('Product registration form'!U189<>\"\",'Product registration form'!U189,\"\")","v":""},{"$f":"IF('Product registration form'!Q189<>\"\",'Product registration form'!Q189,\"\")","v":""},null,null,{"$f":"IF('Product registration form'!AD189<>\"\",'Product registration form'!AD189,\"\")","v":""},null,null,null,null,null,null,{"$error":"#VALUE!"}]
[{"$f":"IF('Product registration form'!U190<>\"\",'Product registration form'!U190,\"\")","v":""},{"$f":"IF('Product registration form'!Q190<>\"\",'Product registration form'!Q190,\"\")","v":""},null,null,{"$f":"IF('Product registration form'!AD190<>\"\",'Product registration form'!AD190,\"\")","v":""},null,null,null,null,null,null,{"$error":"#VALUE!"}]
[{"$f":"IF('Product registration form'!U191<>\"\",'Product registration form'!U191,\"\")","v":""},{"$f":"IF('Product registration form'!Q191<>\"\",'Product registration form'!Q191,\"\")","v":""},null,null,{"$f":"IF('Product registration form'!AD191<>\"\",'Product registration form'!AD191,\"\")","v":""},null,null,null,null,null,null,{"$error":"#VALUE!"}]
[{"$f":"IF('Product registration form'!U192<>\"\",'Product registration form'!U192,\"\")","v":""},{"$f":"IF('Product registration form'!Q192<>\"\",'Product registration form'!Q192,\"\")","v":""},null,null,{"$f":"IF('Product registration form'!AD192<>\"\",'Product registration form'!AD192,\"\")","v":""},null,null,null,null,null,null,{"$error":"#VALUE!"}]
[{"$f":"IF('Product registration form'!U193<>\"\",'Product registration form'!U193,\"\")","v":""},{"$f":"IF('Product registration form'!Q193<>\"\",'Product registration form'!Q193,\"\")","v":""},null,null,{"$f":"IF('Product registration form'!AD193<>\"\",'Product registration form'!AD193,\"\")","v":""},null,null,null,null,null,null,{"$error":"#VALUE!"}]
[{"$f":"IF('Product registration form'!U194<>\"\",'Product registration form'!U194,\"\")","v":""},{"$f":"IF('Product registration form'!Q194<>\"\",'Product registration form'!Q194,\"\")","v":""},null,null,{"$f":"IF('Product registration form'!AD194<>\"\",'Product registration form'!AD194,\"\")","v":""},null,null,null,null,null,null,{"$error":"#VALUE!"}]
[{"$f":"IF('Product registration form'!U195<>\"\",'Product registration form'!U195,\"\")","v":""},{"$f":"IF('Product registration form'!Q195<>\"\",'Product registration form'!Q195,\"\")","v":""},null,null,{"$f":"IF('Product registration form'!AD195<>\"\",'Product registration form'!AD195,\"\")","v":""},null,null,null,null,null,null,{"$error":"#VALUE!"}]
[{"$f":"IF('Product registration form'!U196<>\"\",'Product registration form'!U196,\"\")","v":""},{"$f":"IF('Product registration form'!Q196<>\"\",'Product registration form'!Q196,\"\")","v":""},null,null,{"$f":"IF('Product registration form'!AD196<>\"\",'Product registration form'!AD196,\"\")","v":""},null,null,null,null,null,null,{"$error":"#VALUE!"}]
[{"$f":"IF('Product registration form'!U197<>\"\",'Product registration form'!U197,\"\")","v":""},{"$f":"IF('Product registration form'!Q197<>\"\",'Product registration form'!Q197,\"\")","v":""},null,null,{"$f":"IF('Product registration form'!AD197<>\"\",'Product registration form'!AD197,\"\")","v":""},null,null,null,null,null,null,{"$error":"#VALUE!"}]
[{"$f":"IF('Product registration form'!U198<>\"\",'Product registration form'!U198,\"\")","v":""},{"$f":"IF('Product registration form'!Q198<>\"\",'Product registration form'!Q198,\"\")","v":""},null,null,{"$f":"IF('Product registration form'!AD198<>\"\",'Product registration form'!AD198,\"\")","v":""},null,null,null,null,null,null,{"$f":"(E198*1000) - G198 - H198 - I198 - J198 - K198","v":{"$error":"#VALUE!"}}]
[{"$f":"IF('Product registration form'!U199<>\"\",'Product registration form'!U199,\"\")","v":""},{"$f":"IF('Product registration form'!Q199<>\"\",'Product registration form'!Q199,\"\")","v":""},null,null,{"$f":"IF('Product registration form'!AD199<>\"\",'Product registration form'!AD199,\"\")","v":""},null,null,null,null,null,null,{"$error":"#VALUE!"}]
[{"$f":"IF('Product registration form'!U200<>\"\",'Product registration form'!U200,\"\")","v":""},{"$f":"IF('Product registration form'!Q200<>\"\",'Product registration form'!Q200,\"\")","v":""},null,null,{"$f":"IF('Product registration form'!AD200<>\"\",'Product registration form'!AD200,\"\")","v":""},null,null,null,null,null,null,{"$error":"#VALUE!"}]

{"sheet":"Unpacking data","index":5,"n_rows":200,"n_cols":9,"rows_kept":200,"cut":false,"hidden":false,"merged":[]}
[]
[]
[null,"To be filled by vendor",null,null,"To be filled by buying dep.",null,null,"To be filled by Master Data."]
["GTIN","Article description","Gross weight/BOX KG","Depth/BOX MM","Width/BOX MM","Height/BOX MM","CA Per Box","BOX per layer","BOX per pallet"]
[{"$f":"IF('Product registration form'!U5<>\"\",'Product registration form'!U5,\"\")","v":""},{"$f":"IF('Product registration form'!Q5<>\"\",'Product registration form'!Q5,\"\")","v":""}]
[{"$f":"IF('Product registration form'!U6<>\"\",'Product registration form'!U6,\"\")","v":""},{"$f":"IF('Product registration form'!Q6<>\"\",'Product registration form'!Q6,\"\")","v":""}]
[{"$f":"IF('Product registration form'!U7<>\"\",'Product registration form'!U7,\"\")","v":""},{"$f":"IF('Product registration form'!Q7<>\"\",'Product registration form'!Q7,\"\")","v":""}]
[{"$f":"IF('Product registration form'!U8<>\"\",'Product registration form'!U8,\"\")","v":""},{"$f":"IF('Product registration form'!Q8<>\"\",'Product registration form'!Q8,\"\")","v":""}]
[{"$f":"IF('Product registration form'!U9<>\"\",'Product registration form'!U9,\"\")","v":""},{"$f":"IF('Product registration form'!Q9<>\"\",'Product registration form'!Q9,\"\")","v":""}]
[{"$f":"IF('Product registration form'!U10<>\"\",'Product registration form'!U10,\"\")","v":""},{"$f":"IF('Product registration form'!Q10<>\"\",'Product registration form'!Q10,\"\")","v":""}]
[{"$f":"IF('Product registration form'!U11<>\"\",'Product registration form'!U11,\"\")","v":""},{"$f":"IF('Product registration form'!Q11<>\"\",'Product registration form'!Q11,\"\")","v":""}]
[{"$f":"IF('Product registration form'!U12<>\"\",'Product registration form'!U12,\"\")","v":""},{"$f":"IF('Product registration form'!Q12<>\"\",'Product registration form'!Q12,\"\")","v":""}]
[{"$f":"IF('Product registration form'!U13<>\"\",'Product registration form'!U13,\"\")","v":""},{"$f":"IF('Product registration form'!Q13<>\"\",'Product registration form'!Q13,\"\")","v":""}]
[{"$f":"IF('Product registration form'!U14<>\"\",'Product registration form'!U14,\"\")","v":""},{"$f":"IF('Product registration form'!Q14<>\"\",'Product registration form'!Q14,\"\")","v":""}]
[{"$f":"IF('Product registration form'!U15<>\"\",'Product registration form'!U15,\"\")","v":""},{"$f":"IF('Product registration form'!Q15<>\"\",'Product registration form'!Q15,\"\")","v":""}]
[{"$f":"IF('Product registration form'!U16<>\"\",'Product registration form'!U16,\"\")","v":""},{"$f":"IF('Product registration form'!Q16<>\"\",'Product registration form'!Q16,\"\")","v":""}]
[{"$f":"IF('Product registration form'!U17<>\"\",'Product registration form'!U17,\"\")","v":""},{"$f":"IF('Product registration form'!Q17<>\"\",'Product registration form'!Q17,\"\")","v":""}]
[{"$f":"IF('Product registration form'!U18<>\"\",'Product registration form'!U18,\"\")","v":""},{"$f":"IF('Product registration form'!Q18<>\"\",'Product registration form'!Q18,\"\")","v":""}]
[{"$f":"IF('Product registration form'!U19<>\"\",'Product registration form'!U19,\"\")","v":""},{"$f":"IF('Product registration form'!Q19<>\"\",'Product registration form'!Q19,\"\")","v":""}]
[{"$f":"IF('Product registration form'!U20<>\"\",'Product registration form'!U20,\"\")","v":""},{"$f":"IF('Product registration form'!Q20<>\"\",'Product registration form'!Q20,\"\")","v":""}]
[{"$f":"IF('Product registration form'!U21<>\"\",'Product registration form'!U21,\"\")","v":""},{"$f":"IF('Product registration form'!Q21<>\"\",'Product registration form'!Q21,\"\")","v":""}]
[{"$f":"IF('Product registration form'!U22<>\"\",'Product registration form'!U22,\"\")","v":""},{"$f":"IF('Product registration form'!Q22<>\"\",'Product registration form'!Q22,\"\")","v":""}]
[{"$f":"IF('Product registration form'!U23<>\"\",'Product registration form'!U23,\"\")","v":""},{"$f":"IF('Product registration form'!Q23<>\"\",'Product registration form'!Q23,\"\")","v":""}]
[{"$f":"IF('Product registration form'!U24<>\"\",'Product registration form'!U24,\"\")","v":""},{"$f":"IF('Product registration form'!Q24<>\"\",'Product registration form'!Q24,\"\")","v":""}]
[{"$f":"IF('Product registration form'!U25<>\"\",'Product registration form'!U25,\"\")","v":""},{"$f":"IF('Product registration form'!Q25<>\"\",'Product registration form'!Q25,\"\")","v":""}]
[{"$f":"IF('Product registration form'!U26<>\"\",'Product registration form'!U26,\"\")","v":""},{"$f":"IF('Product registration form'!Q26<>\"\",'Product registration form'!Q26,\"\")","v":""}]
[{"$f":"IF('Product registration form'!U27<>\"\",'Product registration form'!U27,\"\")","v":""},{"$f":"IF('Product registration form'!Q27<>\"\",'Product registration form'!Q27,\"\")","v":""}]
[{"$f":"IF('Product registration form'!U28<>\"\",'Product registration form'!U28,\"\")","v":""},{"$f":"IF('Product registration form'!Q28<>\"\",'Product registration form'!Q28,\"\")","v":""}]
[{"$f":"IF('Product registration form'!U29<>\"\",'Product registration form'!U29,\"\")","v":""},{"$f":"IF('Product registration form'!Q29<>\"\",'Product registration form'!Q29,\"\")","v":""}]
[{"$f":"IF('Product registration form'!U30<>\"\",'Product registration form'!U30,\"\")","v":""},{"$f":"IF('Product registration form'!Q30<>\"\",'Product registration form'!Q30,\"\")","v":""}]
[{"$f":"IF('Product registration form'!U31<>\"\",'Product registration form'!U31,\"\")","v":""},{"$f":"IF('Product registration form'!Q31<>\"\",'Product registration form'!Q31,\"\")","v":""}]
[{"$f":"IF('Product registration form'!U32<>\"\",'Product registration form'!U32,\"\")","v":""},{"$f":"IF('Product registration form'!Q32<>\"\",'Product registration form'!Q32,\"\")","v":""}]
[{"$f":"IF('Product registration form'!U33<>\"\",'Product registration form'!U33,\"\")","v":""},{"$f":"IF('Product registration form'!Q33<>\"\",'Product registration form'!Q33,\"\")","v":""}]
[{"$f":"IF('Product registration form'!U34<>\"\",'Product registration form'!U34,\"\")","v":""},{"$f":"IF('Product registration form'!Q34<>\"\",'Product registration form'!Q34,\"\")","v":""}]
[{"$f":"IF('Product registration form'!U35<>\"\",'Product registration form'!U35,\"\")","v":""},{"$f":"IF('Product registration form'!Q35<>\"\",'Product registration form'!Q35,\"\")","v":""}]
[{"$f":"IF('Product registration form'!U36<>\"\",'Product registration form'!U36,\"\")","v":""},{"$f":"IF('Product registration form'!Q36<>\"\",'Product registration form'!Q36,\"\")","v":""}]
[{"$f":"IF('Product registration form'!U37<>\"\",'Product registration form'!U37,\"\")","v":""},{"$f":"IF('Product registration form'!Q37<>\"\",'Product registration form'!Q37,\"\")","v":""}]
[{"$f":"IF('Product registration form'!U38<>\"\",'Product registration form'!U38,\"\")","v":""},{"$f":"IF('Product registration form'!Q38<>\"\",'Product registration form'!Q38,\"\")","v":""}]
[{"$f":"IF('Product registration form'!U39<>\"\",'Product registration form'!U39,\"\")","v":""},{"$f":"IF('Product registration form'!Q39<>\"\",'Product registration form'!Q39,\"\")","v":""}]
[{"$f":"IF('Product registration form'!U40<>\"\",'Product registration form'!U40,\"\")","v":""},{"$f":"IF('Product registration form'!Q40<>\"\",'Product registration form'!Q40,\"\")","v":""}]
[{"$f":"IF('Product registration form'!U41<>\"\",'Product registration form'!U41,\"\")","v":""},{"$f":"IF('Product registration form'!Q41<>\"\",'Product registration form'!Q41,\"\")","v":""}]
[{"$f":"IF('Product registration form'!U42<>\"\",'Product registration form'!U42,\"\")","v":""},{"$f":"IF('Product registration form'!Q42<>\"\",'Product registration form'!Q42,\"\")","v":""}]
[{"$f":"IF('Product registration form'!U43<>\"\",'Product registration form'!U43,\"\")","v":""},{"$f":"IF('Product registration form'!Q43<>\"\",'Product registration form'!Q43,\"\")","v":""}]
[{"$f":"IF('Product registration form'!U44<>\"\",'Product registration form'!U44,\"\")","v":""},{"$f":"IF('Product registration form'!Q44<>\"\",'Product registration form'!Q44,\"\")","v":""}]
[{"$f":"IF('Product registration form'!U45<>\"\",'Product registration form'!U45,\"\")","v":""},{"$f":"IF('Product registration form'!Q45<>\"\",'Product registration form'!Q45,\"\")","v":""}]
[{"$f":"IF('Product registration form'!U46<>\"\",'Product registration form'!U46,\"\")","v":""},{"$f":"IF('Product registration form'!Q46<>\"\",'Product registration form'!Q46,\"\")","v":""}]
[{"$f":"IF('Product registration form'!U47<>\"\",'Product registration form'!U47,\"\")","v":""},{"$f":"IF('Product registration form'!Q47<>\"\",'Product registration form'!Q47,\"\")","v":""}]
[{"$f":"IF('Product registration form'!U48<>\"\",'Product registration form'!U48,\"\")","v":""},{"$f":"IF('Product registration form'!Q48<>\"\",'Product registration form'!Q48,\"\")","v":""}]
[{"$f":"IF('Product registration form'!U49<>\"\",'Product registration form'!U49,\"\")","v":""},{"$f":"IF('Product registration form'!Q49<>\"\",'Product registration form'!Q49,\"\")","v":""}]
[{"$f":"IF('Product registration form'!U50<>\"\",'Product registration form'!U50,\"\")","v":""},{"$f":"IF('Product registration form'!Q50<>\"\",'Product registration form'!Q50,\"\")","v":""}]
[{"$f":"IF('Product registration form'!U51<>\"\",'Product registration form'!U51,\"\")","v":""},{"$f":"IF('Product registration form'!Q51<>\"\",'Product registration form'!Q51,\"\")","v":""}]
[{"$f":"IF('Product registration form'!U52<>\"\",'Product registration form'!U52,\"\")","v":""},{"$f":"IF('Product registration form'!Q52<>\"\",'Product registration form'!Q52,\"\")","v":""}]
[{"$f":"IF('Product registration form'!U53<>\"\",'Product registration form'!U53,\"\")","v":""},{"$f":"IF('Product registration form'!Q53<>\"\",'Product registration form'!Q53,\"\")","v":""}]
[{"$f":"IF('Product registration form'!U54<>\"\",'Product registration form'!U54,\"\")","v":""},{"$f":"IF('Product registration form'!Q54<>\"\",'Product registration form'!Q54,\"\")","v":""}]
[{"$f":"IF('Product registration form'!U55<>\"\",'Product registration form'!U55,\"\")","v":""},{"$f":"IF('Product registration form'!Q55<>\"\",'Product registration form'!Q55,\"\")","v":""}]
[{"$f":"IF('Product registration form'!U56<>\"\",'Product registration form'!U56,\"\")","v":""},{"$f":"IF('Product registration form'!Q56<>\"\",'Product registration form'!Q56,\"\")","v":""}]
[{"$f":"IF('Product registration form'!U57<>\"\",'Product registration form'!U57,\"\")","v":""},{"$f":"IF('Product registration form'!Q57<>\"\",'Product registration form'!Q57,\"\")","v":""}]
[{"$f":"IF('Product registration form'!U58<>\"\",'Product registration form'!U58,\"\")","v":""},{"$f":"IF('Product registration form'!Q58<>\"\",'Product registration form'!Q58,\"\")","v":""}]
[{"$f":"IF('Product registration form'!U59<>\"\",'Product registration form'!U59,\"\")","v":""},{"$f":"IF('Product registration form'!Q59<>\"\",'Product registration form'!Q59,\"\")","v":""}]
[{"$f":"IF('Product registration form'!U60<>\"\",'Product registration form'!U60,\"\")","v":""},{"$f":"IF('Product registration form'!Q60<>\"\",'Product registration form'!Q60,\"\")","v":""}]
[{"$f":"IF('Product registration form'!U61<>\"\",'Product registration form'!U61,\"\")","v":""},{"$f":"IF('Product registration form'!Q61<>\"\",'Product registration form'!Q61,\"\")","v":""}]
[{"$f":"IF('Product registration form'!U62<>\"\",'Product registration form'!U62,\"\")","v":""},{"$f":"IF('Product registration form'!Q62<>\"\",'Product registration form'!Q62,\"\")","v":""}]
[{"$f":"IF('Product registration form'!U63<>\"\",'Product registration form'!U63,\"\")","v":""},{"$f":"IF('Product registration form'!Q63<>\"\",'Product registration form'!Q63,\"\")","v":""}]
[{"$f":"IF('Product registration form'!U64<>\"\",'Product registration form'!U64,\"\")","v":""},{"$f":"IF('Product registration form'!Q64<>\"\",'Product registration form'!Q64,\"\")","v":""}]
[{"$f":"IF('Product registration form'!U65<>\"\",'Product registration form'!U65,\"\")","v":""},{"$f":"IF('Product registration form'!Q65<>\"\",'Product registration form'!Q65,\"\")","v":""}]
[{"$f":"IF('Product registration form'!U66<>\"\",'Product registration form'!U66,\"\")","v":""},{"$f":"IF('Product registration form'!Q66<>\"\",'Product registration form'!Q66,\"\")","v":""}]
[{"$f":"IF('Product registration form'!U67<>\"\",'Product registration form'!U67,\"\")","v":""},{"$f":"IF('Product registration form'!Q67<>\"\",'Product registration form'!Q67,\"\")","v":""}]
[{"$f":"IF('Product registration form'!U68<>\"\",'Product registration form'!U68,\"\")","v":""},{"$f":"IF('Product registration form'!Q68<>\"\",'Product registration form'!Q68,\"\")","v":""}]
[{"$f":"IF('Product registration form'!U69<>\"\",'Product registration form'!U69,\"\")","v":""},{"$f":"IF('Product registration form'!Q69<>\"\",'Product registration form'!Q69,\"\")","v":""}]
[{"$f":"IF('Product registration form'!U70<>\"\",'Product registration form'!U70,\"\")","v":""},{"$f":"IF('Product registration form'!Q70<>\"\",'Product registration form'!Q70,\"\")","v":""}]
[{"$f":"IF('Product registration form'!U71<>\"\",'Product registration form'!U71,\"\")","v":""},{"$f":"IF('Product registration form'!Q71<>\"\",'Product registration form'!Q71,\"\")","v":""}]
[{"$f":"IF('Product registration form'!U72<>\"\",'Product registration form'!U72,\"\")","v":""},{"$f":"IF('Product registration form'!Q72<>\"\",'Product registration form'!Q72,\"\")","v":""}]
[{"$f":"IF('Product registration form'!U73<>\"\",'Product registration form'!U73,\"\")","v":""},{"$f":"IF('Product registration form'!Q73<>\"\",'Product registration form'!Q73,\"\")","v":""}]
[{"$f":"IF('Product registration form'!U74<>\"\",'Product registration form'!U74,\"\")","v":""},{"$f":"IF('Product registration form'!Q74<>\"\",'Product registration form'!Q74,\"\")","v":""}]
[{"$f":"IF('Product registration form'!U75<>\"\",'Product registration form'!U75,\"\")","v":""},{"$f":"IF('Product registration form'!Q75<>\"\",'Product registration form'!Q75,\"\")","v":""}]
[{"$f":"IF('Product registration form'!U76<>\"\",'Product registration form'!U76,\"\")","v":""},{"$f":"IF('Product registration form'!Q76<>\"\",'Product registration form'!Q76,\"\")","v":""}]
[{"$f":"IF('Product registration form'!U77<>\"\",'Product registration form'!U77,\"\")","v":""},{"$f":"IF('Product registration form'!Q77<>\"\",'Product registration form'!Q77,\"\")","v":""}]
[{"$f":"IF('Product registration form'!U78<>\"\",'Product registration form'!U78,\"\")","v":""},{"$f":"IF('Product registration form'!Q78<>\"\",'Product registration form'!Q78,\"\")","v":""}]
[{"$f":"IF('Product registration form'!U79<>\"\",'Product registration form'!U79,\"\")","v":""},{"$f":"IF('Product registration form'!Q79<>\"\",'Product registration form'!Q79,\"\")","v":""}]
[{"$f":"IF('Product registration form'!U80<>\"\",'Product registration form'!U80,\"\")","v":""},{"$f":"IF('Product registration form'!Q80<>\"\",'Product registration form'!Q80,\"\")","v":""}]
[{"$f":"IF('Product registration form'!U81<>\"\",'Product registration form'!U81,\"\")","v":""},{"$f":"IF('Product registration form'!Q81<>\"\",'Product registration form'!Q81,\"\")","v":""}]
[{"$f":"IF('Product registration form'!U82<>\"\",'Product registration form'!U82,\"\")","v":""},{"$f":"IF('Product registration form'!Q82<>\"\",'Product registration form'!Q82,\"\")","v":""}]
[{"$f":"IF('Product registration form'!U83<>\"\",'Product registration form'!U83,\"\")","v":""},{"$f":"IF('Product registration form'!Q83<>\"\",'Product registration form'!Q83,\"\")","v":""}]
[{"$f":"IF('Product registration form'!U84<>\"\",'Product registration form'!U84,\"\")","v":""},{"$f":"IF('Product registration form'!Q84<>\"\",'Product registration form'!Q84,\"\")","v":""}]
[{"$f":"IF('Product registration form'!U85<>\"\",'Product registration form'!U85,\"\")","v":""},{"$f":"IF('Product registration form'!Q85<>\"\",'Product registration form'!Q85,\"\")","v":""}]
[{"$f":"IF('Product registration form'!U86<>\"\",'Product registration form'!U86,\"\")","v":""},{"$f":"IF('Product registration form'!Q86<>\"\",'Product registration form'!Q86,\"\")","v":""}]
[{"$f":"IF('Product registration form'!U87<>\"\",'Product registration form'!U87,\"\")","v":""},{"$f":"IF('Product registration form'!Q87<>\"\",'Product registration form'!Q87,\"\")","v":""}]
[{"$f":"IF('Product registration form'!U88<>\"\",'Product registration form'!U88,\"\")","v":""},{"$f":"IF('Product registration form'!Q88<>\"\",'Product registration form'!Q88,\"\")","v":""}]
[{"$f":"IF('Product registration form'!U89<>\"\",'Product registration form'!U89,\"\")","v":""},{"$f":"IF('Product registration form'!Q89<>\"\",'Product registration form'!Q89,\"\")","v":""}]
[{"$f":"IF('Product registration form'!U90<>\"\",'Product registration form'!U90,\"\")","v":""},{"$f":"IF('Product registration form'!Q90<>\"\",'Product registration form'!Q90,\"\")","v":""}]
[{"$f":"IF('Product registration form'!U91<>\"\",'Product registration form'!U91,\"\")","v":""},{"$f":"IF('Product registration form'!Q91<>\"\",'Product registration form'!Q91,\"\")","v":""}]
[{"$f":"IF('Product registration form'!U92<>\"\",'Product registration form'!U92,\"\")","v":""},{"$f":"IF('Product registration form'!Q92<>\"\",'Product registration form'!Q92,\"\")","v":""}]
[{"$f":"IF('Product registration form'!U93<>\"\",'Product registration form'!U93,\"\")","v":""},{"$f":"IF('Product registration form'!Q93<>\"\",'Product registration form'!Q93,\"\")","v":""}]
[{"$f":"IF('Product registration form'!U94<>\"\",'Product registration form'!U94,\"\")","v":""},{"$f":"IF('Product registration form'!Q94<>\"\",'Product registration form'!Q94,\"\")","v":""}]
[{"$f":"IF('Product registration form'!U95<>\"\",'Product registration form'!U95,\"\")","v":""},{"$f":"IF('Product registration form'!Q95<>\"\",'Product registration form'!Q95,\"\")","v":""}]
[{"$f":"IF('Product registration form'!U96<>\"\",'Product registration form'!U96,\"\")","v":""},{"$f":"IF('Product registration form'!Q96<>\"\",'Product registration form'!Q96,\"\")","v":""}]
[{"$f":"IF('Product registration form'!U97<>\"\",'Product registration form'!U97,\"\")","v":""},{"$f":"IF('Product registration form'!Q97<>\"\",'Product registration form'!Q97,\"\")","v":""}]
[{"$f":"IF('Product registration form'!U98<>\"\",'Product registration form'!U98,\"\")","v":""},{"$f":"IF('Product registration form'!Q98<>\"\",'Product registration form'!Q98,\"\")","v":""}]
[{"$f":"IF('Product registration form'!U99<>\"\",'Product registration form'!U99,\"\")","v":""},{"$f":"IF('Product registration form'!Q99<>\"\",'Product registration form'!Q99,\"\")","v":""}]
[{"$f":"IF('Product registration form'!U100<>\"\",'Product registration form'!U100,\"\")","v":""},{"$f":"IF('Product registration form'!Q100<>\"\",'Product registration form'!Q100,\"\")","v":""}]
[{"$f":"IF('Product registration form'!U101<>\"\",'Product registration form'!U101,\"\")","v":""},{"$f":"IF('Product registration form'!Q101<>\"\",'Product registration form'!Q101,\"\")","v":""}]
[{"$f":"IF('Product registration form'!U102<>\"\",'Product registration form'!U102,\"\")","v":""},{"$f":"IF('Product registration form'!Q102<>\"\",'Product registration form'!Q102,\"\")","v":""}]
[{"$f":"IF('Product registration form'!U103<>\"\",'Product registration form'!U103,\"\")","v":""},{"$f":"IF('Product registration form'!Q103<>\"\",'Product registration form'!Q103,\"\")","v":""}]
[{"$f":"IF('Product registration form'!U104<>\"\",'Product registration form'!U104,\"\")","v":""},{"$f":"IF('Product registration form'!Q104<>\"\",'Product registration form'!Q104,\"\")","v":""}]
[{"$f":"IF('Product registration form'!U105<>\"\",'Product registration form'!U105,\"\")","v":""},{"$f":"IF('Product registration form'!Q105<>\"\",'Product registration form'!Q105,\"\")","v":""}]
[{"$f":"IF('Product registration form'!U106<>\"\",'Product registration form'!U106,\"\")","v":""},{"$f":"IF('Product registration form'!Q106<>\"\",'Product registration form'!Q106,\"\")","v":""}]
[{"$f":"IF('Product registration form'!U107<>\"\",'Product registration form'!U107,\"\")","v":""},{"$f":"IF('Product registration form'!Q107<>\"\",'Product registration form'!Q107,\"\")","v":""}]
[{"$f":"IF('Product registration form'!U108<>\"\",'Product registration form'!U108,\"\")","v":""},{"$f":"IF('Product registration form'!Q108<>\"\",'Product registration form'!Q108,\"\")","v":""}]
[{"$f":"IF('Product registration form'!U109<>\"\",'Product registration form'!U109,\"\")","v":""},{"$f":"IF('Product registration form'!Q109<>\"\",'Product registration form'!Q109,\"\")","v":""}]
[{"$f":"IF('Product registration form'!U110<>\"\",'Product registration form'!U110,\"\")","v":""},{"$f":"IF('Product registration form'!Q110<>\"\",'Product registration form'!Q110,\"\")","v":""}]
[{"$f":"IF('Product registration form'!U111<>\"\",'Product registration form'!U111,\"\")","v":""},{"$f":"IF('Product registration form'!Q111<>\"\",'Product registration form'!Q111,\"\")","v":""}]
[{"$f":"IF('Product registration form'!U112<>\"\",'Product registration form'!U112,\"\")","v":""},{"$f":"IF('Product registration form'!Q112<>\"\",'Product registration form'!Q112,\"\")","v":""}]
[{"$f":"IF('Product registration form'!U113<>\"\",'Product registration form'!U113,\"\")","v":""},{"$f":"IF('Product registration form'!Q113<>\"\",'Product registration form'!Q113,\"\")","v":""}]
[{"$f":"IF('Product registration form'!U114<>\"\",'Product registration form'!U114,\"\")","v":""},{"$f":"IF('Product registration form'!Q114<>\"\",'Product registration form'!Q114,\"\")","v":""}]
[{"$f":"IF('Product registration form'!U115<>\"\",'Product registration form'!U115,\"\")","v":""},{"$f":"IF('Product registration form'!Q115<>\"\",'Product registration form'!Q115,\"\")","v":""}]
[{"$f":"IF('Product registration form'!U116<>\"\",'Product registration form'!U116,\"\")","v":""},{"$f":"IF('Product registration form'!Q116<>\"\",'Product registration form'!Q116,\"\")","v":""}]
[{"$f":"IF('Product registration form'!U117<>\"\",'Product registration form'!U117,\"\")","v":""},{"$f":"IF('Product registration form'!Q117<>\"\",'Product registration form'!Q117,\"\")","v":""}]
[{"$f":"IF('Product registration form'!U118<>\"\",'Product registration form'!U118,\"\")","v":""},{"$f":"IF('Product registration form'!Q118<>\"\",'Product registration form'!Q118,\"\")","v":""}]
[{"$f":"IF('Product registration form'!U119<>\"\",'Product registration form'!U119,\"\")","v":""},{"$f":"IF('Product registration form'!Q119<>\"\",'Product registration form'!Q119,\"\")","v":""}]
[{"$f":"IF('Product registration form'!U120<>\"\",'Product registration form'!U120,\"\")","v":""},{"$f":"IF('Product registration form'!Q120<>\"\",'Product registration form'!Q120,\"\")","v":""}]
[{"$f":"IF('Product registration form'!U121<>\"\",'Product registration form'!U121,\"\")","v":""},{"$f":"IF('Product registration form'!Q121<>\"\",'Product registration form'!Q121,\"\")","v":""}]
[{"$f":"IF('Product registration form'!U122<>\"\",'Product registration form'!U122,\"\")","v":""},{"$f":"IF('Product registration form'!Q122<>\"\",'Product registration form'!Q122,\"\")","v":""}]
[{"$f":"IF('Product registration form'!U123<>\"\",'Product registration form'!U123,\"\")","v":""},{"$f":"IF('Product registration form'!Q123<>\"\",'Product registration form'!Q123,\"\")","v":""}]
[{"$f":"IF('Product registration form'!U124<>\"\",'Product registration form'!U124,\"\")","v":""},{"$f":"IF('Product registration form'!Q124<>\"\",'Product registration form'!Q124,\"\")","v":""}]
[{"$f":"IF('Product registration form'!U125<>\"\",'Product registration form'!U125,\"\")","v":""},{"$f":"IF('Product registration form'!Q125<>\"\",'Product registration form'!Q125,\"\")","v":""}]
[{"$f":"IF('Product registration form'!U126<>\"\",'Product registration form'!U126,\"\")","v":""},{"$f":"IF('Product registration form'!Q126<>\"\",'Product registration form'!Q126,\"\")","v":""}]
[{"$f":"IF('Product registration form'!U127<>\"\",'Product registration form'!U127,\"\")","v":""},{"$f":"IF('Product registration form'!Q127<>\"\",'Product registration form'!Q127,\"\")","v":""}]
[{"$f":"IF('Product registration form'!U128<>\"\",'Product registration form'!U128,\"\")","v":""},{"$f":"IF('Product registration form'!Q128<>\"\",'Product registration form'!Q128,\"\")","v":""}]
[{"$f":"IF('Product registration form'!U129<>\"\",'Product registration form'!U129,\"\")","v":""},{"$f":"IF('Product registration form'!Q129<>\"\",'Product registration form'!Q129,\"\")","v":""}]
[{"$f":"IF('Product registration form'!U130<>\"\",'Product registration form'!U130,\"\")","v":""},{"$f":"IF('Product registration form'!Q130<>\"\",'Product registration form'!Q130,\"\")","v":""}]
[{"$f":"IF('Product registration form'!U131<>\"\",'Product registration form'!U131,\"\")","v":""},{"$f":"IF('Product registration form'!Q131<>\"\",'Product registration form'!Q131,\"\")","v":""}]
[{"$f":"IF('Product registration form'!U132<>\"\",'Product registration form'!U132,\"\")","v":""},{"$f":"IF('Product registration form'!Q132<>\"\",'Product registration form'!Q132,\"\")","v":""}]
[{"$f":"IF('Product registration form'!U133<>\"\",'Product registration form'!U133,\"\")","v":""},{"$f":"IF('Product registration form'!Q133<>\"\",'Product registration form'!Q133,\"\")","v":""}]
[{"$f":"IF('Product registration form'!U134<>\"\",'Product registration form'!U134,\"\")","v":""},{"$f":"IF('Product registration form'!Q134<>\"\",'Product registration form'!Q134,\"\")","v":""}]
[{"$f":"IF('Product registration form'!U135<>\"\",'Product registration form'!U135,\"\")","v":""},{"$f":"IF('Product registration form'!Q135<>\"\",'Product registration form'!Q135,\"\")","v":""}]
[{"$f":"IF('Product registration form'!U136<>\"\",'Product registration form'!U136,\"\")","v":""},{"$f":"IF('Product registration form'!Q136<>\"\",'Product registration form'!Q136,\"\")","v":""}]
[{"$f":"IF('Product registration form'!U137<>\"\",'Product registration form'!U137,\"\")","v":""},{"$f":"IF('Product registration form'!Q137<>\"\",'Product registration form'!Q137,\"\")","v":""}]
[{"$f":"IF('Product registration form'!U138<>\"\",'Product registration form'!U138,\"\")","v":""},{"$f":"IF('Product registration form'!Q138<>\"\",'Product registration form'!Q138,\"\")","v":""}]
[{"$f":"IF('Product registration form'!U139<>\"\",'Product registration form'!U139,\"\")","v":""},{"$f":"IF('Product registration form'!Q139<>\"\",'Product registration form'!Q139,\"\")","v":""}]
[{"$f":"IF('Product registration form'!U140<>\"\",'Product registration form'!U140,\"\")","v":""},{"$f":"IF('Product registration form'!Q140<>\"\",'Product registration form'!Q140,\"\")","v":""}]
[{"$f":"IF('Product registration form'!U141<>\"\",'Product registration form'!U141,\"\")","v":""},{"$f":"IF('Product registration form'!Q141<>\"\",'Product registration form'!Q141,\"\")","v":""}]
[{"$f":"IF('Product registration form'!U142<>\"\",'Product registration form'!U142,\"\")","v":""},{"$f":"IF('Product registration form'!Q142<>\"\",'Product registration form'!Q142,\"\")","v":""}]
[{"$f":"IF('Product registration form'!U143<>\"\",'Product registration form'!U143,\"\")","v":""},{"$f":"IF('Product registration form'!Q143<>\"\",'Product registration form'!Q143,\"\")","v":""}]
[{"$f":"IF('Product registration form'!U144<>\"\",'Product registration form'!U144,\"\")","v":""},{"$f":"IF('Product registration form'!Q144<>\"\",'Product registration form'!Q144,\"\")","v":""}]
[{"$f":"IF('Product registration form'!U145<>\"\",'Product registration form'!U145,\"\")","v":""},{"$f":"IF('Product registration form'!Q145<>\"\",'Product registration form'!Q145,\"\")","v":""}]
[{"$f":"IF('Product registration form'!U146<>\"\",'Product registration form'!U146,\"\")","v":""},{"$f":"IF('Product registration form'!Q146<>\"\",'Product registration form'!Q146,\"\")","v":""}]
[{"$f":"IF('Product registration form'!U147<>\"\",'Product registration form'!U147,\"\")","v":""},{"$f":"IF('Product registration form'!Q147<>\"\",'Product registration form'!Q147,\"\")","v":""}]
[{"$f":"IF('Product registration form'!U148<>\"\",'Product registration form'!U148,\"\")","v":""},{"$f":"IF('Product registration form'!Q148<>\"\",'Product registration form'!Q148,\"\")","v":""}]
[{"$f":"IF('Product registration form'!U149<>\"\",'Product registration form'!U149,\"\")","v":""},{"$f":"IF('Product registration form'!Q149<>\"\",'Product registration form'!Q149,\"\")","v":""}]
[{"$f":"IF('Product registration form'!U150<>\"\",'Product registration form'!U150,\"\")","v":""},{"$f":"IF('Product registration form'!Q150<>\"\",'Product registration form'!Q150,\"\")","v":""}]
[{"$f":"IF('Product registration form'!U151<>\"\",'Product registration form'!U151,\"\")","v":""},{"$f":"IF('Product registration form'!Q151<>\"\",'Product registration form'!Q151,\"\")","v":""}]
[{"$f":"IF('Product registration form'!U152<>\"\",'Product registration form'!U152,\"\")","v":""},{"$f":"IF('Product registration form'!Q152<>\"\",'Product registration form'!Q152,\"\")","v":""}]
[{"$f":"IF('Product registration form'!U153<>\"\",'Product registration form'!U153,\"\")","v":""},{"$f":"IF('Product registration form'!Q153<>\"\",'Product registration form'!Q153,\"\")","v":""}]
[{"$f":"IF('Product registration form'!U154<>\"\",'Product registration form'!U154,\"\")","v":""},{"$f":"IF('Product registration form'!Q154<>\"\",'Product registration form'!Q154,\"\")","v":""}]
[{"$f":"IF('Product registration form'!U155<>\"\",'Product registration form'!U155,\"\")","v":""},{"$f":"IF('Product registration form'!Q155<>\"\",'Product registration form'!Q155,\"\")","v":""}]
[{"$f":"IF('Product registration form'!U156<>\"\",'Product registration form'!U156,\"\")","v":""},{"$f":"IF('Product registration form'!Q156<>\"\",'Product registration form'!Q156,\"\")","v":""}]
[{"$f":"IF('Product registration form'!U157<>\"\",'Product registration form'!U157,\"\")","v":""},{"$f":"IF('Product registration form'!Q157<>\"\",'Product registration form'!Q157,\"\")","v":""}]
[{"$f":"IF('Product registration form'!U158<>\"\",'Product registration form'!U158,\"\")","v":""},{"$f":"IF('Product registration form'!Q158<>\"\",'Product registration form'!Q158,\"\")","v":""}]
[{"$f":"IF('Product registration form'!U159<>\"\",'Product registration form'!U159,\"\")","v":""},{"$f":"IF('Product registration form'!Q159<>\"\",'Product registration form'!Q159,\"\")","v":""}]
[{"$f":"IF('Product registration form'!U160<>\"\",'Product registration form'!U160,\"\")","v":""},{"$f":"IF('Product registration form'!Q160<>\"\",'Product registration form'!Q160,\"\")","v":""}]
[{"$f":"IF('Product registration form'!U161<>\"\",'Product registration form'!U161,\"\")","v":""},{"$f":"IF('Product registration form'!Q161<>\"\",'Product registration form'!Q161,\"\")","v":""}]
[{"$f":"IF('Product registration form'!U162<>\"\",'Product registration form'!U162,\"\")","v":""},{"$f":"IF('Product registration form'!Q162<>\"\",'Product registration form'!Q162,\"\")","v":""}]
[{"$f":"IF('Product registration form'!U163<>\"\",'Product registration form'!U163,\"\")","v":""},{"$f":"IF('Product registration form'!Q163<>\"\",'Product registration form'!Q163,\"\")","v":""}]
[{"$f":"IF('Product registration form'!U164<>\"\",'Product registration form'!U164,\"\")","v":""},{"$f":"IF('Product registration form'!Q164<>\"\",'Product registration form'!Q164,\"\")","v":""}]
[{"$f":"IF('Product registration form'!U165<>\"\",'Product registration form'!U165,\"\")","v":""},{"$f":"IF('Product registration form'!Q165<>\"\",'Product registration form'!Q165,\"\")","v":""}]
[{"$f":"IF('Product registration form'!U166<>\"\",'Product registration form'!U166,\"\")","v":""},{"$f":"IF('Product registration form'!Q166<>\"\",'Product registration form'!Q166,\"\")","v":""}]
[{"$f":"IF('Product registration form'!U167<>\"\",'Product registration form'!U167,\"\")","v":""},{"$f":"IF('Product registration form'!Q167<>\"\",'Product registration form'!Q167,\"\")","v":""}]
[{"$f":"IF('Product registration form'!U168<>\"\",'Product registration form'!U168,\"\")","v":""},{"$f":"IF('Product registration form'!Q168<>\"\",'Product registration form'!Q168,\"\")","v":""}]
[{"$f":"IF('Product registration form'!U169<>\"\",'Product registration form'!U169,\"\")","v":""},{"$f":"IF('Product registration form'!Q169<>\"\",'Product registration form'!Q169,\"\")","v":""}]
[{"$f":"IF('Product registration form'!U170<>\"\",'Product registration form'!U170,\"\")","v":""},{"$f":"IF('Product registration form'!Q170<>\"\",'Product registration form'!Q170,\"\")","v":""}]
[{"$f":"IF('Product registration form'!U171<>\"\",'Product registration form'!U171,\"\")","v":""},{"$f":"IF('Product registration form'!Q171<>\"\",'Product registration form'!Q171,\"\")","v":""}]
[{"$f":"IF('Product registration form'!U172<>\"\",'Product registration form'!U172,\"\")","v":""},{"$f":"IF('Product registration form'!Q172<>\"\",'Product registration form'!Q172,\"\")","v":""}]
[{"$f":"IF('Product registration form'!U173<>\"\",'Product registration form'!U173,\"\")","v":""},{"$f":"IF('Product registration form'!Q173<>\"\",'Product registration form'!Q173,\"\")","v":""}]
[{"$f":"IF('Product registration form'!U174<>\"\",'Product registration form'!U174,\"\")","v":""},{"$f":"IF('Product registration form'!Q174<>\"\",'Product registration form'!Q174,\"\")","v":""}]
[{"$f":"IF('Product registration form'!U175<>\"\",'Product registration form'!U175,\"\")","v":""},{"$f":"IF('Product registration form'!Q175<>\"\",'Product registration form'!Q175,\"\")","v":""}]
[{"$f":"IF('Product registration form'!U176<>\"\",'Product registration form'!U176,\"\")","v":""},{"$f":"IF('Product registration form'!Q176<>\"\",'Product registration form'!Q176,\"\")","v":""}]
[{"$f":"IF('Product registration form'!U177<>\"\",'Product registration form'!U177,\"\")","v":""},{"$f":"IF('Product registration form'!Q177<>\"\",'Product registration form'!Q177,\"\")","v":""}]
[{"$f":"IF('Product registration form'!U178<>\"\",'Product registration form'!U178,\"\")","v":""},{"$f":"IF('Product registration form'!Q178<>\"\",'Product registration form'!Q178,\"\")","v":""}]
[{"$f":"IF('Product registration form'!U179<>\"\",'Product registration form'!U179,\"\")","v":""},{"$f":"IF('Product registration form'!Q179<>\"\",'Product registration form'!Q179,\"\")","v":""}]
[{"$f":"IF('Product registration form'!U180<>\"\",'Product registration form'!U180,\"\")","v":""},{"$f":"IF('Product registration form'!Q180<>\"\",'Product registration form'!Q180,\"\")","v":""}]
[{"$f":"IF('Product registration form'!U181<>\"\",'Product registration form'!U181,\"\")","v":""},{"$f":"IF('Product registration form'!Q181<>\"\",'Product registration form'!Q181,\"\")","v":""}]
[{"$f":"IF('Product registration form'!U182<>\"\",'Product registration form'!U182,\"\")","v":""},{"$f":"IF('Product registration form'!Q182<>\"\",'Product registration form'!Q182,\"\")","v":""}]
[{"$f":"IF('Product registration form'!U183<>\"\",'Product registration form'!U183,\"\")","v":""},{"$f":"IF('Product registration form'!Q183<>\"\",'Product registration form'!Q183,\"\")","v":""}]
[{"$f":"IF('Product registration form'!U184<>\"\",'Product registration form'!U184,\"\")","v":""},{"$f":"IF('Product registration form'!Q184<>\"\",'Product registration form'!Q184,\"\")","v":""}]
[{"$f":"IF('Product registration form'!U185<>\"\",'Product registration form'!U185,\"\")","v":""},{"$f":"IF('Product registration form'!Q185<>\"\",'Product registration form'!Q185,\"\")","v":""}]
[{"$f":"IF('Product registration form'!U186<>\"\",'Product registration form'!U186,\"\")","v":""},{"$f":"IF('Product registration form'!Q186<>\"\",'Product registration form'!Q186,\"\")","v":""}]
[{"$f":"IF('Product registration form'!U187<>\"\",'Product registration form'!U187,\"\")","v":""},{"$f":"IF('Product registration form'!Q187<>\"\",'Product registration form'!Q187,\"\")","v":""}]
[{"$f":"IF('Product registration form'!U188<>\"\",'Product registration form'!U188,\"\")","v":""},{"$f":"IF('Product registration form'!Q188<>\"\",'Product registration form'!Q188,\"\")","v":""}]
[{"$f":"IF('Product registration form'!U189<>\"\",'Product registration form'!U189,\"\")","v":""},{"$f":"IF('Product registration form'!Q189<>\"\",'Product registration form'!Q189,\"\")","v":""}]
[{"$f":"IF('Product registration form'!U190<>\"\",'Product registration form'!U190,\"\")","v":""},{"$f":"IF('Product registration form'!Q190<>\"\",'Product registration form'!Q190,\"\")","v":""}]
[{"$f":"IF('Product registration form'!U191<>\"\",'Product registration form'!U191,\"\")","v":""},{"$f":"IF('Product registration form'!Q191<>\"\",'Product registration form'!Q191,\"\")","v":""}]
[{"$f":"IF('Product registration form'!U192<>\"\",'Product registration form'!U192,\"\")","v":""},{"$f":"IF('Product registration form'!Q192<>\"\",'Product registration form'!Q192,\"\")","v":""}]
[{"$f":"IF('Product registration form'!U193<>\"\",'Product registration form'!U193,\"\")","v":""},{"$f":"IF('Product registration form'!Q193<>\"\",'Product registration form'!Q193,\"\")","v":""}]
[{"$f":"IF('Product registration form'!U194<>\"\",'Product registration form'!U194,\"\")","v":""},{"$f":"IF('Product registration form'!Q194<>\"\",'Product registration form'!Q194,\"\")","v":""}]
[{"$f":"IF('Product registration form'!U195<>\"\",'Product registration form'!U195,\"\")","v":""},{"$f":"IF('Product registration form'!Q195<>\"\",'Product registration form'!Q195,\"\")","v":""}]
[{"$f":"IF('Product registration form'!U196<>\"\",'Product registration form'!U196,\"\")","v":""},{"$f":"IF('Product registration form'!Q196<>\"\",'Product registration form'!Q196,\"\")","v":""}]
[{"$f":"IF('Product registration form'!U197<>\"\",'Product registration form'!U197,\"\")","v":""},{"$f":"IF('Product registration form'!Q197<>\"\",'Product registration form'!Q197,\"\")","v":""}]
[{"$f":"IF('Product registration form'!U198<>\"\",'Product registration form'!U198,\"\")","v":""},{"$f":"IF('Product registration form'!Q198<>\"\",'Product registration form'!Q198,\"\")","v":""}]
[{"$f":"IF('Product registration form'!U199<>\"\",'Product registration form'!U199,\"\")","v":""},{"$f":"IF('Product registration form'!Q199<>\"\",'Product registration form'!Q199,\"\")","v":""}]
[{"$f":"IF('Product registration form'!U200<>\"\",'Product registration form'!U200,\"\")","v":""},{"$f":"IF('Product registration form'!Q200<>\"\",'Product registration form'!Q200,\"\")","v":""}]

{"sheet":"Display","index":6,"n_rows":4,"n_cols":6,"rows_kept":4,"cut":false,"hidden":false,"merged":[[2,0,2,4]]}
[]
[null,"To be filled by vendor",null,null,null,"To be filled by buying dep."]
["If the display consists of new articles, a separate product registration form must be filled in for each new article. Note this in the comment field, for both the display and the new articles."]
["English Description Display","GTIN","Article GTIN","Quantity of sales units","DS article number"]

{"sheet":"Set of goods","index":7,"n_rows":5,"n_cols":9,"rows_kept":5,"cut":false,"hidden":false,"merged":[[2,0,2,4]]}
[]
[null,"To be filled by vendor",null,null,null,"To be filled by buying dep."]
["If the set of goods consists of new articles, a separate product registration form must be filled in for each new article. Note this in the comment field, for all new articles."]
["English Description Display","GTIN","Article GTIN","Quantity","DS article number"]
[null,null,null,null,null,null,null,null," "]

{"sheet":"Additional GTINS","index":8,"n_rows":4,"n_cols":2,"rows_kept":4,"cut":false,"hidden":false,"merged":[]}
[]
[null,"To be filled by vendor"]
[]
["English Description","GTIN"]

{"sheet":"Lists","index":9,"n_rows":244,"n_cols":65,"rows_kept":244,"cut":false,"hidden":true,"merged":[]}
["RP Type DC","RP Type Store","Article Type","Flow Type","Purchasing organization","Sales Rules","Yes/No","Afdeling","Article category","Supply Source F&G","Article category F&G","Article Hierachy F&G","StockPlanner","StorrageLocation","Assortment list type","Naming","Price Unit","BUoM","GBB","CSR Brand","Envir. Label","Health claims","Organic","ISFP Type","Purch grp","Supply source",null,"Merch cat","Pallet Type",null,"Multi buy key",null,"No repeat key",null,"Voucher",null,"Unit of measure",null,"Traceability",null,"RB LM",null,"Batteri","Tax","Source List",null,"Trade Exact","Catch Weight","Temperature","Currency","Deposit","Sales org","Content Unit","Deposit Type","Deposit Description","Shipping Instruction","Country of Origin",null,"Distribution Channel","Cross Docking","Product Cost Group","WEEE","Bettery","Order Unit","OTC Sales Rule"]
["Z0: No Planning","PD: RP","ZADM - DS Administration","RA: Assortment articles","DS01","0 No Sales Rule","Yes","320","00 Single article","Direct vendor to store","Single article","R61255 APPLES","010 - Butcher","0001 - Store",1,"SIK (Safety)","EA","EA","Good","Anb. af dyrs besk (DK)","Allergy certified","D-Vitamins","Organic cotton","Production (ZPRD)","101 Petfood","1: Direct delivery",null,"10001 CHEESE","1,5/1",null,"0 Not allowed",null,"No repeat key allowed",null,"Blackhawk",null,"EA",null,"0 No",null,"RB",null,"Knapcelle (Zink/Kviksølv Oxid/ Sølv Oxid): Kode 21.1","0 No tax",9001,null,"1. No Data",null,"-18 C","DKK","A","0100-01","CL - Centiliter","A","COOP CRATE 30 PCS","V1 Dry","Afghanistan-AF",null,9001,9002,"1 BAGUETTER - DIREKTE DEJFØRING","(1.1) Temperature exchange equipment","YES","EA","No Rule"]
["Z1: DSTime-phased w.auto.rord.pnt","Z0: No Planning","ZCAT - DS Category Articles","SA: Articles sold in a seasonal period","NE02","1 Above 18 years","No","330","01 Generic article","DC to store","Logistical Normal display","R61256 PEARS","020 - Deli","0010 - Butcher",6,"SLA (Slagter)","KG","EA1","Better","ASC","Astma og allergi Danmark","Diabetes","Natrue","Easy handling","102 Coffee/Tea","2: Delivery via DC",null,"10002 COLD MEAT","1/1",null,"1 Optional use",null,"Repeat key must be used",null,"Goyada",null,"EA1",null,"1 Beef",null,"LM",null,"Blysyre: Kode 21.2","1 Full tax",9002,null,"2. Dummy approved","X","-17 C","EUR","B","0200-01","CM - Centimeter","B","CRATE (POSCH) 30 PCS","V2 Cold","Albania-AL",null,9002,9102,"2 BAGUETTER - KOLDHÆVET PROD.","(2.1) Laptops","NO","KG","Aciclovir"]
["Z2: DS Static w. Man Reord Pt","Z1: DSTime-phased w.auto.rord.pnt","ZCS - Commercial set","OT: One timer campaign article","NE04","2 Above 16 years",null,"370","10 Sales set",null,"Logistical Apple display","R61274 CAPSICUMS","030 - Bakery","0020 - Deli",null,"TEX (Tøj og sko)",null,"KG","Best","BCI","BDIH (DE)","Free of sugar (totally free)","Organic","Pre-packed (ZTG)","103 Groceries",null,null,"10003 DAIRIES","1/2",null,null,null,null,null,"Goyada - ny",null,"KG",null,"2 Veal",null,null,null,"Nikkel Cadmium: Kode 21.3","2 Half tax",9010,null,"3. Approved",null,"-16 C","GBP","C","0200-02","DL - Deciliter","C","CRATE 10 PCS","V3 Frozen","Algeria-DZ",null,9011,null,"3 BAGUETTER - TØ OG SERVER","(2.2) Other equipment containing screens having a surface > 100 cm2",null,"CA","Ibuprofen"]
["Z3: DS Static w. auto Reord Pt","Z2: DS Static w. Man Reord Pt","ZDRP - Mix Display for ZFUL","MT: Multi timer campaign article","NE05","3 Above 15 years",null,"390","12 Display",null,null,"R61275 CUCUMBERS","040 - Bistro","0030 - Bakery",null,"REN (Rengøring)",null,"M",null,"Fair flowers fair plants","Biodegradeable","Fuldkornsmærket",null,"Raw material (ZRAW)","104 Confectionary",null,null,"10004 EGGS","1/4",null,null,null,null,null,"Lotto",null,"L",null,"3 Pork",null,null,null,"Andre: Kode 21.4","3 Low tax",9011,null,null,null,"-15 C","HKD",null,"0400-01","EA - Each","A-IMPORT","CRATE 12 PCS",null,"Amer.Virgin Is.-VI",null,9012,null,"4 FASTFOOD - EGEN PRODUKTION","(3.1) Lamps",null,"1/4","Acetylsalicylsyre / Kodein"]
["Z8: DS Manual Replenishment","Z3: DS Static w. auto Reord Pt","ZDS1 - DS Disp Art (Trading Gds)","AD: Administration articles, packing material (articles not sold)","NE07","4 Remember receipt w/clear codes",null,null,null,null,null,"R61276 EGGPLANTS/COURGETTES/PUMPKINS",null,"0040 - Bistro",null,"BAG (Bager)",null,null,null,"Fairtrade","CO2 Neutral","Gluten free",null,null,"105 Dry Food",null,null,"10005 FATS",null,null,null,null,null,null,null,null,"PCS",null,"4 Lamb",null,null,null,null,null,9012,null,null,null,"-14 C","PLN",null,"0410-01","G - Gram","B-IMPORT","CRATE 15 PCS",null,"Andorra-AD",null,9017,null,"5 FASTFOOD - HALVFABRIKATA","(4.1) Large equipment - white goods (container fraction)",null,"1/2","Paracetamol"]
["Z9: Mix Article Planning","Z8: DS Manual Replenishment","ZDS2 - DS Disp Art (Perishables)",null,"SA01","5 Above 12 years",null,null,null,null,null,"R61278 LETTUCE",null,null,null,"DEL (Deli)",null,null,null,"FSC","Cosmebio","Lactose free",null,null,"106 Frozen",null,null,"10006 FISH",null,null,null,null,null,null,null,null,null,null,"5 Poultry",null,null,null,null,null,9016,null,null,null,"-13 C","SEK",null,"0500-01","KG - KiloG","C-IMPORT","CRATE 20 PCS 50 CL",null,"Angola-AO",null,9018,null,"6 FASTFOOD - TØ OG SERVER","(4.2) Large equipment - Other large equipment  (container fraction)",null,"1/1","Cyclizin"]
["ZM: MRP for F&V and KRO articles","Z9: Mix Article Planning","ZDS3 - DS Disp Art (11 Dgt Trdg)",null,null,"6 Articles must be sold in parts",null,null,null,null,null,"R61279 MUSHROOMS",null,null,null,"F&G (Frugt & Grønt)",null,null,null,"Good weave","Dansk IP kvalitet (DK)","Light food",null,null,"107 Preserved/p+r Sauc",null,null,"10007 FROZEN",null,null,null,null,null,null,null,null,null,null,"6 Mutton",null,null,null,null,null,9017,null,null,null,"-12 C","USD",null,"0700-01","L - Liter","A-VIN IMPORT","CRATE 24 PCS 33 CL",null,"Anguilla-AI",null,9023,null,"7 HVEDEBRØD - DIREKTE DEJFØRING","(4.3) Large equipment - Other equipment with an external dimension > 50 cm.  (cafe fraction)"]
["ZZ: No Planning; Not F&R Relevant","ZZ: No Planning; Not F&R Relevant","ZDS4 - DS Disp Art (11 Dgt Prsh)",null,null,"7 Check age limit on the product",null,null,null,null,null,"R61281 TOMATOES",null,null,null,"QFB (Quickfood/ Bistro)",null,null,null,"Hearts-  1 (pork only)","Ecolabel","No added sugar",null,null,"108 Fruit/Vegetables",null,null,"10010 POULTRY",null,null,null,null,null,null,null,null,null,null,"7 Goat",null,null,null,null,null,9018,null,null,null,"-11 C",null,null,"0800-01","LMX - Liter Mix","LIQUOR","CRATE 24 PCS 50 CL",null,"Antarctica-AQ",null,9026,null,"8 HVEDEBRØD - KOLDHÆVET PRODUKT","(5.1) Small equipment (< 50 cm)"]
[null,null,"ZDS5 - DS Mix Disp Art (Textile)",null,null,"8 Leader Key",null,null,null,null,null,"R61282 SPROUTS",null,null,null,"FRA (Carls Jr & SBux)",null,null,null,"Hearts - 2 (pork only)","Indeklima","Nøglehullet (nordic)",null,null,"110 Beer/Water",null,null,"10011 PRE-PACKED MEAT",null,null,null,null,null,null,null,null,null,null,null,null,null,null,null,null,9023,null,null,null,"-10 C",null,null,"0900-01","M - Meter","KEG 25/30 L","CRATE 30 PCS 25 CL",null,"Antigua/Barbuda-AG",null,9031,null,"9 HVEDEBRØD - PRINCIP PROD. BRØD","(6.1) Small IT and telecommunications equipmnt (< 50 cm)"]
[null,null,"ZDS6 - DS Disp Art (10 Dgt Trdg)",null,null,"9 Blocked for sale",null,null,null,null,null,"R61263 CABBAGE",null,null,null,"KOL (Kolonial)",null,null,null,"Hearts - 3 (pork only)","Oeko-tex","Proteins added",null,null,"112 Wine",null,null,"10012 SALADS/FASTFOOD/SAUS",null,null,null,null,null,null,null,null,null,null,null,null,null,null,null,null,9026,null,null,null,"-9 C",null,null,"1000-04","ML - Milliliter","CARBON DIOXIDE 6/10 KG","CRATE 30 PCS 33CL (RUB 25+33CL)",null,"Argentina-AR",null,9032,null,"10 HVEDEBRØD - TØ OG SERVER","(7.1) Photovoltaic panels "]
[null,null,"ZDS7 - Log.Display ZFUL (8 dgt)",null,null,null,null,null,null,null,null,"R61264 POTATOES",null,null,null,"HUS (Administration)",null,null,null,"MSC","Recycled","Vitamins added",null,null,"113 Spirits",null,null,"10030 ALCOHOLIC BEVERAGE",null,null,null,null,null,null,null,null,null,null,null,null,null,null,null,null,9029,null,null,null,"-8 C",null,null,"1600-01","MM - Millimeter",null,"TRAY BEER",null,"Armenia-AM",null,9037,null,"11 RUGBRØD - DIREKTE DEJFØRING"]
[null,null,"ZDS8 - Log.Display ZFUL (11 dgt)",null,null,null,null,null,null,null,null,"R61265 CARROTS",null,null,null,"FÆL (Fælles produktion)",null,null,null,"PEFC","RSPO",null,null,null,"114 Juice",null,null,"10031 NON-ALCO. BEVERAGE",null,null,null,null,null,null,null,null,null,null,null,null,null,null,null,null,9031,null,null,null,"-7 C",null,null,null,"PTI - Pint UK Liquid",null,"TRAY SOFTDRINK 1,5 L&1,25 L(RUB 2L)",null,"Aruba-AW",null,9038,null,"12 RUGBRØD - KOLDHÆVET PRODUKTION"]
[null,null,"ZEMP - DS Empties",null,null,null,null,null,null,null,null,"R61266 ONIONS",null,null,null,null,null,null,null,"Rainforest Aliance","RTRS",null,null,null,"115 Dairy/Eggs/Fats",null,null,"10032 BREAD & COOKIES",null,null,null,null,null,null,null,null,null,null,null,null,null,null,null,null,9032,null,null,null,"-6 C",null,null,null,"WSH - Wash",null,"TRAY SOFTDRINK 2 L",null,"Australia-AU",null,null,null,"13 RUGBRØD - PRINCIP PROD. BRØD"]
[null,null,"ZFPA - DS Franchise Prod Article",null,null,null,null,null,null,null,null,"R61267 ROOT VEGETABLES",null,null,null,null,null,null,null,"UTZ","Svane (Nordic)",null,null,null,"116 Cheese",null,null,"10033 COFFE & TEA",null,null,null,null,null,null,null,null,null,null,null,null,null,null,null,null,"9039/E-com",null,null,null,"-5 C",null,null,null,null,null,"BOTTOM TRAY FOR BEER",null,"Austria-AT",null,null,null,"14 RUGBRØD - RUGBRØDSCHIPS"]
[null,null,"ZFRA - DS Franchise RAW Article",null,null,null,null,null,null,null,null,"R61257 CLEMENTINES",null,null,null,null,null,null,null,"WWF","Vegan",null,null,null,"117 Health",null,null,"10034 CONFECTIONARY",null,null,null,null,null,null,null,null,null,null,null,null,null,null,null,null,9102,null,null,null,"-4 C",null,null,null,null,null,null,null,"Azerbaijan-AZ",null,null,null,"15 SMÅ FLØDEKAGER - EGEN PROD."]
[null,null,"ZFRE - DS Free Goods",null,null,null,null,null,null,null,null,"R61258 GRAPEFRUIT/POMELO/OTHERS",null,null,null,null,null,null,null,null,"Grüne punkt (DE)",null,null,null,"118 Bread/Cookies",null,null,"10035 DRY GROCERIES",null,null,null,null,null,null,null,null,null,null,null,null,null,null,null,null,null,null,null,null,"-3 C",null,null,null,null,null,null,null,"Bahamas-BS",null,null,null,"16 SMÅ FLØDEKAGER - HALVFABRIKAT."]
[null,null,"ZFS - DS Food Servc Fin Product",null,null,null,null,null,null,null,null,"R61260 LEMONS/LIMES",null,null,null,null,null,null,null,null,"Vegetarian",null,null,null,"120 CHILLED CONVENIENC",null,null,"10036 FRUIT  &  VEGETABLES",null,null,null,null,null,null,null,null,null,null,null,null,null,null,null,null,null,null,null,null,"-2 C",null,null,null,null,null,null,null,"Bahrain-BH",null,null,null,"17 SMÅ FLØDEKAGER - PRINC. PR.B."]
[null,null,"ZFUL - DS Full Products",null,null,null,null,null,null,null,null,"R61261 ORANGES",null,null,null,null,null,null,null,null,null,null,null,null,"121 SAUSAGES/BACON",null,null,"10037 PETFOOD",null,null,null,null,null,null,null,null,null,null,null,null,null,null,null,null,null,null,null,null,"-1 C",null,null,null,null,null,null,null,"Bangladesh-BD",null,null,null,"18 SMÅ FLØDEKAGER - TØ OG SERVER"]
[null,null,"ZPAC - DS Non val. Packing materials",null,null,null,null,null,null,null,null,"R61268 F&V READY TO EAT SOLUTIONS",null,null,null,null,null,null,null,null,null,null,null,null,"130 SLICED COLD MEAT/S",null,null,"10038 PRESERVED FOOD",null,null,null,null,null,null,null,null,null,null,null,null,null,null,null,null,null,null,null,null,"0 C",null,null,null,null,null,null,null,"Barbados-BB",null,null,null,"19 SMÅ KAGER - EGEN PRODUKTION"]
[null,null,"ZPAL - DS Packing materials (valuated)",null,null,null,null,null,null,null,null,"R61269 SALADS FRESH CUTS",null,null,null,null,null,null,null,null,null,null,null,null,"140 Fish",null,null,"10039 WINE",null,null,null,null,null,null,null,null,null,null,null,null,null,null,null,null,null,null,null,null,"1 C",null,null,null,null,null,null,null,"Belarus-BY",null,null,null,"20 SMÅ KAGER - HALVFABRIKATA"]
[null,null,"ZPBS - DS Pay by scan",null,null,null,null,null,null,null,null,"R61270 VEGETABLES FRESH CUTS",null,null,null,null,null,null,null,null,null,null,null,null,"150 Deli",null,null,"10040 SPIRIT",null,null,null,null,null,null,null,null,null,null,null,null,null,null,null,null,null,null,null,null,"2 C",null,null,null,null,null,null,null,"Belgium-BE",null,null,null,"21 SMÅ KAGER - PRINCIP PRODUKTION"]
[null,null,"ZPER - DS Perishables",null,null,null,null,null,null,null,null,"R61262 SLICED FRUITS",null,null,null,null,null,null,null,null,null,null,null,null,"210 Fresh meat",null,null,"10041 TOBACCO & CIGARETTES",null,null,null,null,null,null,null,null,null,null,null,null,null,null,null,null,null,null,null,null,"3 C",null,null,null,null,null,null,null,"Belize-BZ",null,null,null,"22 SMÅ KAGER - TØ OG SERVER"]
[null,null,"ZPRD - DS Central Kitch Fin Prod",null,null,null,null,null,null,null,null,"R61242 MANGO/PAPAYA",null,null,null,null,null,null,null,null,null,null,null,null,"220 Poultry",null,null,"10043 DIRECT DEL. BREAD",null,null,null,null,null,null,null,null,null,null,null,null,null,null,null,null,null,null,null,null,"4 C",null,null,null,null,null,null,null,"Benin-BJ",null,null,null,"23 STORE FLØDEKAGER - EGEN PROD."]
[null,null,"ZRAW - DS Raw materials",null,null,null,null,null,null,null,null,"R61243 OTHER EXOTIC FRUITS",null,null,null,null,null,null,null,null,null,null,null,null,"230 Bakery",null,null,"10060 BAKERY",null,null,null,null,null,null,null,null,null,null,null,null,null,null,null,null,null,null,null,null,"5 C",null,null,null,null,null,null,null,"Bermuda-BM",null,null,null,"24 STORE FLØDEKAGER - HALVFABRIK."]
[null,null,"ZREF - DS Reference articles",null,null,null,null,null,null,null,null,"R61244 PINEAPPLES",null,null,null,null,null,null,null,null,null,null,null,null,"240 Quick Food/Bistro",null,null,"10061 BISTRO",null,null,null,null,null,null,null,null,null,null,null,null,null,null,null,null,null,null,null,null,"6 C",null,null,null,null,null,null,null,"Bhutan-BT",null,null,null,"25 STORE FLØDEKAGER - PRINCIP PRO"]
[null,null,"ZSER - DS Service",null,null,null,null,null,null,null,null,"R61247 BANANAS",null,null,null,null,null,null,null,null,null,null,null,null,"310 Candle/Napk/Season",null,null,"10062 DELI",null,null,null,null,null,null,null,null,null,null,null,null,null,null,null,null,null,null,null,null,"7 C",null,null,null,null,null,null,null,"Blue-BL",null,null,null,"26 STORE FLØDEKAGER - TØ OG SERVE"]
[null,null,"ZTEX - DS Textile",null,null,null,null,null,null,null,null,"R61259 KIWI",null,null,null,null,null,null,null,null,null,null,null,null,"320 Papers/Tobacco/Bet",null,null,"10063 BUTCHER",null,null,null,null,null,null,null,null,null,null,null,null,null,null,null,null,null,null,null,null,"8 C",null,null,null,null,null,null,null,"Bolivia-BO",null,null,null,"27 STORE KAGER - EGEN PRODUKTION"]
[null,null,"ZTG - DS Trading Goods",null,null,null,null,null,null,null,null,"R61271 AVOCADO",null,null,null,null,null,null,null,null,null,null,null,null,"330 PERSONAL CARE",null,null,"10064 DO NOT USE !",null,null,null,null,null,null,null,null,null,null,null,null,null,null,null,null,null,null,null,null,"9 C",null,null,null,null,null,null,null,"Bosnia-Herz.-BA",null,null,null,"28 STORE KAGER - HALVFABRIKATA"]
[null,null,null,null,null,null,null,null,null,null,null,"R61272 OTHER EXOTIC VEGETABLES",null,null,null,null,null,null,null,null,null,null,null,null,"331 HOUSEHOLD/BABY",null,null,"10065 DO NOT USE !",null,null,null,null,null,null,null,null,null,null,null,null,null,null,null,null,null,null,null,null,"10 C",null,null,null,null,null,null,null,"Botswana-BW",null,null,null,"29 STORE KAGER - PRINCIP PRODUKTI"]
[null,null,null,null,null,null,null,null,null,null,null,"R61273 ASPARAGUES/BEANS",null,null,null,null,null,null,null,null,null,null,null,null,"332 HYGIENE PRODUCTS",null,null,"10066 STARBUCKS",null,null,null,null,null,null,null,null,null,null,null,null,null,null,null,null,null,null,null,null,"11 C",null,null,null,null,null,null,null,"Bouvet Islands-BV",null,null,null,"30 STORE KAGER - TØ OG SERVER"]
[null,null,null,null,null,null,null,null,null,null,null,"R61280 PEAS/SWEET CORN",null,null,null,null,null,null,null,null,null,null,null,null,"340 Cleaning/Detergent",null,null,"10067 CARL'S JR.",null,null,null,null,null,null,null,null,null,null,null,null,null,null,null,null,null,null,null,null,"12 C",null,null,null,null,null,null,null,"Brazil-BR",null,null,null,"31 STYKKER & BOLLER - DIR. DEJF."]
[null,null,null,null,null,null,null,null,null,null,null,"R61277 HERBS",null,null,null,null,null,null,null,null,null,null,null,null,"400 OTC",null,null,"10068 BAKERY PRODUCED",null,null,null,null,null,null,null,null,null,null,null,null,null,null,null,null,null,null,null,null,"13 C",null,null,null,null,null,null,null,"Brit.Ind.Oc.Ter-IO",null,null,null,"32 STYKKER & BOLLER - KOLDH. PR."]
[null,null,null,null,null,null,null,null,null,null,null,"R61245 DRIED FRUITS",null,null,null,null,null,null,null,null,null,null,null,null,"410 NDK Home",null,null,"20001 CHEMIST",null,null,null,null,null,null,null,null,null,null,null,null,null,null,null,null,null,null,null,null,"14 C",null,null,null,null,null,null,null,"Brit.Virgin Is.-VG",null,null,null,"33 STYKKER & BOLLER - PRINC.PR.BR"]
[null,null,null,null,null,null,null,null,null,null,null,"R61246 NUTS",null,null,null,null,null,null,null,null,null,null,null,null,"411 NDK Electronics",null,null,"20002 CLEANING",null,null,null,null,null,null,null,null,null,null,null,null,null,null,null,null,null,null,null,null,"15 C",null,null,null,null,null,null,null,"Brunei Daruss.-BN",null,null,null,"34 STYKKER & BOLLER - TØ OG SERV"]
[null,null,null,null,null,null,null,null,null,null,null,"R61248 BERRIES",null,null,null,null,null,null,null,null,null,null,null,null,"412 NDK Outdoor&Sports",null,null,"20003 DETERGENTS",null,null,null,null,null,null,null,null,null,null,null,null,null,null,null,null,null,null,null,null,"16 C",null,null,null,null,null,null,null,"Bulgaria-BG",null,null,null,"35 WIENER OG BLØDDEJ - EGEN PROD."]
[null,null,null,null,null,null,null,null,null,null,null,"R61249 GRAPES",null,null,null,null,null,null,null,null,null,null,null,null,"413 NDK Textiles",null,null,"20004 HOUSEHOLD DISPOSABLE",null,null,null,null,null,null,null,null,null,null,null,null,null,null,null,null,null,null,null,null,"17 C",null,null,null,null,null,null,null,"Burkina Faso-BF",null,null,null,"36 WIENER OG BLØDDEJ - HALVFABRIK"]
[null,null,null,null,null,null,null,null,null,null,null,"R61250 MELONS",null,null,null,null,null,null,null,null,null,null,null,null,"414 NDK Candles&Napkin",null,null,"20020 BATTERIES",null,null,null,null,null,null,null,null,null,null,null,null,null,null,null,null,null,null,null,null,"18 C",null,null,null,null,null,null,null,"Burma-MM",null,null,null,"37 WIENER OG BLØDDEJ - TØ OG SERV"]
[null,null,null,null,null,null,null,null,null,null,null,"R61251 CHERRIES",null,null,null,null,null,null,null,null,null,null,null,null,"450 (S) Menswear",null,null,"20021 COMMUNICATION",null,null,null,null,null,null,null,null,null,null,null,null,null,null,null,null,null,null,null,null,"19 C",null,null,null,null,null,null,null,"Burundi-BI",null,null,null,"38 Not relevant"]
[null,null,null,null,null,null,null,null,null,null,null,"R61252 NECTARINES/PEACHES",null,null,null,null,null,null,null,null,null,null,null,null,"451 (S) Ladieswear",null,null,"20022 COMPUTER",null,null,null,null,null,null,null,null,null,null,null,null,null,null,null,null,null,null,null,null,"20 C",null,null,null,null,null,null,null,"Cambodia-KH"]
[null,null,null,null,null,null,null,null,null,null,null,"R61253 PLUMS/ABRICOTS",null,null,null,null,null,null,null,null,null,null,null,null,"452 (S) Childrenswear",null,null,"20023 DIGITAL MEDIA",null,null,null,null,null,null,null,null,null,null,null,null,null,null,null,null,null,null,null,null,null,null,null,null,null,null,null,null,"Cameroon-CM"]
[null,null,null,null,null,null,null,null,null,null,null,null,null,null,null,null,null,null,null,null,null,null,null,null,"453 (S) Young Shop",null,null,"20024 ELECTRONIC GAMES",null,null,null,null,null,null,null,null,null,null,null,null,null,null,null,null,null,null,null,null,null,null,null,null,null,null,null,null,"Canada-CA"]
[null,null,null,null,null,null,null,null,null,null,null,null,null,null,null,null,null,null,null,null,null,null,null,null,"454 (S) Women Lingerie",null,null,"20025 PHOTO",null,null,null,null,null,null,null,null,null,null,null,null,null,null,null,null,null,null,null,null,null,null,null,null,null,null,null,null,"Cape Verde-CV"]
[null,null,null,null,null,null,null,null,null,null,null,null,null,null,null,null,null,null,null,null,null,null,null,null,"455 (S) Womens access.",null,null,"20026 PICTURE",null,null,null,null,null,null,null,null,null,null,null,null,null,null,null,null,null,null,null,null,null,null,null,null,null,null,null,null,"CAR-CF"]
[null,null,null,null,null,null,null,null,null,null,null,null,null,null,null,null,null,null,null,null,null,null,null,null,"456 (S) Sport/shoes",null,null,"20027 SMALL APPLIANCES",null,null,null,null,null,null,null,null,null,null,null,null,null,null,null,null,null,null,null,null,null,null,null,null,null,null,null,null,"Cayman Islands-KY"]
[null,null,null,null,null,null,null,null,null,null,null,null,null,null,null,null,null,null,null,null,null,null,null,null,"457 (S) Shoes",null,null,"20028 SOUND",null,null,null,null,null,null,null,null,null,null,null,null,null,null,null,null,null,null,null,null,null,null,null,null,null,null,null,null,"Chad-TD"]
[null,null,null,null,null,null,null,null,null,null,null,null,null,null,null,null,null,null,null,null,null,null,null,null,"458 (S) Leathergoods",null,null,"20029 WATCHES",null,null,null,null,null,null,null,null,null,null,null,null,null,null,null,null,null,null,null,null,null,null,null,null,null,null,null,null,"Chile-CL"]
[null,null,null,null,null,null,null,null,null,null,null,null,null,null,null,null,null,null,null,null,null,null,null,null,"459 (S) Jewellery",null,null,"20040 BEDS",null,null,null,null,null,null,null,null,null,null,null,null,null,null,null,null,null,null,null,null,null,null,null,null,null,null,null,null,"China-CN"]
[null,null,null,null,null,null,null,null,null,null,null,null,null,null,null,null,null,null,null,null,null,null,null,null,"500 Paint",null,null,"20041 HEAVY FURNI & CARPE",null,null,null,null,null,null,null,null,null,null,null,null,null,null,null,null,null,null,null,null,null,null,null,null,null,null,null,null,"Christmas Islnd-CX"]
[null,null,null,null,null,null,null,null,null,null,null,null,null,null,null,null,null,null,null,null,null,null,null,null,"510 Gardening Tools",null,null,"20042 LIGHT FURNITURE",null,null,null,null,null,null,null,null,null,null,null,null,null,null,null,null,null,null,null,null,null,null,null,null,null,null,null,null,"Coconut Islands-CC"]
[null,null,null,null,null,null,null,null,null,null,null,null,null,null,null,null,null,null,null,null,null,null,null,null,"520 Outdoor plants",null,null,"20043 LIGHTING",null,null,null,null,null,null,null,null,null,null,null,null,null,null,null,null,null,null,null,null,null,null,null,null,null,null,null,null,"Colombia-CO"]
[null,null,null,null,null,null,null,null,null,null,null,null,null,null,null,null,null,null,null,null,null,null,null,null,"530 Indoor flowers",null,null,"20044 SUNSH., MIRROS & GAL",null,null,null,null,null,null,null,null,null,null,null,null,null,null,null,null,null,null,null,null,null,null,null,null,null,null,null,null,"Comoros-KM"]
[null,null,null,null,null,null,null,null,null,null,null,null,null,null,null,null,null,null,null,null,null,null,null,null,"540 Furniture/Carpets",null,null,"20045 LUGGAGE",null,null,null,null,null,null,null,null,null,null,null,null,null,null,null,null,null,null,null,null,null,null,null,null,null,null,null,null,"Cook Islands-CK"]
[null,null,null,null,null,null,null,null,null,null,null,null,null,null,null,null,null,null,null,null,null,null,null,null,"550 Home Textiles",null,null,"20060 GARDEN ACCESSORIES",null,null,null,null,null,null,null,null,null,null,null,null,null,null,null,null,null,null,null,null,null,null,null,null,null,null,null,null,"Costa Rica-CR"]
[null,null,null,null,null,null,null,null,null,null,null,null,null,null,null,null,null,null,null,null,null,null,null,null,"560 Household hardware",null,null,"20061 GARDEN FURNITURE BBQ",null,null,null,null,null,null,null,null,null,null,null,null,null,null,null,null,null,null,null,null,null,null,null,null,null,null,null,null,"Cote d'Ivoire-CI"]
[null,null,null,null,null,null,null,null,null,null,null,null,null,null,null,null,null,null,null,null,null,null,null,null,"570 Lighting",null,null,"20062 GREENHOUSES & GARDEN",null,null,null,null,null,null,null,null,null,null,null,null,null,null,null,null,null,null,null,null,null,null,null,null,null,null,null,null,"Croatia-HR"]
[null,null,null,null,null,null,null,null,null,null,null,null,null,null,null,null,null,null,null,null,null,null,null,null,"600 Camping/Outdoor",null,null,"20063 OUTDOOR PLANTS",null,null,null,null,null,null,null,null,null,null,null,null,null,null,null,null,null,null,null,null,null,null,null,null,null,null,null,null,"Cuba-CU"]
[null,null,null,null,null,null,null,null,null,null,null,null,null,null,null,null,null,null,null,null,null,null,null,null,"610 DIY/Bike/Fit/Auto",null,null,"20064 POTTERY FOR HOUSE",null,null,null,null,null,null,null,null,null,null,null,null,null,null,null,null,null,null,null,null,null,null,null,null,null,null,null,null,"Cyprus-CY"]
[null,null,null,null,null,null,null,null,null,null,null,null,null,null,null,null,null,null,null,null,null,null,null,null,"620 Radio/TV",null,null,"20065 SEEDS, FLOWERBULBS,",null,null,null,null,null,null,null,null,null,null,null,null,null,null,null,null,null,null,null,null,null,null,null,null,null,null,null,null,"Czech Republic-CZ"]
[null,null,null,null,null,null,null,null,null,null,null,null,null,null,null,null,null,null,null,null,null,null,null,null,"630 Digital Media",null,null,"20066 OUTDOOR/FISHING",null,null,null,null,null,null,null,null,null,null,null,null,null,null,null,null,null,null,null,null,null,null,null,null,null,null,null,null,"Dem. Rep. Congo-CD"]
[null,null,null,null,null,null,null,null,null,null,null,null,null,null,null,null,null,null,null,null,null,null,null,null,"640 Computer",null,null,"20100 BATHROOM & SANITATIO",null,null,null,null,null,null,null,null,null,null,null,null,null,null,null,null,null,null,null,null,null,null,null,null,null,null,null,null,"Denmark-DK"]
[null,null,null,null,null,null,null,null,null,null,null,null,null,null,null,null,null,null,null,null,null,null,null,null,"650 Photo/Comm.",null,null,"20101 BUILDING MATERIALS",null,null,null,null,null,null,null,null,null,null,null,null,null,null,null,null,null,null,null,null,null,null,null,null,null,null,null,null,"Djibouti-DJ"]
[null,null,null,null,null,null,null,null,null,null,null,null,null,null,null,null,null,null,null,null,null,null,null,null,"660 Watches",null,null,"20102 HOME TEXTILES",null,null,null,null,null,null,null,null,null,null,null,null,null,null,null,null,null,null,null,null,null,null,null,null,null,null,null,null,"Dominica-DM"]
[null,null,null,null,null,null,null,null,null,null,null,null,null,null,null,null,null,null,null,null,null,null,null,null,"670 Outdoor/fishing",null,null,"20103 INDOOR PLANTS AND FL",null,null,null,null,null,null,null,null,null,null,null,null,null,null,null,null,null,null,null,null,null,null,null,null,null,null,null,null,"Dominican Rep.-DO"]
[null,null,null,null,null,null,null,null,null,null,null,null,null,null,null,null,null,null,null,null,null,null,null,null,"700 Toys",null,null,"20104 INTERIOR",null,null,null,null,null,null,null,null,null,null,null,null,null,null,null,null,null,null,null,null,null,null,null,null,null,null,null,null,"Dutch Antilles-AN"]
[null,null,null,null,null,null,null,null,null,null,null,null,null,null,null,null,null,null,null,null,null,null,null,null,"710 Stationery",null,null,"20105 PAINT & WALL COATING",null,null,null,null,null,null,null,null,null,null,null,null,null,null,null,null,null,null,null,null,null,null,null,null,null,null,null,null,"East Timor-TL"]
[null,null,null,null,null,null,null,null,null,null,null,null,null,null,null,null,null,null,null,null,null,null,null,null,"720 Batteries",null,null,"20106 TOOLS & ACCESSORIES",null,null,null,null,null,null,null,null,null,null,null,null,null,null,null,null,null,null,null,null,null,null,null,null,null,null,null,null,"Ecuador-EC"]
[null,null,null,null,null,null,null,null,null,null,null,null,null,null,null,null,null,null,null,null,null,null,null,null,"730 Books",null,null,"20120 BOOKS",null,null,null,null,null,null,null,null,null,null,null,null,null,null,null,null,null,null,null,null,null,null,null,null,null,null,null,null,"Egypt-EG"]
[null,null,null,null,null,null,null,null,null,null,null,null,null,null,null,null,null,null,null,null,null,null,null,null,"740 Electronic Appl.",null,null,"20121 CANDLES",null,null,null,null,null,null,null,null,null,null,null,null,null,null,null,null,null,null,null,null,null,null,null,null,null,null,null,null,"El Salvador-SV"]
[null,null,null,null,null,null,null,null,null,null,null,null,null,null,null,null,null,null,null,null,null,null,null,null,"750 Loyalty programs",null,null,"20122 STAMPS, LOTTERY, TIC",null,null,null,null,null,null,null,null,null,null,null,null,null,null,null,null,null,null,null,null,null,null,null,null,null,null,null,null,"Equatorial Guin-GQ"]
[null,null,null,null,null,null,null,null,null,null,null,null,null,null,null,null,null,null,null,null,null,null,null,null,"800 Menswear",null,null,"20123 FEASTS & OCCASIONS",null,null,null,null,null,null,null,null,null,null,null,null,null,null,null,null,null,null,null,null,null,null,null,null,null,null,null,null,"Eritrea-ER"]
[null,null,null,null,null,null,null,null,null,null,null,null,null,null,null,null,null,null,null,null,null,null,null,null,"810 Ladieswear",null,null,"20124 GIFT ARTICLES",null,null,null,null,null,null,null,null,null,null,null,null,null,null,null,null,null,null,null,null,null,null,null,null,null,null,null,null,"Estonia-EE"]
[null,null,null,null,null,null,null,null,null,null,null,null,null,null,null,null,null,null,null,null,null,null,null,null,"820 Childrenswear",null,null,"20125 HEALTH",null,null,null,null,null,null,null,null,null,null,null,null,null,null,null,null,null,null,null,null,null,null,null,null,null,null,null,null,"Ethiopia-ET"]
[null,null,null,null,null,null,null,null,null,null,null,null,null,null,null,null,null,null,null,null,null,null,null,null,"830 Underwear",null,null,"20126 HOBBY",null,null,null,null,null,null,null,null,null,null,null,null,null,null,null,null,null,null,null,null,null,null,null,null,null,null,null,null,"European Union-EU"]
[null,null,null,null,null,null,null,null,null,null,null,null,null,null,null,null,null,null,null,null,null,null,null,null,"840 Sportswear",null,null,"20127 HOUSEHOLD HARDWARE",null,null,null,null,null,null,null,null,null,null,null,null,null,null,null,null,null,null,null,null,null,null,null,null,null,null,null,null,"Falkland Islnds-FK"]
[null,null,null,null,null,null,null,null,null,null,null,null,null,null,null,null,null,null,null,null,null,null,null,null,"850 Shoes",null,null,"20128 NAPKINS",null,null,null,null,null,null,null,null,null,null,null,null,null,null,null,null,null,null,null,null,null,null,null,null,null,null,null,null,"Faroe Islands-FO"]
[null,null,null,null,null,null,null,null,null,null,null,null,null,null,null,null,null,null,null,null,null,null,null,null,"860 Accessories",null,null,"20129 OPTICS",null,null,null,null,null,null,null,null,null,null,null,null,null,null,null,null,null,null,null,null,null,null,null,null,null,null,null,null,"Fiji-FJ"]
[null,null,null,null,null,null,null,null,null,null,null,null,null,null,null,null,null,null,null,null,null,null,null,null,"870 Starbucks",null,null,"20130 OTC",null,null,null,null,null,null,null,null,null,null,null,null,null,null,null,null,null,null,null,null,null,null,null,null,null,null,null,null,"Finland-FI"]
[null,null,null,null,null,null,null,null,null,null,null,null,null,null,null,null,null,null,null,null,null,null,null,null,"880 Carl's Jr.",null,null,"20131 PAPERS/MAGAZINES",null,null,null,null,null,null,null,null,null,null,null,null,null,null,null,null,null,null,null,null,null,null,null,null,null,null,null,null,"France-FR"]
[null,null,null,null,null,null,null,null,null,null,null,null,null,null,null,null,null,null,null,null,null,null,null,null,"900 Administrative",null,null,"20132 SEASON",null,null,null,null,null,null,null,null,null,null,null,null,null,null,null,null,null,null,null,null,null,null,null,null,null,null,null,null,"Frenc.Polynesia-PF"]
[null,null,null,null,null,null,null,null,null,null,null,null,null,null,null,null,null,null,null,null,null,null,null,null,"910 CSR",null,null,"20133 STATIONARY",null,null,null,null,null,null,null,null,null,null,null,null,null,null,null,null,null,null,null,null,null,null,null,null,null,null,null,null,"French Guayana-GF"]
[null,null,null,null,null,null,null,null,null,null,null,null,null,null,null,null,null,null,null,null,null,null,null,null,null,null,null,"20134 TOYS",null,null,null,null,null,null,null,null,null,null,null,null,null,null,null,null,null,null,null,null,null,null,null,null,null,null,null,null,"French S.Territ-TF"]
[null,null,null,null,null,null,null,null,null,null,null,null,null,null,null,null,null,null,null,null,null,null,null,null,null,null,null,"20135 DISPOSABLES",null,null,null,null,null,null,null,null,null,null,null,null,null,null,null,null,null,null,null,null,null,null,null,null,null,null,null,null,"Gabon-GA"]
[null,null,null,null,null,null,null,null,null,null,null,null,null,null,null,null,null,null,null,null,null,null,null,null,null,null,null,"20136 HOUSEHOLD ELECTRONIC",null,null,null,null,null,null,null,null,null,null,null,null,null,null,null,null,null,null,null,null,null,null,null,null,null,null,null,null,"Gambia-GM"]
[null,null,null,null,null,null,null,null,null,null,null,null,null,null,null,null,null,null,null,null,null,null,null,null,null,null,null,"20150 AUTO",null,null,null,null,null,null,null,null,null,null,null,null,null,null,null,null,null,null,null,null,null,null,null,null,null,null,null,null,"Georgia-GE"]
[null,null,null,null,null,null,null,null,null,null,null,null,null,null,null,null,null,null,null,null,null,null,null,null,null,null,null,"20151 PRAMS AND STROLLERS",null,null,null,null,null,null,null,null,null,null,null,null,null,null,null,null,null,null,null,null,null,null,null,null,null,null,null,null,"Germany-DE"]
[null,null,null,null,null,null,null,null,null,null,null,null,null,null,null,null,null,null,null,null,null,null,null,null,null,null,null,"20152 SECURITY",null,null,null,null,null,null,null,null,null,null,null,null,null,null,null,null,null,null,null,null,null,null,null,null,null,null,null,null,"Ghana-GH"]
[null,null,null,null,null,null,null,null,null,null,null,null,null,null,null,null,null,null,null,null,null,null,null,null,null,null,null,"20153 FIREWORKS",null,null,null,null,null,null,null,null,null,null,null,null,null,null,null,null,null,null,null,null,null,null,null,null,null,null,null,null,"Gibraltar-GI"]
[null,null,null,null,null,null,null,null,null,null,null,null,null,null,null,null,null,null,null,null,null,null,null,null,null,null,null,"20170 DIAPERS",null,null,null,null,null,null,null,null,null,null,null,null,null,null,null,null,null,null,null,null,null,null,null,null,null,null,null,null,"Greece-GR"]
[null,null,null,null,null,null,null,null,null,null,null,null,null,null,null,null,null,null,null,null,null,null,null,null,null,null,null,"20171 HAIR PRODUCTS",null,null,null,null,null,null,null,null,null,null,null,null,null,null,null,null,null,null,null,null,null,null,null,null,null,null,null,null,"Greenland-GL"]
[null,null,null,null,null,null,null,null,null,null,null,null,null,null,null,null,null,null,null,null,null,null,null,null,null,null,null,"20172 INTIME HYGIENE",null,null,null,null,null,null,null,null,null,null,null,null,null,null,null,null,null,null,null,null,null,null,null,null,null,null,null,null,"Grenada-GD"]
[null,null,null,null,null,null,null,null,null,null,null,null,null,null,null,null,null,null,null,null,null,null,null,null,null,null,null,"20173 ORAL",null,null,null,null,null,null,null,null,null,null,null,null,null,null,null,null,null,null,null,null,null,null,null,null,null,null,null,null,"Guadeloupe-GP"]
[null,null,null,null,null,null,null,null,null,null,null,null,null,null,null,null,null,null,null,null,null,null,null,null,null,null,null,"20174 PERFUME AND DEODORAN",null,null,null,null,null,null,null,null,null,null,null,null,null,null,null,null,null,null,null,null,null,null,null,null,null,null,null,null,"Guam-GU"]
[null,null,null,null,null,null,null,null,null,null,null,null,null,null,null,null,null,null,null,null,null,null,null,null,null,null,null,"20175 SKIN AND COSMETICS P",null,null,null,null,null,null,null,null,null,null,null,null,null,null,null,null,null,null,null,null,null,null,null,null,null,null,null,null,"Guatemala-GT"]
[null,null,null,null,null,null,null,null,null,null,null,null,null,null,null,null,null,null,null,null,null,null,null,null,null,null,null,"20176 TOILET PAPER",null,null,null,null,null,null,null,null,null,null,null,null,null,null,null,null,null,null,null,null,null,null,null,null,null,null,null,null,"Guinea-Bissau-GW"]
[null,null,null,null,null,null,null,null,null,null,null,null,null,null,null,null,null,null,null,null,null,null,null,null,null,null,null,"20177 COTTON & PAPER",null,null,null,null,null,null,null,null,null,null,null,null,null,null,null,null,null,null,null,null,null,null,null,null,null,null,null,null,"Guinea-GN"]
[null,null,null,null,null,null,null,null,null,null,null,null,null,null,null,null,null,null,null,null,null,null,null,null,null,null,null,"20178 ACCESSORIES PERFUME",null,null,null,null,null,null,null,null,null,null,null,null,null,null,null,null,null,null,null,null,null,null,null,null,null,null,null,null,"Guyana-GY"]
[null,null,null,null,null,null,null,null,null,null,null,null,null,null,null,null,null,null,null,null,null,null,null,null,null,null,null,"20200 BIKES",null,null,null,null,null,null,null,null,null,null,null,null,null,null,null,null,null,null,null,null,null,null,null,null,null,null,null,null,"Haiti-HT"]
[null,null,null,null,null,null,null,null,null,null,null,null,null,null,null,null,null,null,null,null,null,null,null,null,null,null,null,"20201 SPORT EQUIPMENT",null,null,null,null,null,null,null,null,null,null,null,null,null,null,null,null,null,null,null,null,null,null,null,null,null,null,null,null,"Heard/McDon.Isl-HM"]
[null,null,null,null,null,null,null,null,null,null,null,null,null,null,null,null,null,null,null,null,null,null,null,null,null,null,null,"20202 WELLNESS & EXERCISE",null,null,null,null,null,null,null,null,null,null,null,null,null,null,null,null,null,null,null,null,null,null,null,null,null,null,null,null,"Honduras-HN"]
[null,null,null,null,null,null,null,null,null,null,null,null,null,null,null,null,null,null,null,null,null,null,null,null,null,null,null,"20240 YOUNG FASHION",null,null,null,null,null,null,null,null,null,null,null,null,null,null,null,null,null,null,null,null,null,null,null,null,null,null,null,null,"Hong Kong-HK"]
[null,null,null,null,null,null,null,null,null,null,null,null,null,null,null,null,null,null,null,null,null,null,null,null,null,null,null,"20241 LEATHER GOODS",null,null,null,null,null,null,null,null,null,null,null,null,null,null,null,null,null,null,null,null,null,null,null,null,null,null,null,null,"Hungary-HU"]
[null,null,null,null,null,null,null,null,null,null,null,null,null,null,null,null,null,null,null,null,null,null,null,null,null,null,null,"20242 JEWELLERY",null,null,null,null,null,null,null,null,null,null,null,null,null,null,null,null,null,null,null,null,null,null,null,null,null,null,null,null,"Iceland-IS"]
[null,null,null,null,null,null,null,null,null,null,null,null,null,null,null,null,null,null,null,null,null,null,null,null,null,null,null,"20250 MEN TEXTILE",null,null,null,null,null,null,null,null,null,null,null,null,null,null,null,null,null,null,null,null,null,null,null,null,null,null,null,null,"India-IN"]
[null,null,null,null,null,null,null,null,null,null,null,null,null,null,null,null,null,null,null,null,null,null,null,null,null,null,null,"20251 WOMEN TEXTILE",null,null,null,null,null,null,null,null,null,null,null,null,null,null,null,null,null,null,null,null,null,null,null,null,null,null,null,null,"Indonesia-ID"]
[null,null,null,null,null,null,null,null,null,null,null,null,null,null,null,null,null,null,null,null,null,null,null,null,null,null,null,"20252 CHILDREN TEXTILE",null,null,null,null,null,null,null,null,null,null,null,null,null,null,null,null,null,null,null,null,null,null,null,null,null,null,null,null,"Iran-IR"]
[null,null,null,null,null,null,null,null,null,null,null,null,null,null,null,null,null,null,null,null,null,null,null,null,null,null,null,"20253 NEW BORN TEXTILE",null,null,null,null,null,null,null,null,null,null,null,null,null,null,null,null,null,null,null,null,null,null,null,null,null,null,null,null,"Iraq-IQ"]
[null,null,null,null,null,null,null,null,null,null,null,null,null,null,null,null,null,null,null,null,null,null,null,null,null,null,null,"20254 SPORT TEXTILE",null,null,null,null,null,null,null,null,null,null,null,null,null,null,null,null,null,null,null,null,null,null,null,null,null,null,null,null,"Ireland-IE"]
[null,null,null,null,null,null,null,null,null,null,null,null,null,null,null,null,null,null,null,null,null,null,null,null,null,null,null,"20255 SHOES",null,null,null,null,null,null,null,null,null,null,null,null,null,null,null,null,null,null,null,null,null,null,null,null,null,null,null,null,"Israel-IL"]
[null,null,null,null,null,null,null,null,null,null,null,null,null,null,null,null,null,null,null,null,null,null,null,null,null,null,null,"20256 ACCESSORIES TEXTILE",null,null,null,null,null,null,null,null,null,null,null,null,null,null,null,null,null,null,null,null,null,null,null,null,null,null,null,null,"Italy-IT"]
[null,null,null,null,null,null,null,null,null,null,null,null,null,null,null,null,null,null,null,null,null,null,null,null,null,null,null,"20257 UNDERWEAR",null,null,null,null,null,null,null,null,null,null,null,null,null,null,null,null,null,null,null,null,null,null,null,null,null,null,null,null,"Jamaica-JM"]
[null,null,null,null,null,null,null,null,null,null,null,null,null,null,null,null,null,null,null,null,null,null,null,null,null,null,null,"20260 LOYALTY PROGRAMS",null,null,null,null,null,null,null,null,null,null,null,null,null,null,null,null,null,null,null,null,null,null,null,null,null,null,null,null,"Japan-JP"]
[null,null,null,null,null,null,null,null,null,null,null,null,null,null,null,null,null,null,null,null,null,null,null,null,null,null,null,"20270 CSR",null,null,null,null,null,null,null,null,null,null,null,null,null,null,null,null,null,null,null,null,null,null,null,null,null,null,null,null,"Jersey-JE"]
[null,null,null,null,null,null,null,null,null,null,null,null,null,null,null,null,null,null,null,null,null,null,null,null,null,null,null,"30001 ADMINISTRATIVE",null,null,null,null,null,null,null,null,null,null,null,null,null,null,null,null,null,null,null,null,null,null,null,null,null,null,null,null,"Jordan-JO"]
[null,null,null,null,null,null,null,null,null,null,null,null,null,null,null,null,null,null,null,null,null,null,null,null,null,null,null,"30002 CANTEEN",null,null,null,null,null,null,null,null,null,null,null,null,null,null,null,null,null,null,null,null,null,null,null,null,null,null,null,null,"Kazakhstan-KZ"]
[null,null,null,null,null,null,null,null,null,null,null,null,null,null,null,null,null,null,null,null,null,null,null,null,null,null,null,"30003 DECORATION",null,null,null,null,null,null,null,null,null,null,null,null,null,null,null,null,null,null,null,null,null,null,null,null,null,null,null,null,"Kenya-KE"]
[null,null,null,null,null,null,null,null,null,null,null,null,null,null,null,null,null,null,null,null,null,null,null,null,null,null,null,"30004 INVENTORY",null,null,null,null,null,null,null,null,null,null,null,null,null,null,null,null,null,null,null,null,null,null,null,null,null,null,null,null,"Kiribati-KI"]
[null,null,null,null,null,null,null,null,null,null,null,null,null,null,null,null,null,null,null,null,null,null,null,null,null,null,null,"30005 NETTO INVENTORY",null,null,null,null,null,null,null,null,null,null,null,null,null,null,null,null,null,null,null,null,null,null,null,null,null,null,null,null,"Kuwait-KW"]
[null,null,null,null,null,null,null,null,null,null,null,null,null,null,null,null,null,null,null,null,null,null,null,null,null,null,null,"30006 PALLETS & CONTAINERS",null,null,null,null,null,null,null,null,null,null,null,null,null,null,null,null,null,null,null,null,null,null,null,null,null,null,null,null,"Kyrgyzstan-KG"]
[null,null,null,null,null,null,null,null,null,null,null,null,null,null,null,null,null,null,null,null,null,null,null,null,null,null,null,"30007 SERVICES",null,null,null,null,null,null,null,null,null,null,null,null,null,null,null,null,null,null,null,null,null,null,null,null,null,null,null,null,"Laos-LA"]
[null,null,null,null,null,null,null,null,null,null,null,null,null,null,null,null,null,null,null,null,null,null,null,null,null,null,null,"30020 EMPTIES",null,null,null,null,null,null,null,null,null,null,null,null,null,null,null,null,null,null,null,null,null,null,null,null,null,null,null,null,"Latvia-LV"]
[null,null,null,null,null,null,null,null,null,null,null,null,null,null,null,null,null,null,null,null,null,null,null,null,null,null,null,"30100 GIFT VOUCHERS",null,null,null,null,null,null,null,null,null,null,null,null,null,null,null,null,null,null,null,null,null,null,null,null,null,null,null,null,"Lebanon-LB"]
[null,null,null,null,null,null,null,null,null,null,null,null,null,null,null,null,null,null,null,null,null,null,null,null,null,null,null,"30110 POS SALES GRP ART",null,null,null,null,null,null,null,null,null,null,null,null,null,null,null,null,null,null,null,null,null,null,null,null,null,null,null,null,"Lesotho-LS"]
[null,null,null,null,null,null,null,null,null,null,null,null,null,null,null,null,null,null,null,null,null,null,null,null,null,null,null,"90000 ZDSV from Hybris",null,null,null,null,null,null,null,null,null,null,null,null,null,null,null,null,null,null,null,null,null,null,null,null,null,null,null,null,"Liberia-LR"]
[null,null,null,null,null,null,null,null,null,null,null,null,null,null,null,null,null,null,null,null,null,null,null,null,null,null,null,null,null,null,null,null,null,null,null,null,null,null,null,null,null,null,null,null,null,null,null,null,null,null,null,null,null,null,null,null,"Libya-LY"]
[null,null,null,null,null,null,null,null,null,null,null,null,null,null,null,null,null,null,null,null,null,null,null,null,null,null,null,null,null,null,null,null,null,null,null,null,null,null,null,null,null,null,null,null,null,null,null,null,null,null,null,null,null,null,null,null,"Liechtenstein-LI"]
[null,null,null,null,null,null,null,null,null,null,null,null,null,null,null,null,null,null,null,null,null,null,null,null,null,null,null,null,null,null,null,null,null,null,null,null,null,null,null,null,null,null,null,null,null,null,null,null,null,null,null,null,null,null,null,null,"Lithuania-LT"]
[null,null,null,null,null,null,null,null,null,null,null,null,null,null,null,null,null,null,null,null,null,null,null,null,null,null,null,null,null,null,null,null,null,null,null,null,null,null,null,null,null,null,null,null,null,null,null,null,null,null,null,null,null,null,null,null,"Luxembourg-LU"]
[null,null,null,null,null,null,null,null,null,null,null,null,null,null,null,null,null,null,null,null,null,null,null,null,null,null,null,null,null,null,null,null,null,null,null,null,null,null,null,null,null,null,null,null,null,null,null,null,null,null,null,null,null,null,null,null,"Macau-MO"]
[null,null,null,null,null,null,null,null,null,null,null,null,null,null,null,null,null,null,null,null,null,null,null,null,null,null,null,null,null,null,null,null,null,null,null,null,null,null,null,null,null,null,null,null,null,null,null,null,null,null,null,null,null,null,null,null,"Macedonia-MK"]
[null,null,null,null,null,null,null,null,null,null,null,null,null,null,null,null,null,null,null,null,null,null,null,null,null,null,null,null,null,null,null,null,null,null,null,null,null,null,null,null,null,null,null,null,null,null,null,null,null,null,null,null,null,null,null,null,"Madagascar-MG"]
[null,null,null,null,null,null,null,null,null,null,null,null,null,null,null,null,null,null,null,null,null,null,null,null,null,null,null,null,null,null,null,null,null,null,null,null,null,null,null,null,null,null,null,null,null,null,null,null,null,null,null,null,null,null,null,null,"Malawi-MW"]
[null,null,null,null,null,null,null,null,null,null,null,null,null,null,null,null,null,null,null,null,null,null,null,null,null,null,null,null,null,null,null,null,null,null,null,null,null,null,null,null,null,null,null,null,null,null,null,null,null,null,null,null,null,null,null,null,"Malaysia-MY"]
[null,null,null,null,null,null,null,null,null,null,null,null,null,null,null,null,null,null,null,null,null,null,null,null,null,null,null,null,null,null,null,null,null,null,null,null,null,null,null,null,null,null,null,null,null,null,null,null,null,null,null,null,null,null,null,null,"Maldives-MV"]
[null,null,null,null,null,null,null,null,null,null,null,null,null,null,null,null,null,null,null,null,null,null,null,null,null,null,null,null,null,null,null,null,null,null,null,null,null,null,null,null,null,null,null,null,null,null,null,null,null,null,null,null,null,null,null,null,"Mali-ML"]
[null,null,null,null,null,null,null,null,null,null,null,null,null,null,null,null,null,null,null,null,null,null,null,null,null,null,null,null,null,null,null,null,null,null,null,null,null,null,null,null,null,null,null,null,null,null,null,null,null,null,null,null,null,null,null,null,"Malta-MT"]
[null,null,null,null,null,null,null,null,null,null,null,null,null,null,null,null,null,null,null,null,null,null,null,null,null,null,null,null,null,null,null,null,null,null,null,null,null,null,null,null,null,null,null,null,null,null,null,null,null,null,null,null,null,null,null,null,"Marshall Islnds-MH"]
[null,null,null,null,null,null,null,null,null,null,null,null,null,null,null,null,null,null,null,null,null,null,null,null,null,null,null,null,null,null,null,null,null,null,null,null,null,null,null,null,null,null,null,null,null,null,null,null,null,null,null,null,null,null,null,null,"Martinique-MQ"]
[null,null,null,null,null,null,null,null,null,null,null,null,null,null,null,null,null,null,null,null,null,null,null,null,null,null,null,null,null,null,null,null,null,null,null,null,null,null,null,null,null,null,null,null,null,null,null,null,null,null,null,null,null,null,null,null,"Mauretania-MR"]
[null,null,null,null,null,null,null,null,null,null,null,null,null,null,null,null,null,null,null,null,null,null,null,null,null,null,null,null,null,null,null,null,null,null,null,null,null,null,null,null,null,null,null,null,null,null,null,null,null,null,null,null,null,null,null,null,"Mauritius-MU"]
[null,null,null,null,null,null,null,null,null,null,null,null,null,null,null,null,null,null,null,null,null,null,null,null,null,null,null,null,null,null,null,null,null,null,null,null,null,null,null,null,null,null,null,null,null,null,null,null,null,null,null,null,null,null,null,null,"Mayotte-YT"]
[null,null,null,null,null,null,null,null,null,null,null,null,null,null,null,null,null,null,null,null,null,null,null,null,null,null,null,null,null,null,null,null,null,null,null,null,null,null,null,null,null,null,null,null,null,null,null,null,null,null,null,null,null,null,null,null,"Mexico-MX"]
[null,null,null,null,null,null,null,null,null,null,null,null,null,null,null,null,null,null,null,null,null,null,null,null,null,null,null,null,null,null,null,null,null,null,null,null,null,null,null,null,null,null,null,null,null,null,null,null,null,null,null,null,null,null,null,null,"Micronesia-FM"]
[null,null,null,null,null,null,null,null,null,null,null,null,null,null,null,null,null,null,null,null,null,null,null,null,null,null,null,null,null,null,null,null,null,null,null,null,null,null,null,null,null,null,null,null,null,null,null,null,null,null,null,null,null,null,null,null,"Minor Outl.Isl.-UM"]
[null,null,null,null,null,null,null,null,null,null,null,null,null,null,null,null,null,null,null,null,null,null,null,null,null,null,null,null,null,null,null,null,null,null,null,null,null,null,null,null,null,null,null,null,null,null,null,null,null,null,null,null,null,null,null,null,"Moldova-MD"]
[null,null,null,null,null,null,null,null,null,null,null,null,null,null,null,null,null,null,null,null,null,null,null,null,null,null,null,null,null,null,null,null,null,null,null,null,null,null,null,null,null,null,null,null,null,null,null,null,null,null,null,null,null,null,null,null,"Monaco-MC"]
[null,null,null,null,null,null,null,null,null,null,null,null,null,null,null,null,null,null,null,null,null,null,null,null,null,null,null,null,null,null,null,null,null,null,null,null,null,null,null,null,null,null,null,null,null,null,null,null,null,null,null,null,null,null,null,null,"Mongolia-MN"]
[null,null,null,null,null,null,null,null,null,null,null,null,null,null,null,null,null,null,null,null,null,null,null,null,null,null,null,null,null,null,null,null,null,null,null,null,null,null,null,null,null,null,null,null,null,null,null,null,null,null,null,null,null,null,null,null,"Montenegro-ME"]
[null,null,null,null,null,null,null,null,null,null,null,null,null,null,null,null,null,null,null,null,null,null,null,null,null,null,null,null,null,null,null,null,null,null,null,null,null,null,null,null,null,null,null,null,null,null,null,null,null,null,null,null,null,null,null,null,"Montserrat-MS"]
[null,null,null,null,null,null,null,null,null,null,null,null,null,null,null,null,null,null,null,null,null,null,null,null,null,null,null,null,null,null,null,null,null,null,null,null,null,null,null,null,null,null,null,null,null,null,null,null,null,null,null,null,null,null,null,null,"Morocco-MA"]
[null,null,null,null,null,null,null,null,null,null,null,null,null,null,null,null,null,null,null,null,null,null,null,null,null,null,null,null,null,null,null,null,null,null,null,null,null,null,null,null,null,null,null,null,null,null,null,null,null,null,null,null,null,null,null,null,"Mozambique-MZ"]
[null,null,null,null,null,null,null,null,null,null,null,null,null,null,null,null,null,null,null,null,null,null,null,null,null,null,null,null,null,null,null,null,null,null,null,null,null,null,null,null,null,null,null,null,null,null,null,null,null,null,null,null,null,null,null,null,"N.Mariana Islnd-MP"]
[null,null,null,null,null,null,null,null,null,null,null,null,null,null,null,null,null,null,null,null,null,null,null,null,null,null,null,null,null,null,null,null,null,null,null,null,null,null,null,null,null,null,null,null,null,null,null,null,null,null,null,null,null,null,null,null,"Namibia-NA"]
[null,null,null,null,null,null,null,null,null,null,null,null,null,null,null,null,null,null,null,null,null,null,null,null,null,null,null,null,null,null,null,null,null,null,null,null,null,null,null,null,null,null,null,null,null,null,null,null,null,null,null,null,null,null,null,null,"Nauru-NR"]
[null,null,null,null,null,null,null,null,null,null,null,null,null,null,null,null,null,null,null,null,null,null,null,null,null,null,null,null,null,null,null,null,null,null,null,null,null,null,null,null,null,null,null,null,null,null,null,null,null,null,null,null,null,null,null,null,"Nepal-NP"]
[null,null,null,null,null,null,null,null,null,null,null,null,null,null,null,null,null,null,null,null,null,null,null,null,null,null,null,null,null,null,null,null,null,null,null,null,null,null,null,null,null,null,null,null,null,null,null,null,null,null,null,null,null,null,null,null,"Netherlands-NL"]
[null,null,null,null,null,null,null,null,null,null,null,null,null,null,null,null,null,null,null,null,null,null,null,null,null,null,null,null,null,null,null,null,null,null,null,null,null,null,null,null,null,null,null,null,null,null,null,null,null,null,null,null,null,null,null,null,"New Caledonia-NC"]
[null,null,null,null,null,null,null,null,null,null,null,null,null,null,null,null,null,null,null,null,null,null,null,null,null,null,null,null,null,null,null,null,null,null,null,null,null,null,null,null,null,null,null,null,null,null,null,null,null,null,null,null,null,null,null,null,"New Zealand-NZ"]
[null,null,null,null,null,null,null,null,null,null,null,null,null,null,null,null,null,null,null,null,null,null,null,null,null,null,null,null,null,null,null,null,null,null,null,null,null,null,null,null,null,null,null,null,null,null,null,null,null,null,null,null,null,null,null,null,"Nicaragua-NI"]
[null,null,null,null,null,null,null,null,null,null,null,null,null,null,null,null,null,null,null,null,null,null,null,null,null,null,null,null,null,null,null,null,null,null,null,null,null,null,null,null,null,null,null,null,null,null,null,null,null,null,null,null,null,null,null,null,"Nigeria-NG"]
[null,null,null,null,null,null,null,null,null,null,null,null,null,null,null,null,null,null,null,null,null,null,null,null,null,null,null,null,null,null,null,null,null,null,null,null,null,null,null,null,null,null,null,null,null,null,null,null,null,null,null,null,null,null,null,null,"Niger-NE"]
[null,null,null,null,null,null,null,null,null,null,null,null,null,null,null,null,null,null,null,null,null,null,null,null,null,null,null,null,null,null,null,null,null,null,null,null,null,null,null,null,null,null,null,null,null,null,null,null,null,null,null,null,null,null,null,null,"Niue-NU"]
[null,null,null,null,null,null,null,null,null,null,null,null,null,null,null,null,null,null,null,null,null,null,null,null,null,null,null,null,null,null,null,null,null,null,null,null,null,null,null,null,null,null,null,null,null,null,null,null,null,null,null,null,null,null,null,null,"Norfolk Islands-NF"]
[null,null,null,null,null,null,null,null,null,null,null,null,null,null,null,null,null,null,null,null,null,null,null,null,null,null,null,null,null,null,null,null,null,null,null,null,null,null,null,null,null,null,null,null,null,null,null,null,null,null,null,null,null,null,null,null,"North Korea-KP"]
[null,null,null,null,null,null,null,null,null,null,null,null,null,null,null,null,null,null,null,null,null,null,null,null,null,null,null,null,null,null,null,null,null,null,null,null,null,null,null,null,null,null,null,null,null,null,null,null,null,null,null,null,null,null,null,null,"Norway-NO"]
[null,null,null,null,null,null,null,null,null,null,null,null,null,null,null,null,null,null,null,null,null,null,null,null,null,null,null,null,null,null,null,null,null,null,null,null,null,null,null,null,null,null,null,null,null,null,null,null,null,null,null,null,null,null,null,null,"Oman-OM"]
[null,null,null,null,null,null,null,null,null,null,null,null,null,null,null,null,null,null,null,null,null,null,null,null,null,null,null,null,null,null,null,null,null,null,null,null,null,null,null,null,null,null,null,null,null,null,null,null,null,null,null,null,null,null,null,null,"Pakistan-PK"]
[null,null,null,null,null,null,null,null,null,null,null,null,null,null,null,null,null,null,null,null,null,null,null,null,null,null,null,null,null,null,null,null,null,null,null,null,null,null,null,null,null,null,null,null,null,null,null,null,null,null,null,null,null,null,null,null,"Palau-PW"]
[null,null,null,null,null,null,null,null,null,null,null,null,null,null,null,null,null,null,null,null,null,null,null,null,null,null,null,null,null,null,null,null,null,null,null,null,null,null,null,null,null,null,null,null,null,null,null,null,null,null,null,null,null,null,null,null,"Palestine-PS"]
[null,null,null,null,null,null,null,null,null,null,null,null,null,null,null,null,null,null,null,null,null,null,null,null,null,null,null,null,null,null,null,null,null,null,null,null,null,null,null,null,null,null,null,null,null,null,null,null,null,null,null,null,null,null,null,null,"Panama-PA"]
[null,null,null,null,null,null,null,null,null,null,null,null,null,null,null,null,null,null,null,null,null,null,null,null,null,null,null,null,null,null,null,null,null,null,null,null,null,null,null,null,null,null,null,null,null,null,null,null,null,null,null,null,null,null,null,null,"Pap. New Guinea-PG"]
[null,null,null,null,null,null,null,null,null,null,null,null,null,null,null,null,null,null,null,null,null,null,null,null,null,null,null,null,null,null,null,null,null,null,null,null,null,null,null,null,null,null,null,null,null,null,null,null,null,null,null,null,null,null,null,null,"Paraguay-PY"]
[null,null,null,null,null,null,null,null,null,null,null,null,null,null,null,null,null,null,null,null,null,null,null,null,null,null,null,null,null,null,null,null,null,null,null,null,null,null,null,null,null,null,null,null,null,null,null,null,null,null,null,null,null,null,null,null,"Peru-PE"]
[null,null,null,null,null,null,null,null,null,null,null,null,null,null,null,null,null,null,null,null,null,null,null,null,null,null,null,null,null,null,null,null,null,null,null,null,null,null,null,null,null,null,null,null,null,null,null,null,null,null,null,null,null,null,null,null,"Philippines-PH"]
[null,null,null,null,null,null,null,null,null,null,null,null,null,null,null,null,null,null,null,null,null,null,null,null,null,null,null,null,null,null,null,null,null,null,null,null,null,null,null,null,null,null,null,null,null,null,null,null,null,null,null,null,null,null,null,null,"Pitcairn Islnds-PN"]
[null,null,null,null,null,null,null,null,null,null,null,null,null,null,null,null,null,null,null,null,null,null,null,null,null,null,null,null,null,null,null,null,null,null,null,null,null,null,null,null,null,null,null,null,null,null,null,null,null,null,null,null,null,null,null,null,"Poland-PL"]
[null,null,null,null,null,null,null,null,null,null,null,null,null,null,null,null,null,null,null,null,null,null,null,null,null,null,null,null,null,null,null,null,null,null,null,null,null,null,null,null,null,null,null,null,null,null,null,null,null,null,null,null,null,null,null,null,"Portugal-PT"]
[null,null,null,null,null,null,null,null,null,null,null,null,null,null,null,null,null,null,null,null,null,null,null,null,null,null,null,null,null,null,null,null,null,null,null,null,null,null,null,null,null,null,null,null,null,null,null,null,null,null,null,null,null,null,null,null,"Puerto Rico-PR"]
[null,null,null,null,null,null,null,null,null,null,null,null,null,null,null,null,null,null,null,null,null,null,null,null,null,null,null,null,null,null,null,null,null,null,null,null,null,null,null,null,null,null,null,null,null,null,null,null,null,null,null,null,null,null,null,null,"Qatar-QA"]
[null,null,null,null,null,null,null,null,null,null,null,null,null,null,null,null,null,null,null,null,null,null,null,null,null,null,null,null,null,null,null,null,null,null,null,null,null,null,null,null,null,null,null,null,null,null,null,null,null,null,null,null,null,null,null,null,"Rep.of Congo-CG"]
[null,null,null,null,null,null,null,null,null,null,null,null,null,null,null,null,null,null,null,null,null,null,null,null,null,null,null,null,null,null,null,null,null,null,null,null,null,null,null,null,null,null,null,null,null,null,null,null,null,null,null,null,null,null,null,null,"Reunion-RE"]
[null,null,null,null,null,null,null,null,null,null,null,null,null,null,null,null,null,null,null,null,null,null,null,null,null,null,null,null,null,null,null,null,null,null,null,null,null,null,null,null,null,null,null,null,null,null,null,null,null,null,null,null,null,null,null,null,"Romania-RO"]
[null,null,null,null,null,null,null,null,null,null,null,null,null,null,null,null,null,null,null,null,null,null,null,null,null,null,null,null,null,null,null,null,null,null,null,null,null,null,null,null,null,null,null,null,null,null,null,null,null,null,null,null,null,null,null,null,"Russian Fed.-RU"]
[null,null,null,null,null,null,null,null,null,null,null,null,null,null,null,null,null,null,null,null,null,null,null,null,null,null,null,null,null,null,null,null,null,null,null,null,null,null,null,null,null,null,null,null,null,null,null,null,null,null,null,null,null,null,null,null,"Rwanda-RW"]
[null,null,null,null,null,null,null,null,null,null,null,null,null,null,null,null,null,null,null,null,null,null,null,null,null,null,null,null,null,null,null,null,null,null,null,null,null,null,null,null,null,null,null,null,null,null,null,null,null,null,null,null,null,null,null,null,"S. Sandwich Ins-GS"]
[null,null,null,null,null,null,null,null,null,null,null,null,null,null,null,null,null,null,null,null,null,null,null,null,null,null,null,null,null,null,null,null,null,null,null,null,null,null,null,null,null,null,null,null,null,null,null,null,null,null,null,null,null,null,null,null,"S.Tome,Principe-ST"]
[null,null,null,null,null,null,null,null,null,null,null,null,null,null,null,null,null,null,null,null,null,null,null,null,null,null,null,null,null,null,null,null,null,null,null,null,null,null,null,null,null,null,null,null,null,null,null,null,null,null,null,null,null,null,null,null,"Saint Helena-SH"]
[null,null,null,null,null,null,null,null,null,null,null,null,null,null,null,null,null,null,null,null,null,null,null,null,null,null,null,null,null,null,null,null,null,null,null,null,null,null,null,null,null,null,null,null,null,null,null,null,null,null,null,null,null,null,null,null,"Samoa, America-AS"]
[null,null,null,null,null,null,null,null,null,null,null,null,null,null,null,null,null,null,null,null,null,null,null,null,null,null,null,null,null,null,null,null,null,null,null,null,null,null,null,null,null,null,null,null,null,null,null,null,null,null,null,null,null,null,null,null,"Samoa-WS"]
[null,null,null,null,null,null,null,null,null,null,null,null,null,null,null,null,null,null,null,null,null,null,null,null,null,null,null,null,null,null,null,null,null,null,null,null,null,null,null,null,null,null,null,null,null,null,null,null,null,null,null,null,null,null,null,null,"San Marino-SM"]
[null,null,null,null,null,null,null,null,null,null,null,null,null,null,null,null,null,null,null,null,null,null,null,null,null,null,null,null,null,null,null,null,null,null,null,null,null,null,null,null,null,null,null,null,null,null,null,null,null,null,null,null,null,null,null,null,"Saudi Arabia-SA"]
[null,null,null,null,null,null,null,null,null,null,null,null,null,null,null,null,null,null,null,null,null,null,null,null,null,null,null,null,null,null,null,null,null,null,null,null,null,null,null,null,null,null,null,null,null,null,null,null,null,null,null,null,null,null,null,null,"Senegal-SN"]
[null,null,null,null,null,null,null,null,null,null,null,null,null,null,null,null,null,null,null,null,null,null,null,null,null,null,null,null,null,null,null,null,null,null,null,null,null,null,null,null,null,null,null,null,null,null,null,null,null,null,null,null,null,null,null,null,"Serbia-RS"]
[null,null,null,null,null,null,null,null,null,null,null,null,null,null,null,null,null,null,null,null,null,null,null,null,null,null,null,null,null,null,null,null,null,null,null,null,null,null,null,null,null,null,null,null,null,null,null,null,null,null,null,null,null,null,null,null,"Seychelles-SC"]
[null,null,null,null,null,null,null,null,null,null,null,null,null,null,null,null,null,null,null,null,null,null,null,null,null,null,null,null,null,null,null,null,null,null,null,null,null,null,null,null,null,null,null,null,null,null,null,null,null,null,null,null,null,null,null,null,"Sierra Leone-SL"]
[null,null,null,null,null,null,null,null,null,null,null,null,null,null,null,null,null,null,null,null,null,null,null,null,null,null,null,null,null,null,null,null,null,null,null,null,null,null,null,null,null,null,null,null,null,null,null,null,null,null,null,null,null,null,null,null,"Singapore-SG"]
[null,null,null,null,null,null,null,null,null,null,null,null,null,null,null,null,null,null,null,null,null,null,null,null,null,null,null,null,null,null,null,null,null,null,null,null,null,null,null,null,null,null,null,null,null,null,null,null,null,null,null,null,null,null,null,null,"Slovakia-SK"]
[null,null,null,null,null,null,null,null,null,null,null,null,null,null,null,null,null,null,null,null,null,null,null,null,null,null,null,null,null,null,null,null,null,null,null,null,null,null,null,null,null,null,null,null,null,null,null,null,null,null,null,null,null,null,null,null,"Slovenia-SI"]
[null,null,null,null,null,null,null,null,null,null,null,null,null,null,null,null,null,null,null,null,null,null,null,null,null,null,null,null,null,null,null,null,null,null,null,null,null,null,null,null,null,null,null,null,null,null,null,null,null,null,null,null,null,null,null,null,"Solomon Islands-SB"]
[null,null,null,null,null,null,null,null,null,null,null,null,null,null,null,null,null,null,null,null,null,null,null,null,null,null,null,null,null,null,null,null,null,null,null,null,null,null,null,null,null,null,null,null,null,null,null,null,null,null,null,null,null,null,null,null,"Somalia-SO"]
[null,null,null,null,null,null,null,null,null,null,null,null,null,null,null,null,null,null,null,null,null,null,null,null,null,null,null,null,null,null,null,null,null,null,null,null,null,null,null,null,null,null,null,null,null,null,null,null,null,null,null,null,null,null,null,null,"South Africa-ZA"]
[null,null,null,null,null,null,null,null,null,null,null,null,null,null,null,null,null,null,null,null,null,null,null,null,null,null,null,null,null,null,null,null,null,null,null,null,null,null,null,null,null,null,null,null,null,null,null,null,null,null,null,null,null,null,null,null,"South Korea-KR"]
[null,null,null,null,null,null,null,null,null,null,null,null,null,null,null,null,null,null,null,null,null,null,null,null,null,null,null,null,null,null,null,null,null,null,null,null,null,null,null,null,null,null,null,null,null,null,null,null,null,null,null,null,null,null,null,null,"Spain-ES"]
[null,null,null,null,null,null,null,null,null,null,null,null,null,null,null,null,null,null,null,null,null,null,null,null,null,null,null,null,null,null,null,null,null,null,null,null,null,null,null,null,null,null,null,null,null,null,null,null,null,null,null,null,null,null,null,null,"Sri Lanka-LK"]
[null,null,null,null,null,null,null,null,null,null,null,null,null,null,null,null,null,null,null,null,null,null,null,null,null,null,null,null,null,null,null,null,null,null,null,null,null,null,null,null,null,null,null,null,null,null,null,null,null,null,null,null,null,null,null,null,"St Kitts&Nevis-KN"]
[null,null,null,null,null,null,null,null,null,null,null,null,null,null,null,null,null,null,null,null,null,null,null,null,null,null,null,null,null,null,null,null,null,null,null,null,null,null,null,null,null,null,null,null,null,null,null,null,null,null,null,null,null,null,null,null,"St. Lucia-LC"]
[null,null,null,null,null,null,null,null,null,null,null,null,null,null,null,null,null,null,null,null,null,null,null,null,null,null,null,null,null,null,null,null,null,null,null,null,null,null,null,null,null,null,null,null,null,null,null,null,null,null,null,null,null,null,null,null,"St. Vincent-VC"]
[null,null,null,null,null,null,null,null,null,null,null,null,null,null,null,null,null,null,null,null,null,null,null,null,null,null,null,null,null,null,null,null,null,null,null,null,null,null,null,null,null,null,null,null,null,null,null,null,null,null,null,null,null,null,null,null,"St.Pier,Miquel.-PM"]
[null,null,null,null,null,null,null,null,null,null,null,null,null,null,null,null,null,null,null,null,null,null,null,null,null,null,null,null,null,null,null,null,null,null,null,null,null,null,null,null,null,null,null,null,null,null,null,null,null,null,null,null,null,null,null,null,"Sudan-SD"]
[null,null,null,null,null,null,null,null,null,null,null,null,null,null,null,null,null,null,null,null,null,null,null,null,null,null,null,null,null,null,null,null,null,null,null,null,null,null,null,null,null,null,null,null,null,null,null,null,null,null,null,null,null,null,null,null,"Suriname-SR"]
[null,null,null,null,null,null,null,null,null,null,null,null,null,null,null,null,null,null,null,null,null,null,null,null,null,null,null,null,null,null,null,null,null,null,null,null,null,null,null,null,null,null,null,null,null,null,null,null,null,null,null,null,null,null,null,null,"Svalbard-SJ"]
[null,null,null,null,null,null,null,null,null,null,null,null,null,null,null,null,null,null,null,null,null,null,null,null,null,null,null,null,null,null,null,null,null,null,null,null,null,null,null,null,null,null,null,null,null,null,null,null,null,null,null,null,null,null,null,null,"Swaziland-SZ"]
[null,null,null,null,null,null,null,null,null,null,null,null,null,null,null,null,null,null,null,null,null,null,null,null,null,null,null,null,null,null,null,null,null,null,null,null,null,null,null,null,null,null,null,null,null,null,null,null,null,null,null,null,null,null,null,null,"Sweden-SE"]
[null,null,null,null,null,null,null,null,null,null,null,null,null,null,null,null,null,null,null,null,null,null,null,null,null,null,null,null,null,null,null,null,null,null,null,null,null,null,null,null,null,null,null,null,null,null,null,null,null,null,null,null,null,null,null,null,"Switzerland-CH"]
[null,null,null,null,null,null,null,null,null,null,null,null,null,null,null,null,null,null,null,null,null,null,null,null,null,null,null,null,null,null,null,null,null,null,null,null,null,null,null,null,null,null,null,null,null,null,null,null,null,null,null,null,null,null,null,null,"Syria-SY"]
[null,null,null,null,null,null,null,null,null,null,null,null,null,null,null,null,null,null,null,null,null,null,null,null,null,null,null,null,null,null,null,null,null,null,null,null,null,null,null,null,null,null,null,null,null,null,null,null,null,null,null,null,null,null,null,null,"Taiwan-TW"]
[null,null,null,null,null,null,null,null,null,null,null,null,null,null,null,null,null,null,null,null,null,null,null,null,null,null,null,null,null,null,null,null,null,null,null,null,null,null,null,null,null,null,null,null,null,null,null,null,null,null,null,null,null,null,null,null,"Tajikistan-TJ"]
[null,null,null,null,null,null,null,null,null,null,null,null,null,null,null,null,null,null,null,null,null,null,null,null,null,null,null,null,null,null,null,null,null,null,null,null,null,null,null,null,null,null,null,null,null,null,null,null,null,null,null,null,null,null,null,null,"Tanzania-TZ"]
[null,null,null,null,null,null,null,null,null,null,null,null,null,null,null,null,null,null,null,null,null,null,null,null,null,null,null,null,null,null,null,null,null,null,null,null,null,null,null,null,null,null,null,null,null,null,null,null,null,null,null,null,null,null,null,null,"Thailand-TH"]
[null,null,null,null,null,null,null,null,null,null,null,null,null,null,null,null,null,null,null,null,null,null,null,null,null,null,null,null,null,null,null,null,null,null,null,null,null,null,null,null,null,null,null,null,null,null,null,null,null,null,null,null,null,null,null,null,"Togo-TG"]
[null,null,null,null,null,null,null,null,null,null,null,null,null,null,null,null,null,null,null,null,null,null,null,null,null,null,null,null,null,null,null,null,null,null,null,null,null,null,null,null,null,null,null,null,null,null,null,null,null,null,null,null,null,null,null,null,"Tokelau Islands-TK"]
[null,null,null,null,null,null,null,null,null,null,null,null,null,null,null,null,null,null,null,null,null,null,null,null,null,null,null,null,null,null,null,null,null,null,null,null,null,null,null,null,null,null,null,null,null,null,null,null,null,null,null,null,null,null,null,null,"Tonga-TO"]
[null,null,null,null,null,null,null,null,null,null,null,null,null,null,null,null,null,null,null,null,null,null,null,null,null,null,null,null,null,null,null,null,null,null,null,null,null,null,null,null,null,null,null,null,null,null,null,null,null,null,null,null,null,null,null,null,"Trinidad,Tobago-TT"]
[null,null,null,null,null,null,null,null,null,null,null,null,null,null,null,null,null,null,null,null,null,null,null,null,null,null,null,null,null,null,null,null,null,null,null,null,null,null,null,null,null,null,null,null,null,null,null,null,null,null,null,null,null,null,null,null,"Tunisia-TN"]
[null,null,null,null,null,null,null,null,null,null,null,null,null,null,null,null,null,null,null,null,null,null,null,null,null,null,null,null,null,null,null,null,null,null,null,null,null,null,null,null,null,null,null,null,null,null,null,null,null,null,null,null,null,null,null,null,"Turkey-TR"]
[null,null,null,null,null,null,null,null,null,null,null,null,null,null,null,null,null,null,null,null,null,null,null,null,null,null,null,null,null,null,null,null,null,null,null,null,null,null,null,null,null,null,null,null,null,null,null,null,null,null,null,null,null,null,null,null,"Turkmenistan-TM"]
[null,null,null,null,null,null,null,null,null,null,null,null,null,null,null,null,null,null,null,null,null,null,null,null,null,null,null,null,null,null,null,null,null,null,null,null,null,null,null,null,null,null,null,null,null,null,null,null,null,null,null,null,null,null,null,null,"Turksh Caicosin-TC"]
[null,null,null,null,null,null,null,null,null,null,null,null,null,null,null,null,null,null,null,null,null,null,null,null,null,null,null,null,null,null,null,null,null,null,null,null,null,null,null,null,null,null,null,null,null,null,null,null,null,null,null,null,null,null,null,null,"Tuvalu-TV"]
[null,null,null,null,null,null,null,null,null,null,null,null,null,null,null,null,null,null,null,null,null,null,null,null,null,null,null,null,null,null,null,null,null,null,null,null,null,null,null,null,null,null,null,null,null,null,null,null,null,null,null,null,null,null,null,null,"Uganda-UG"]
[null,null,null,null,null,null,null,null,null,null,null,null,null,null,null,null,null,null,null,null,null,null,null,null,null,null,null,null,null,null,null,null,null,null,null,null,null,null,null,null,null,null,null,null,null,null,null,null,null,null,null,null,null,null,null,null,"Ukraine-UA"]
[null,null,null,null,null,null,null,null,null,null,null,null,null,null,null,null,null,null,null,null,null,null,null,null,null,null,null,null,null,null,null,null,null,null,null,null,null,null,null,null,null,null,null,null,null,null,null,null,null,null,null,null,null,null,null,null,"United Kingdom-GB"]
[null,null,null,null,null,null,null,null,null,null,null,null,null,null,null,null,null,null,null,null,null,null,null,null,null,null,null,null,null,null,null,null,null,null,null,null,null,null,null,null,null,null,null,null,null,null,null,null,null,null,null,null,null,null,null,null,"Uruguay-UY"]
[null,null,null,null,null,null,null,null,null,null,null,null,null,null,null,null,null,null,null,null,null,null,null,null,null,null,null,null,null,null,null,null,null,null,null,null,null,null,null,null,null,null,null,null,null,null,null,null,null,null,null,null,null,null,null,null,"USA-US"]
[null,null,null,null,null,null,null,null,null,null,null,null,null,null,null,null,null,null,null,null,null,null,null,null,null,null,null,null,null,null,null,null,null,null,null,null,null,null,null,null,null,null,null,null,null,null,null,null,null,null,null,null,null,null,null,null,"Utd.Arab Emir.-AE"]
[null,null,null,null,null,null,null,null,null,null,null,null,null,null,null,null,null,null,null,null,null,null,null,null,null,null,null,null,null,null,null,null,null,null,null,null,null,null,null,null,null,null,null,null,null,null,null,null,null,null,null,null,null,null,null,null,"Uzbekistan-UZ"]
[null,null,null,null,null,null,null,null,null,null,null,null,null,null,null,null,null,null,null,null,null,null,null,null,null,null,null,null,null,null,null,null,null,null,null,null,null,null,null,null,null,null,null,null,null,null,null,null,null,null,null,null,null,null,null,null,"Vanuatu-VU"]
[null,null,null,null,null,null,null,null,null,null,null,null,null,null,null,null,null,null,null,null,null,null,null,null,null,null,null,null,null,null,null,null,null,null,null,null,null,null,null,null,null,null,null,null,null,null,null,null,null,null,null,null,null,null,null,null,"Vatican City-VA"]
[null,null,null,null,null,null,null,null,null,null,null,null,null,null,null,null,null,null,null,null,null,null,null,null,null,null,null,null,null,null,null,null,null,null,null,null,null,null,null,null,null,null,null,null,null,null,null,null,null,null,null,null,null,null,null,null,"Venezuela-VE"]
[null,null,null,null,null,null,null,null,null,null,null,null,null,null,null,null,null,null,null,null,null,null,null,null,null,null,null,null,null,null,null,null,null,null,null,null,null,null,null,null,null,null,null,null,null,null,null,null,null,null,null,null,null,null,null,null,"Vietnam-VN"]
[null,null,null,null,null,null,null,null,null,null,null,null,null,null,null,null,null,null,null,null,null,null,null,null,null,null,null,null,null,null,null,null,null,null,null,null,null,null,null,null,null,null,null,null,null,null,null,null,null,null,null,null,null,null,null,null,"Wallis,Futuna-WF"]
[null,null,null,null,null,null,null,null,null,null,null,null,null,null,null,null,null,null,null,null,null,null,null,null,null,null,null,null,null,null,null,null,null,null,null,null,null,null,null,null,null,null,null,null,null,null,null,null,null,null,null,null,null,null,null,null,"West Sahara-EH"]
[null,null,null,null,null,null,null,null,null,null,null,null,null,null,null,null,null,null,null,null,null,null,null,null,null,null,null,null,null,null,null,null,null,null,null,null,null,null,null,null,null,null,null,null,null,null,null,null,null,null,null,null,null,null,null,null,"Yemen-YE"]
[null,null,null,null,null,null,null,null,null,null,null,null,null,null,null,null,null,null,null,null,null,null,null,null,null,null,null,null,null,null,null,null,null,null,null,null,null,null,null,null,null,null,null,null,null,null,null,null,null,null,null,null,null,null,null,null,"Zambia-ZM"]
[null,null,null,null,null,null,null,null,null,null,null,null,null,null,null,null,null,null,null,null,null,null,null,null,null,null,null,null,null,null,null,null,null,null,null,null,null,null,null,null,null,null,null,null,null,null,null,null,null,null,null,null,null,null,null,null,"Zimbabwe-ZW"]

{"sheet":"Measurements","index":10,"n_rows":25,"n_cols":8,"rows_kept":25,"cut":false,"hidden":false,"merged":[[24,0,24,11]]}
[]
["Dimensions of a sales unit",null,null,null,null,null,null,"Dimensions of a distribution/inventory unit"]
[]
[]
[]
[]
[]
[]
[]
[]
[]
[]
[]
[]
[]
[]
[]
[]
[]
[]
[]
[]
[]
[]
["Definition of sales units, cartons and outer cartons"]